Workbook

Sheet FlexPCN
Y1: _
A2: Reference Guidance AC 150/5335-5C App B | F2: Existing Flexible Pavement Layers | G2: ENTER Existing Layer Thickness | I2: Convert | J2: Converted | K2: Convert | L2: HMA, Base | M2: <100kip>? | R2: 0 | Y2: _
B3: Fig. A2-2 | D3: Figs.A2-1&2 | I3: =">= "&B5 -> >= P-209 | J3: =">="&B5&" and" -> >=P-209 and | K3: All Layers | L3: =B20&H12&","&B21&H12 -> 3in.,6in. | M3: Convert | Y3: _
A4: Flexible Pavement | B4: Convert to | D4: Convert to | I4: to | J4: ="< "&B5&" to" -> < P-209 to | K4: Directly to | L4: Based on | M4: All to | Y4: _ | Z4: =F18 -> Airport Loc_ID | AA4: LOC ID | AG4: =Z4 -> Airport Loc_ID | AN4: =AG4 -> Airport Loc_ID
A5: Structure Items | B5: =LEFT(F9,5) -> P-209 | D5: =LEFT(F12,5) -> P-154 | I5: =B5 -> P-209 | J5: =D5 -> P-154 | K5: =D5 -> P-154 | L5: ref. section | M5: Req'd | R5: layer | S5: t | T5: dim. | Y5: _ | Z5: =G18 -> Pavement ID | AA5: GA RW | AG5: =Z5 -> Pavement ID | AN5: =AG5 -> Pavement ID
A6: P-401/3 P 403 | B6: 1.6 | D6: n/a | F6: =LEFT(A6,7) -> P-401/3 | G6: 4 | H6: in. | I6: =G6*B6 -> 6.4 | J6: =IF(I6>0,"","") ->  | K6: =G6*D6 ->  | L6: =IF(D13,B20*D6,B20*B6*D9) -> 6.72 | M6: =IF(L12-L6>0,L12-L6,L12) -> 16.64 | Q6: =IF(G6>0,IF($S$14>0,FIXED(G6,$W$14)&" ("&B$5&" "&FIXED(B6,1)&")",FIXED(G6,$W$14,TRUE)&" ("&B$5&" "&FIXED(B6,1,TRUE)&" ("&D$5&" "&FIXED(D6,TRUE)&")"),"") -> 4.0 (P-209 1.6) | R6: =F6 -> P-401/3 | S6: =IF(U6="in.",1,2) -> 1 | T6: 10 | U6: in. | V6: =IF(S$14>S6,T6*25.4,IF(S$14<S6,T6/25.4,T6)) -> 10 | W6: =R$14 -> in. | Y6: _ | Z6: =A6 -> P-401/3 P 403 | AA6: 4.0 (P-209 1.6) | AG6: P-401/3 P 403 | AN6: P-401/3 P 403
A7: P-306 ECONOCRTE | B7: 1.2 | D7: n/a | F7: P-306 | G7: 0 | H7: in. | I7: =G7*B7 -> 0 | J7: =IF(I7>0,"","") ->  | L7: COMFAA HMA t | M7: =IF(M6>0,B20,B20*M6/L6) -> 3 | Q7: =IF(G7>0,IF($S$14>0,FIXED(G7,$W$14)&" ("&B$5&" "&FIXED(B7,1)&")",FIXED(G7,$W$14,TRUE)&" ("&B$5&" "&FIXED(B7,1,TRUE)&" ("&D$5&" "&FIXED(D7,TRUE)&")"),"") ->  | R7: P-306 | S7: =IF(U7="in.",1,2) -> 1 | T7: 0 | U7: in. | V7: 0 | W7: =R$14 -> in. | Y7: _ | Z7: =A7 -> P-306 ECONOCRTE | AG7: P-306 ECONOCRTE | AN7: P-306 ECONOCRTE
A8: P-304 CEM. TRTD | B8: 1.2 | D8: n/a | F8: P-304 | G8: 0 | H8: in. | I8: =G8*B8 -> 0 | J8: =IF(I8>0,"","") ->  | N8: =I6/(L6+0.001) -> 0.9522392501 | Q8: =IF(G8>0,IF($S$14>0,FIXED(G8,$W$14)&" ("&B$5&" "&FIXED(B8,1)&")",FIXED(G8,$W$14,TRUE)&" ("&B$5&" "&FIXED(B8,1,TRUE)&" ("&D$5&" "&FIXED(D8,TRUE)&")"),"") ->  | R8: P-304 | S8: 1 | T8: 0 | U8: in. | V8: 0 | W8: in. | Y8: _ | Z8: P-304 CEM. TRTD | AG8: P-304 CEM. TRTD | AN8: P-304 CEM. TRTD
A9: P-209 Cr AGG | B9: 1 | D9: 1.4 | F9: P-209 | G9: 6 | H9: in. | I9: =G9*B9 -> 6 | J9: =I13*D9 -> 17.36 | K9: 8.4 | L9: =IF(D13,B21*D9,B21*B9*D9) -> 8.4 | M9: =IF(M6-L9>0,M6-L9,M6/L9*L9) -> 8.24 | Q9: =IF(G9>0,IF($S$14>0,FIXED(G9,$W$14)&" ("&D$5&" "&FIXED(D9,1)&")",FIXED(G9,$W$14)&" ("&B$5&" "&FIXED(B9,1,TRUE)&" ("&D$5&" "&FIXED(D9,TRUE)&")"),"") -> 6.0 (P-154 1.4) | R9: P-209 | S9: 1 | T9: 13.6 | U9: in. | V9: 13.6 | W9: in. | Y9: _ | Z9: P-209 Cr AGG | AA9: 6.0 (P-154 1.4) | AG9: P-209 Cr AGG | AN9: P-209 Cr AGG
A10: P-208 Agg, P-211 | B10: 1 | D10: 1.2 | F10: P-208 | G10: 0 | H10: in. | I10: =G10*B10 -> 0 | J10: =IF(I10>0,"","") ->  | K10: 0 | L10: COMFAA Base t | M10: =IF(M6-L9>0,B21,B21*M9/L9) -> 6 | Q10: =IF(G10>0,IF($S$14>0,FIXED(G10,$W$14)&" ("&D$5&" "&FIXED(D10,1)&")",FIXED(G10,$W$14)&" ("&B$5&" "&FIXED(B10,1,TRUE)&" ("&D$5&" "&FIXED(D10,TRUE)&")"),"") ->  | R10: P-208 | S10: 1 | T10: 0 | U10: in. | V10: 0 | W10: in. | Y10: _ | Z10: P-208 Agg, P-211 | AG10: P-208 Agg, P-211 | AN10: P-208 Agg, P-211
A11: P-301 SOIL-CEM. | B11: n/a | D11: 1.2 | F11: P-301 | G11: 0 | H11: in. | I11: n/a | J11: =G11*D11 -> 0 | K11: 0 | L11: COMFAA Subbase t | M11: =IF(M10=B21,M9,0) -> 8.24 | N11: Max.GW | Q11: =IF(G11>0,IF($S$14>0,FIXED(G11,$W$14)&" ("&D$5&" "&FIXED(D11,1)&")",FIXED(G11,$W$14)&" ("&B$5&" "&FIXED(B11,1,TRUE)&" ("&D$5&" "&FIXED(D11,TRUE)&")"),"") ->  | R11: P-301 | S11: 1 | T11: 0 | U11: in. | V11: 0 | W11: in. | Y11: _ | Z11: P-301 SOIL-CEM. | AG11: P-301 SOIL-CEM. | AN11: P-301 SOIL-CEM.
A12: P-154 Subbase | B12: n/a | D12: 1 | F12: P-154 | G12: 6 | H12: in. | I12: n/a | J12: =G12*D12 -> 6 | K12: =G12*D12 -> 6 | L12: =IF(D13,K13,J13) -> 23.36 | N12: =IF(F13=FALSE,FIXED(D12,1)&" to 1 Quality","Same Quality") -> 1.0 to 1 Quality | Q12: =IF(G12>0,IF($S$14>0,FIXED(G12,$W$14),"")) -> 6.0 | R12: P-154 | S12: 1 | T12: 0 | U12: in. | V12: 0 | W12: in. | Y12: _ | Z12: P-154 Subbase | AA12: 6.0 | AG12: P-154 Subbase | AN12: P-154 Subbase
G13: 0 | H13: 0 | I13: =SUMIF($G$6:$G$12,">0",I6:I12) -> 12.4 | J13: =SUM($J$9:$J$11,$J$12) -> 23.36 | K13: =SUM($K$6:$K$12) ->  | L13: =IF(D13,D5&" Direct",B5&" to "&D5) -> P-209 to P-154 | Q13: =IF(H12="mm","Metric","English") -> English | R13: Metric/English | S13: 2 | T13: 0 | U13: 0 | V13: 0 | W13: =U13 -> 0 | Y13: _ | Z13: ="Units" -> Units | AA13: English | AG13: Units | AN13: Units
A14: =IF(S13=1,"Equivalent Thickness, in.","Equivalent Thickness, mm") -> Equivalent Thickness, mm | D14: ="Subgrade CBR..." -> Subgrade CBR... | G14: 4 | H14: 1 | L14: Total COMFAA t | M14: =M7+M10+M11 -> 17.24 | Q14: =G14 -> 4 | R14: =IF(S14=1,"in.","mm") -> in. | S14: 1 | T14: 9 | U14: 1 | V14: =T14 -> 9 | W14: =IF(S14=2,0,1) -> 1 | Y14: _ | Z14: COMFAA CBR | AA14: 4 | AG14: COMFAA CBR | AN14: COMFAA CBR
A15: =F6 -> P-401/3 | B15: =M7 -> 3 | Q15: =FIXED(M14,1)&" "&H12 -> 17.2 in. | R15: English/Metric | T15: 3 | U15: =IF(S$14>S11,T15*25.4,IF(S$14<S11,T15/25.4,T15)) -> 3 | W15: =R$14 -> in. | Y15: _ | Z15: COMFAA Thickness | AA15: 17.2 in. | AG15: COMFAA Thickness | AN15: COMFAA Thickness
A16: =F9 -> P-209 | B16: =M10 -> 6 | Q16: =L13 -> P-209 to P-154 | R16: Evaluation CBR = | T16: 6 | U16: =IF(S$14>S12,T16*25.4,IF(S$14<S12,T16/25.4,T16)) -> 6 | W16: =R$14 -> in. | Y16: _
A17: =F12 -> P-154 | B17: =M11 -> 8.24 | Q17: =N12 -> 1.0 to 1 Quality | R17: Evaluation thickness t = | Y17: _
A18: Total | B18: =SUM(B15:B17) -> 17.24 | F18: Airport Loc_ID | G18: Pavement ID | R18: Recommended PCN Codes: | T18: Y | U18: X
A19: ENTER Ref.Section Requirements | F19: LOC ID | G19: GA RW | O19: COMFAA Inputs | R19: =IF($G$14<=4,$R$18&"F/D/",IF(AND($G$14>4,$G$14<=8),$R$18&"F/C/",IF(AND($G$14>8,$G$14<=13),$R$18&"F/B/",IF($G$14>=13,$R$18&"F/A/","Error")))) -> Recommended PCN Codes: F/D/ | S19: =IF(S14=1,"in.","cm") -> in. | T19: =B21&" in." -> 6 in. | U19: =IF(S13=1,6,150) -> 150
A20: =LEFT(F6,5)&" reference t" -> P-401 reference t | B20: 3 | D20: =H12 -> in. | F20: Project Details | O20: =R17&FIXED(M14,IF(S14=1,1,0))&" "&H12 -> Evaluation thickness t = 17.2 in. | S20: FALSE
A21: =LEFT(F9,5)&" reference t" -> P-209 reference t | B21: 6 | D21: =D20 -> in. | F21: Examples | O21: =R16&FIXED(G14,1) -> Evaluation CBR = 4.0 | S21: 1
O22: =IF(N8<0.5,R19&T18,R19&U18) -> Recommended PCN Codes: F/D/X
R24: Equivalency Fctors | S24: 3 | T24: CBR<4 | U24: D
R25: 0.7 | T25: P209 | U25: =U26&W15 -> Fdepth from Surface, in.
R26: 0.8 | T26: =B6 -> 1.6 | U26: Fdepth from Surface,
R27: 0.9 | T27: =B7 -> 1.2
R28: 1 | T28: =B8 -> 1.2 | U28: faa recommend | W28: FAA Std | X28: Alt Std
R29: 1.1 | T29: =B9 -> 1 | U29: 2base | W29: 2base | X29: 2base
R30: 1.2 | U30: =IF(S$20,W30,X30) -> 1.5 | W30: =Guidance!K5 -> 1.6 | X30: =Guidance!L5 -> 1.5 | AF30: Chart info
R31: 1.3 | U31: =IF(S$20,W31,X31) -> 1.1 | W31: =Guidance!K6 -> 1.2 | X31: =Guidance!L6 -> 1.1 | AG31: =IF(AG34=0,"N/A",LEFT(F6,5)) -> P-401 | AH31: =IF(AH33="","",LEFT(F7,5)) ->  | AI31: =IF(AI33="","",LEFT(F8,5)) ->  | AJ31: =IF(AJ34=0,"N/A",LEFT(F9,5)) -> P-209 | AK31: =IF(AK33="","",LEFT(F10,5)) ->  | AL31: =IF(AL33="","",LEFT(F11,5)) ->  | AM31: =IF(AM34=0,"N/A",LEFT(F12,5)) -> P-154 | AN31: ="Subgrade CBR "&FIXED(G14,1) -> Subgrade CBR 4.0
R32: 1.4 | U32: =IF(S$20,W32,X32) -> 1.1 | W32: =Guidance!K7 -> 1.2 | X32: =Guidance!L7 -> 1.1 | AG32: =IF(B17>=0, "HMA","N/A") -> HMA | AH32: =IF(AH33="","",AH31) ->  | AI32: =IF(AI33="","",AI31) ->  | AJ32: =IF(B17>=0, "Base","N/A") -> Base | AK32: =IF(AK33="","",AK31) ->  | AL32: =IF(AL33="","",AL31) ->  | AM32: =IF(B17>=0, "Subbase","N/A") -> Subbase | AN32: ="Subgrade CBR "&FIXED(G14,1) -> Subgrade CBR 4.0
R33: 1.5 | U33: =IF(S$20,W33,X33) -> 1 | W33: =Guidance!K8 -> 1 | X33: =Guidance!L8 -> 1 | AF33: Existing Pavement | AG33: =IF($G6=0,0.001,$G6) -> 4 | AH33: =IF($G7=0,"",$G7) ->  | AI33: =IF($G8=0,"",$G8) ->  | AJ33: =IF($G9=0,0.001,$G9) -> 6 | AK33: =IF($G10=0,"",$G10) ->  | AL33: =IF($G11=0,"",$G11) ->  | AM33: =IF($G12=0,0.001,$G12) -> 6 | AN33: =IF(S14=1,10,125) -> 10
R34: 1.6 | U34: =IF(S$20,W34,X34) -> 1 | W34: =Guidance!K9 -> 1 | X34: =Guidance!L9 -> 1 | AF34: =IF(B17>=0,"Equivalent Pavement","No Reference Pavement") -> Equivalent Pavement | AG34: =M7 -> 3 | AJ34: =M10 -> 6 | AM34: =M11 -> 8.24 | AN34: =IF(S14=1,1,25) -> 1
R35: 1.7 | U35: base2subbase | W35: base2subbase | X35: base2subbase | AF35: =M14+AN33+AN34 -> 28.24 | AG35: =total -> 28.24 | AJ35: 1
R36: 1.8 | U36: =IF(S$20,W36,X36) -> 1.3 | W36: =Guidance!K11 -> 1.4 | X36: =Guidance!L11 -> 1.3
R37: 1.9 | U37: =IF(S$20,W37,X37) -> 1.1 | W37: =Guidance!K12 -> 1.2 | X37: =Guidance!L12 -> 1.1
R38: 2 | U38: =IF(S$20,W38,X38) -> 1.1 | W38: =Guidance!K13 -> 1.2 | X38: =Guidance!L13 -> 1.1
R39: 2.1 | U39: =IF(S$20,W39,X39) -> 1 | W39: =Guidance!K14 -> 1 | X39: =Guidance!L14 -> 1
R40: 2.2
R41: 2.3
R42: 2.4
R43: 2.5

Sheet RigidPCN
A1: Ref. AC 150/5335-5C Appendix B Rigid Pavement Structure Items | D1: Existing Rigid Pavement Layers | E1: ENTER Existing Layer Thickness | H1: Evaluation Layer Thickness | I1: Improved\ k-value
R2: 0 | X2: =D24 -> Enter LOC-ID | AA2: _ | AB2: =D23 -> Arpt LOC-ID | AI2: =$AB2 -> Arpt LOC-ID | AP2: =AI2 -> Arpt LOC-ID
O3: layer | P3: Units | X3: =D27 -> Enter Pave ID | AA3: _ | AB3: =D26 -> Pavement ID | AI3: Pavement ID | AP3: =AI3 -> Pavement ID
A4: Figure A2-7 | D4: P-401 Overlay(s) | E4: 0 | F4: in./2.5 | H4: =E4/(2.3+M34/10) -> 0 | I4: ="Overlay to "&D5&", "&FIXED((2.3+M34/10),1)&" to 1" -> Overlay to P-501, 2.5 to 1 | O4: =D4 -> P-401 Overlay(s) | P4: =IF(LEFT(T4,2)="in",1,2) -> 2 | S4: 0 | T4: mm/2.5 | U4: =IF(P$16>P4,S4*25.4,IF(P$16<P4,S4/25.4,S4)) -> 0 | V4: =T$16&"/"&(2.3+M34/10) -> in./2.5 | X4: =FIXED(E4,1)&" "&V4 -> 0.0 in./2.5 | AA4: _ | AB4: =D4 -> P-401 Overlay(s) | AI4: P-401 Overlay(s) | AP4: P-401 Overlay(s)
A5: Rigid Pavement Thickness | D5: P-501 | E5: 13 | F5: in. | H5: =H4+E5 -> 13 | O5: =D5 -> P-501 | P5: =IF(T5="in.",1,2) -> 2 | S5: 228.6 | T5: mm | U5: =IF(P$16>P5,S5*25.4,IF(P$16<P5,S5/25.4,S5)) -> 9 | V5: =T$16 -> in. | X5: =FIXED(E5,1)&" "&V5 -> 13.0 in. | AA5: _ | AB5: P-501 | AI5: P-501 | AP5: P-501
A6: ThirdPoint Flexural Strength | D6: Flexural strength | E6: 650 | F6: psi | I6: Foundation k= Maximum k-Below or Input k | O6: =D6 -> Flexural strength | P6: =IF(T6=" psi",1,2) -> 2 | S6: 4.136854203 | T6: Mpa | U6: =IF(P$16>P6,S6/145.0377438,IF(P$16<P6,S6*145.0377438,S6)) -> 600 | V6: =T$17 -> psi | X6: 650.0 psi | AA6: _ | AB6: Flexural strength | AI6: Flexural strength | AP6: Flexural strength
A7: Figure A2-6, default maximum k-value = 500 lb/in^3. (135.7 MN/m^3) OR input k-value if greater. | D7: P-401 and/or P-403 | E7: 0 | F7: in. | O7: =D7 -> P-401 and/or P-403 | P7: =IF(T7="in.",1,2) -> 2 | S7: 0 | T7: mm | U7: =IF(P$16>P7,S7*25.4,IF(P$16<P7,S7/25.4,S7)) -> 0 | V7: in. | X7: 0.0 in. | AA7: _ | AB7: P-401 and/or P-403 | AI7: P-401 and/or P-403 | AP7: P-401 and/or P-403
D8: P-306 | E8: 0 | F8: in. | H8: =SUM(E7:E9) -> 4 | I8: =IF(H8=0,"No Stabilized",IF(P16=2,ROUND(AB50,3),ROUND(AC50,0))) -> 287 | O8: P-306 | P8: 2 | S8: 0 | T8: mm | U8: 0 | V8: in. | X8: 0.0 in. | AA8: _ | AB8: P-306 | AI8: P-306 | AP8: P-306
D9: P-304 | E9: 4 | F9: in. | O9: P-304 | P9: 2 | S9: 0 | T9: mm | U9: 0 | V9: in. | X9: 4.0 in. | AA9: _ | AB9: P-304 | AI9: P-304 | AP9: P-304
A10: Combined Top and Bottom Figure A2-5. | D10: P-209 | E10: 12 | F10: in. | H10: =E10 -> 12 | I10: =IF(H10=0,"No Crushed",IF(P16=2,ROUND(T65,3),ROUND(U65,0))) -> 215 | O10: P-209 | P10: 2 | S10: 101.6 | T10: mm | U10: 4 | V10: in. | X10: 12.0 in. | AA10: _ | AB10: P-209 | AI10: P-209 | AP10: P-209
D11: P-208 and/or P-211 | E11: 0 | F11: in. | O11: P-208 and/or P-211 | P11: 2 | S11: 0 | T11: mm | U11: 0 | V11: in. | X11: 0.0 in. | AA11: _ | AB11: P-208 and/or P-211 | AI11: P-208 and/or P-211 | AP11: P-208 and/or P-211
D12: P-301 | E12: 0 | F12: in. | H12: =SUM(E11:E13) -> 0 | I12: =IF(H12=0,"No Uncrushed",IF(P16=2,ROUND(T51,3),ROUND(U51,0))) -> No Uncrushed | O12: P-301 | P12: 2 | S12: 0 | T12: mm | U12: 0 | V12: in. | X12: 0.0 in. | AA12: _ | AB12: P-301 | AI12: P-301 | AP12: P-301
D13: P-154 | E13: 0 | F13: in. | O13: P-154 | P13: 2 | S13: 0 | T13: mm | U13: 0 | V13: in. | X13: 0.0 in. | AA13: _ | AB13: P-154 | AI13: P-154 | AP13: P-154
E14: 0 | F14: in. | G14: 0 | P14: 2 | S14: 0 | T14: mm | U14: 0 | V14: in. | X14: 0.0 in. | AA14: _ | AI14: 0 | AP14: 0
A15: COMFAA Inputs | D15: Subgrade k-value | E15: 100 | F15: lb/in^3 | H15: =SUM(H12,H10,H8,H5) -> 29 | I15: =MAX(E15,IF(ISNUMBER(I8),I8,IF(ISNUMBER(I10),I10,IF(ISNUMBER(I12),I12,E15)))) -> 287 | O15: =D15 -> Subgrade k-value | P15: =IF(T15=" lb/in^3",1,2) -> 2 | S15: 40.0112922 | T15: MN/m^3 | U15: =IF(P$16>P15,S15/3.68396,IF(P$16<P15,S15*3.68396,S15)) -> 147.4 | V15: =T$18 -> lb/in^3 | X15: 100.0 lb/in^3 | AA15: _ | AB15: Subgrade k | AI15: Subgrade k | AP15: Subgrade k
A16: =IF(I15<0.001,"No Improvement",AA50&FIXED(I15,P16))&" "&F15 -> k-value = 287.0 lb/in^3 | N16: =IF(P16=1,"in.","mm") -> in. | O16: English/Metric | P16: 1 | T16: =N16 -> in. | V16: =T$18 -> lb/in^3 | X16: =C19&" "&N16 -> 13.0 in. | AA16: _ | AB16: COMFAA Thickness | AI16: COMFAA Thickness | AP16: COMFAA Thickness
A17: =AN29&FIXED(H5,IF(P16=1,1,0))&" "&F13 -> Rigid Pavement t = 13.0 in. | N17: =IF(P16=1," psi"," Mpa") -> psi | T17: =N17 -> psi | V17: =T$18 -> lb/in^3 | X17: =C20&" "&N18 -> 287.0 lb/in^3 | AA17: _ | AB17: COMFAA k-value | AI17: COMFAA k-value | AP17: COMFAA k-value
A18: =D6&" = "&FIXED(E6,P16*1.5)&F6 -> Flexural strength = 650.0 psi | N18: =IF(P16=1," lb/in^3"," MN/m^3") -> lb/in^3 | O18: 145.04 | T18: =N18 -> lb/in^3 | V18: =T$18 -> lb/in^3 | X18: =C21&" "&N17 -> 650.0 psi | AA18: _ | AB18: COMFAA Flex Strength | AI18: COMFAA Flex Strength | AP18: COMFAA Flex Strength
A19: =X63 -> Recommended PCN Codes: R/B/W | C19: =FIXED(H5,IF(P16=1,1,0)) -> 13.0 | O19: 0.271 | R19: ` | X19: =D22 -> English | AA19: _ | AB19: Units | AI19: Units | AP19: Units
C20: =FIXED(I15,IF(P16=1,1,1)) -> 287.0
A21: Enter Project Details | C21: =FIXED(E6,IF(P16=1,1,3)) -> 650.0
D22: =IF(P16=1,"English","Metric") -> English
D23: Arpt LOC-ID
D24: Enter LOC-ID | AK24: Chart info
AM25: =IF(H8>0,"Stabilized k="&FIXED(I8,P16),"") -> Stabilized k=287.0 | AN25: =IF(H10>0,"Crushed k="&FIXED(I10,P16),"") -> Crushed k=215.0 | AO25: =IF(H12>0,"Uncrushed k= "&FIXED(I12,P16),"") -> 
D26: Pavement ID | AM26: =IF(AM27="","","Overlay") ->  | AN26: =LEFT(D5,6)&" flex strength = "&FIXED(E6,P16*1.5)&F6 -> P-501 flex strength = 650.0 psi | AO26: =IF(AO27="","",LEFT(D7,6)) ->  | AP26: =IF(AP27="","",LEFT(D8,6)) ->  | AQ26: =IF(AQ27="","",LEFT(D9,6)) -> P-304 | AR26: =IF(AR27="","",LEFT(D10,6)) -> P-209 | AS26: =IF(AS27="","",LEFT(D11,6)) ->  | AT26: =IF(AT27="","",LEFT(D12,6)) ->  | AU26: =IF(AU27="","",LEFT(D13,6)) ->  | AV26: ="Subgrade k= "&FIXED(E15,P16) -> Subgrade k= 100.0
D27: Enter Pave ID | AL27: Existing Pavement | AM27: =IF($E4=0,"",$E4) ->  | AN27: =IF($E5=0,"",$E5) -> 13 | AO27: =IF($E7=0,"",$E7) ->  | AP27: =IF($E8=0,"",$E8) ->  | AQ27: =IF($E9=0,"",$E9) -> 4 | AR27: =IF($E10=0,"",$E10) -> 12 | AS27: =IF($E11=0,"",$E11) ->  | AT27: =IF($E12=0,"",$E12) ->  | AU27: =IF($E13=0,"",$E13) ->  | AV27: =SUM(AM27:AU27) -> 29 | AW27: =IF(P16=1,5,125) -> 5
AL28: Equivalent Pavement | AM28: =IF($AL$28=0,"","") ->  | AN28: =H5 -> 13 | AP28: =H8 -> 4 | AR28: =H10 -> 12 | AT28: =H12 -> 0 | AU28: =IF($AL$28=0,"","") ->  | AV28: =SUM(AM28:AU28) -> 29 | AW28: =IF(P16=1,1,25) -> 1
AK29: =1.05*($H$4+$H$15)+AW27+AW28 -> 36.45 | AN29: Rigid Pavement t =
AK30: ="Depth from Surface, "&AK31 -> Depth from Surface, in.
AK31: =F5 -> in.
T33: 125
M34: 2 | N34: 3
Q35: k-in | R35: unru-in | S35: crus-in | T35: stab-in
Q36: =IF($P$16=2,$E$15*3.68396,$E$15) -> 100 | R36: =IF(P16=2,H12/25.4,H12) -> 0 | S36: =IF(P16=2,H10/25.4,H10) -> 12 | T36: =IF(P16=2,H8/25.4,H8) -> 4
M37: Convert P-401 to P-501
M38: 2.4
M39: 2.5 | O39: SUBGRADE K value as improved by Aggregate layer | X39: Stabilized subbase material
M40: 2.6 | T40: Original k input | X40: starting K value | Y40: =U65 -> 215
M41: 2.7 | P41: starting subgrade K value | Q41: =Q36 -> 100 | T41: =Q41 -> 100 | X41: if check for zero | Y41: =IF(Y40<0.001,0.001,Y40) -> 215
M42: 2.8 | P42: if check for zero | Q42: =IF(Q41<0.001,0.001,Q41) -> 100 | T42: Frost k | X42: Thickness of stabilized layer | Y42: =T36 -> 4
M43: 2.9 | P43: Thickness of aggregate layer | Q43: =R36 -> 0 | T43: =[1]Frost!AG27 -> 0
P44: type of aggregate material | Q44: FALSE | Y44: K<50 | AB44: K > 50 | AC44: S =
Q45: K<50 | T45: K > 50 | U45: S = | X45: Y = | Y45: =10^(-0.013*Y42*2) -> 0.7870457897 | AB45: =(332*LOG(Y41)-469) -> 305.3695687 | AC45: =IF(Y42*2<10,IF(Y41<50,((AB45-Y47)/10),((AB45-Y41)/10)),10) -> 9.036956869
P46: Y = | Q46: =IF(Q44=TRUE,10^(-0.013*Q43),(10^(-0.01466*Q43))) -> 1 | T46: =IF(Q44=TRUE,(332*LOG(Q42)-469),(315*LOG(Q42)-455)) -> 175 | U46: =IF(Q43<10,IF(Q42<50,((T46-Q48)/10),((T46-Q42)/10)),10) -> 7.5 | X46: X = | Y46: =(2.85733+Y45*(LOG(Y40)-2.85733)) -> 2.444216323
P47: X = | Q47: =IF(Q44=TRUE,(2.85733+Q46*(LOG(Q41)-2.85733)),(2.69897+Q46*(LOG(Q41)-2.69897))) -> 2 | X47: sk for <50 | Y47: =10^Y46 -> 278.1098196 | AB47: SK for >50 | AC47: =AB45+(AC45*(2*Y42-10)) -> 287.295655
P48: sk for <50 | Q48: =10^Q47 -> 100 | T48: SK for >50 | U48: =T46+(U46*(Q43-10)) -> 100
AB49: Final SK to use 500 or less | AC49: =IF(AC47>500,500,IF(Y41<50,Y47,AC47)) -> 287.295655
T50: Final SK to use 500 or less | U50: =IF(U48>500,500,IF(Q42<50,Q48,U48)) -> 100 | AA50: k-value = | AB50: =ROUND(AC50/3.68396,3) -> 77.905 | AC50: =ROUND(AC49,0) -> 287
T51: =ROUND(U51/3.68396,3) -> 27.145 | U51: =ROUND(U50,0) -> 100
O53: SUBGRADE K value as improved by Aggregate layer | X53: Recommended PCN Codes:
T54: Original k input | Y54: Subgrade Support
P55: starting subgrade K value | Q55: =U51 -> 100 | T55: =Q55 -> 100 | X55: Subgrade Strength Category | Y55: k-Value | Z55: Represents | AA55: Code Designation
P56: if check for zero | Q56: =IF(Q55<0.001,0.001,Q55) -> 100 | T56: Frost k | Y56: pci (MN/m3) | Z56: pci (MN/m3)
I57: =332*LOG(500-469) -> 495.1320824 | P57: Thickness of aggregate layer | Q57: =S36 -> 12 | T57: =Q37 -> 0 | X57: High | Y57: 552.6 (150) | Z57: k > 442 ( >120) | AA57: A
P58: type of aggregate material | Q58: TRUE | X58: Medium | Y58: 294.7 (80) | Z58: 221<k<442 (60<k<120) | AA58: B
Q59: K<50 | T59: K > 50 | U59: S = | X59: Low | Y59: 147.4 (40) | Z59: 92<k<221 (25<k<60) | AA59: C
P60: Y = | Q60: =IF(Q58=TRUE,10^(-0.013*Q57),(10^(-0.01466*Q57))) -> 0.6982324041 | T60: =IF(Q58=TRUE,(332*LOG(Q56)-469),(315*LOG(Q56)-455)) -> 195 | U60: =IF(Q57<10,IF(Q56<50,((T60-Q62)/10),((T60-Q56)/10)),10) -> 10 | X60: Ultra Low | Y60: 73.7 (20) | Z60: k<92 (<25) | AA60: D
P61: X = | Q61: =IF(Q58=TRUE,(2.85733+Q60*(LOG(Q55)-2.85733)),(2.69897+Q60*(LOG(Q55)-2.69897))) -> 2.258714413 | X61: =IF(AC50>442,$X$53&"R/A/W",IF(AND(AC50>221,AC50<=442),$X$53&"R/B/W",IF(AND(AC50>92,AC50<=221),$X$53&"R/C/W",IF(AC50<=92,$X$53&"R/D/W","Error")))) -> Recommended PCN Codes: R/B/W
P62: sk for <50 | Q62: =10^Q61 -> 181.4322193 | T62: SK for >50 | U62: =T60+(U60*(Q57-10)) -> 215 | X62: =IF(AC50>442,$X$53&"R/A/X",IF(AND(AC50>221,AC50<=442),$X$53&"R/B/X",IF(AND(AC50>92,AC50<=221),$X$53&"R/C/X",IF(AC50<=92,$X$53&"R/D/X","Error")))) -> Recommended PCN Codes: R/B/X
X63: =IF(E4>0,X62,X61) -> Recommended PCN Codes: R/B/W
T64: Final SK to use 500 or less | U64: =IF(U62>500,500,IF(Q56<50,Q62,U62)) -> 215 | X64: =IF(P16=1,ROUND(AC50,0),ROUND(AB50,3)) -> 287 | Y64: overlay or not (W or X
T65: =ROUND(U65/3.68396,3) -> 58.361 | U65: =ROUND(U64,0) -> 215

Sheet Form5010
B5: TIRE PRESSURE METHOD USED | H5: Project info
K8: =51/58.5 -> 0.8717948718
K9: =67.5/77 -> 0.8766233766
D11: AIRCRAFT GEAR TYPE IN TRAFFIC MIX
G18: Airport LOC-ID
A19: Enter PCN | B19: 35 | G19: Pavement ID | K19: PCN | L19: Gears | M19: Pavement | Q19: S | R19: D | S19: 2D | T19: 3D | U19: 2D2D2 | V19: 2D3D2W | W19: 2D3D2B
A20: Form 5010 Data Element | B20: Gross Weight and PCN | C20: IF 3D or W/B Gear Checked, #38 = PCN Please Add Data Element #38 Remark | I20: S | K20: =ROUND(B19,1) -> 35 | L20: TRUE | M20: 8 | O20: 1 | P20: /F/A | Q20: =J33 -> 94 | R20: =N33 -> 150 | S20: =R33 -> 272 | T20: =Z33 -> 513 | U20: =V33 ->  | V20: =AD33 ->  | W20: =AH33 ->  | X20: /W | Y20: /U
A21: #35 S gear | B21: =IF($L$20,VLOOKUP($M$20,$O$20:$Y$27,3),"") -> 92 | D21: 3D | E21: =IF($L$23,VLOOKUP($M$20,$O$20:$Y$27,6),"") -> <min | I21: D | L21: TRUE | O21: 2 | P21: /F/B | Q21: =K33 -> 89 | R21: =O33 -> 142 | S21: =S33 -> 242 | T21: =AA33 -> 482 | U21: =W33 ->  | V21: =AE33 ->  | W21: =AI33 ->  | X21: /X | Y21: /T
A22: #36 D gear | B22: =IF($L$21,VLOOKUP($M$20,$O$20:$Y$27,4),"") -> 114 | D22: 2D/2D2 | E22: =IF($L$24,VLOOKUP($M$20,$O$20:$Y$27,7),"") ->  | I22: 2D | L22: TRUE | O22: 3 | P22: /F/C | Q22: =L33 -> 90 | R22: =P33 -> 123 | S22: =T33 -> 213 | T22: =AB33 -> <min | U22: =X33 ->  | V22: =AF33 ->  | W22: =AJ33 ->  | X22: /Y
A23: #37 DT gear | B23: =IF($L$22,VLOOKUP($M$20,$O$20:$Y$27,5),"") -> 179 | D23: 2D/3D2W | E23: =IF($L$24,VLOOKUP($M$20,$O$20:$Y$27,8),"") ->  | F23: Report Minimum Gross Weight | I23: 3D | L23: TRUE | O23: 4 | P23: /F/D | Q23: =M33 -> 88 | R23: =Q33 -> 113 | S23: =U33 -> 180 | T23: =AC33 -> <min | U23: =Y33 ->  | V23: =AG33 ->  | W23: =AK33 ->  | X23: /Z
A24: #38 DDT gear | B24: =IF(OR(ISNUMBER(E21),ISNUMBER(E22),ISNUMBER(E23)),"PCN ("&E22&")","") ->  | D24: 2D/3D2B | E24: =IF($L$24,VLOOKUP($M$20,$O$20:$Y$27,9),"") ->  | I24: 2D/2D2 | L24: FALSE | O24: 5 | P24: /R/A | Q24: =AN33 -> 94 | R24: =AR33 -> 135 | S24: =AV33 -> 257 | T24: =BD33 -> 503 | U24: =AZ33 ->  | V24: =BH33 ->  | W24: =BL33 -> 
A25: #39 PCN | B25: =ROUND(B19,0)&R29&S29&T29 -> 35/R/D/X/T | K25: PCN Method | L25: 2 | M25: 2 | O25: 6 | P25: /R/B | Q25: =AO33 -> 93 | R25: =AS33 -> 126 | S25: =AW$33 -> 222 | T25: =BE$33 -> <min | U25: =BA33 ->  | V25: =BI33 ->  | W25: =BM33 -> 
K26: tire pressure | L26: 2 | O26: 7 | P26: /R/C | Q26: =AP33 -> 92 | R26: =AT33 -> 119 | S26: =AX33 -> 197 | T26: =BF$33 -> <min | U26: =BB33 ->  | V26: =BJ33 ->  | W26: =BN33 -> 
K27: PCN num. | L27: 77 | O27: 8 | P27: /R/D | Q27: =AQ33 -> 92 | R27: =AU33 -> 114 | S27: =AY33 -> 179 | T27: =BG$33 -> <min | U27: =BC33 ->  | V27: =BK33 ->  | W27: =BO33 -> 
A29: _ | D29: _ | O29: Field 39 | R29: =VLOOKUP($M$20,$O$20:$Y$27,2) -> /R/D | S29: =VLOOKUP($L$26,$O$20:$Y$27,10) -> /X | T29: =VLOOKUP($L$25,$O$20:$Y$27,11) -> /T
A30: Airport LOC-ID | B30: Pavement ID | D30: #35 S GW | E30: #36 D GW | F30: #37 DT GW | G30: #38 DDT GW | H30: #39 PCN
J32: 5010 GW data fit 8-26-11 | N32: 1
J33: =IF(AND(ISNUMBER(J34),J34>60),ROUNDDOWN(J34*$N$32,0),IF(J34=">max",120,J34)) -> 94 | K33: =IF(AND(ISNUMBER(K34),K34>60),ROUNDDOWN(K34*$N$32,0),IF(K34=">max",120,K34)) -> 89 | L33: =IF(AND(ISNUMBER(L34),L34>60),ROUNDDOWN(L34*$N$32,0),IF(L34=">max",120,L34)) -> 90 | M33: =IF(AND(ISNUMBER(M34),M34>60),ROUNDDOWN(M34*$N$32,0),IF(M34=">max",120,M34)) -> 88 | N33: =IF(AND(ISNUMBER(N34),N34>60),ROUNDDOWN(N34*$N$32,0),IF(N34=">max",250,N34)) -> 150 | O33: =IF(AND(ISNUMBER(O34),O34>60),ROUNDDOWN(O34*$N$32,0),IF(O34=">max",250,O34)) -> 142 | P33: =IF(AND(ISNUMBER(P34),P34>60),ROUNDDOWN(P34*$N$32,0),IF(P34=">max",250,P34)) -> 123 | Q33: =IF(AND(ISNUMBER(Q34),Q34>60),ROUNDDOWN(Q34*$N$32,0),IF(Q34=">max",250,Q34)) -> 113 | R33: =IF(AND(ISNUMBER(R34),R34>60),ROUNDDOWN(R34*$N$32,0),IF(R34=">max",550,R34)) -> 272 | S33: =IF(AND(ISNUMBER(S34),S34>60),ROUNDDOWN(S34*$N$32,0),IF(S34=">max",550,S34)) -> 242 | T33: =IF(AND(ISNUMBER(T34),T34>60),ROUNDDOWN(T34*$N$32,0),IF(T34=">max",550,T34)) -> 213 | U33: =IF(AND(ISNUMBER(U34),U34>60),ROUNDDOWN(U34*$N$32,0),IF(U34=">max",550,U34)) -> 180 | V33: =IF(AND(ISNUMBER(V34),V34>60),ROUNDDOWN(V34*$N$32,0),IF(V34=">max",1120,V34)) ->  | W33: =IF(AND(ISNUMBER(W34),W34>60),ROUNDDOWN(W34*$N$32,0),IF(W34=">max",1120,W34)) ->  | X33: =IF(AND(ISNUMBER(X34),X34>60),ROUNDDOWN(X34*$N$32,0),IF(X34=">max",1120,X34)) ->  | Y33: =IF(AND(ISNUMBER(Y34),Y34>60),ROUNDDOWN(Y34*$N$32,0),IF(Y34=">max",1120,Y34)) ->  | Z33: =IF(AND(ISNUMBER(Z34),Z34>60),ROUNDDOWN(Z34*$N$32,0),IF(Z34=">max",840,Z34)) -> 513 | AA33: =IF(AND(ISNUMBER(AA34),AA34>60),ROUNDDOWN(AA34*$N$32,0),IF(AA34=">max",840,AA34)) -> 482 | AB33: =IF(AND(ISNUMBER(AB34),AB34>60),ROUNDDOWN(AB34*$N$32,0),IF(AB34=">max",840,AB34)) -> <min | AC33: =IF(AND(ISNUMBER(AC34),AC34>60),ROUNDDOWN(AC34*$N$32,0),IF(AC34=">max",840,AC34)) -> <min | AD33: =IF(AND(ISNUMBER(AD34),AD34>60),ROUNDDOWN(AD34*$N$32,0),IF(AD34=">max",1400,AD34)) ->  | AM33: =IF(AM34="n/a","n/a",IF(AM34>60,ROUNDDOWN(AM34*$N$32,0),AM34)) -> 331 | AN33: =IF(AND(ISNUMBER(AN34),AN34>60),ROUNDDOWN(AN34*$N$32,0),IF(AN34=">max",120,AN34)) -> 94 | AO33: =IF(AND(ISNUMBER(AO34),AO34>60),ROUNDDOWN(AO34*$N$32,0),IF(AO34=">max",120,AO34)) -> 93 | AP33: =IF(AND(ISNUMBER(AP34),AP34>60),ROUNDDOWN(AP34*$N$32,0),IF(AP34=">max",120,AP34)) -> 92 | AQ33: =IF(AND(ISNUMBER(AQ34),AQ34>60),ROUNDDOWN(AQ34*$N$32,0),IF(AQ34=">max",120,AQ34)) -> 92 | AR33: =IF(AND(ISNUMBER(AR34),AR34>60),ROUNDDOWN(AR34*$N$32,0),IF(AR34=">max",250,AR34)) -> 135 | AS33: =IF(AND(ISNUMBER(AS34),AS34>60),ROUNDDOWN(AS34*$N$32,0),IF(AS34=">max",250,AS34)) -> 126 | AT33: =IF(AND(ISNUMBER(AT34),AT34>60),ROUNDDOWN(AT34*$N$32,0),IF(AT34=">max",250,AT34)) -> 119 | AU33: =IF(AND(ISNUMBER(AU34),AU34>60),ROUNDDOWN(AU34*$N$32,0),IF(AU34=">max",250,AU34)) -> 114 | AV33: =IF(AND(ISNUMBER(AV34),AV34>60),ROUNDDOWN(AV34*$N$32,0),IF(AV34=">max",550,AV34)) -> 257 | AW33: =IF(AND(ISNUMBER(AW34),AW34>60),ROUNDDOWN(AW34*$N$32,0),IF(AW34=">max",550,AW34)) -> 222 | AX33: =IF(AND(ISNUMBER(AX34),AX34>60),ROUNDDOWN(AX34*$N$32,0),IF(AX34=">max",550,AX34)) -> 197 | AY33: =IF(AND(ISNUMBER(AY34),AY34>60),ROUNDDOWN(AY34*$N$32,0),IF(AY34=">max",550,AY34)) -> 179 | AZ33: =IF(AND(ISNUMBER(AZ34),AZ34>60),ROUNDDOWN(AZ34*$N$32,0),IF(AZ34=">max",1120,AZ34)) ->  | BA33: =IF(AND(ISNUMBER(BA34),BA34>60),ROUNDDOWN(BA34*$N$32,0),IF(BA34=">max",1120,BA34)) ->  | BB33: =IF(AND(ISNUMBER(BB34),BB34>60),ROUNDDOWN(BB34*$N$32,0),IF(BB34=">max",1120,BB34)) ->  | BC33: =IF(AND(ISNUMBER(BC34),BC34>60),ROUNDDOWN(BC34*$N$32,0),IF(BC34=">max",1120,BC34)) ->  | BD33: =IF(AND(ISNUMBER(BD34),BD34>60),ROUNDDOWN(BD34*$N$32,0),IF(BD34=">max",840,BD34)) -> 503 | BE33: =IF(AND(ISNUMBER(BE34),BE34>60),ROUNDDOWN(BE34*$N$32,0),IF(BE34=">max",840,BE34)) -> <min | BF33: =IF(AND(ISNUMBER(BF34),BF34>60),ROUNDDOWN(BF34*$N$32,0),IF(BF34=">max",840,BF34)) -> <min | BG33: =IF(AND(ISNUMBER(BG34),BG34>60),ROUNDDOWN(BG34*$N$32,0),IF(BG34=">max",840,BG34)) -> <min | BH33: =IF(AND(ISNUMBER(BH34),BH34>60),ROUNDDOWN(BH34*$N$32,0),IF(BH34=">max",1400,BH34)) -> 
I34: =MATCH($K$20,$I$39:$I$1769) -> 331 | J34: =IF($L20,INDEX(J39:J1769,$I$34,1),"") -> 94 | K34: =IF($L20,INDEX(K39:K1769,$I$34,1),"") -> 89.5 | L34: =IF($L20,INDEX(L39:L1769,$I$34,1),"") -> 90 | M34: =IF($L20,INDEX(M39:M1769,$I$34,1),"") -> 88 | N34: =IF($L21,INDEX(N39:N1769,$I$34,1),"") -> 150 | O34: =IF($L21,INDEX(O39:O1769,$I$34,1),"") -> 142.5 | P34: =IF($L21,INDEX(P39:P1769,$I$34,1),"") -> 123.5 | Q34: =IF($L21,INDEX(Q39:Q1769,$I$34,1),"") -> 113.5 | R34: =IF($L22,INDEX(R39:R1769,$I$34,1),"") -> 272 | S34: =IF($L22,INDEX(S39:S1769,$I$34,1),"") -> 242 | T34: =IF($L22,INDEX(T39:T1769,$I$34,1),"") -> 213 | U34: =IF($L22,INDEX(U39:U1769,$I$34,1),"") -> 180 | V34: =IF($L24,INDEX(V39:V1769,$I$34,1),"") ->  | W34: =IF($L24,INDEX(W39:W1769,$I$34,1),"") ->  | X34: =IF($L24,INDEX(X39:X1769,$I$34,1),"") ->  | Y34: =IF($L24,INDEX(Y39:Y1769,$I$34,1),"") ->  | Z34: =IF($L23,INDEX(Z39:Z1769,$I$34,1),"") -> 513.5 | AA34: =IF($L23,INDEX(AA39:AA1769,$I$34,1),"") -> 482 | AB34: =IF($L23,INDEX(AB39:AB1769,$I$34,1),"") -> <min | AC34: =IF($L23,INDEX(AC39:AC1769,$I$34,1),"") -> <min | AD34: =IF($L24,INDEX(AD39:AD1769,$I$34,1),"") ->  | AM34: =MATCH($K$20,$AM$39:$AM$1769) -> 331 | AN34: =IF($L20,INDEX(AN39:AN1769,$AM$34,1),"") -> 94.5 | AO34: =IF($L20,INDEX(AO39:AO1769,$AM$34,1),"") -> 93.5 | AP34: =IF($L20,INDEX(AP39:AP1769,$AM$34,1),"") -> 92.5 | AQ34: =IF($L20,INDEX(AQ39:AQ1769,$AM$34,1),"") -> 92 | AR34: =IF($L21,INDEX(AR39:AR1769,$AM$34,1),"") -> 135 | AS34: =IF($L21,INDEX(AS39:AS1769,$AM$34,1),"") -> 126 | AT34: =IF($L21,INDEX(AT39:AT1769,$AM$34,1),"") -> 119 | AU34: =IF($L21,INDEX(AU39:AU1769,$AM$34,1),"") -> 114 | AV34: =IF($L22,INDEX(AV39:AV1769,$AM$34,1),"") -> 257 | AW34: =IF($L22,INDEX(AW39:AW1769,$AM$34,1),"") -> 222.5 | AX34: =IF($L22,INDEX(AX39:AX1769,$AM$34,1),"") -> 197 | AY34: =IF($L22,INDEX(AY39:AY1769,$AM$34,1),"") -> 179.5 | AZ34: =IF($L24,INDEX(AZ39:AZ1769,$AM$34,1),"") ->  | BA34: =IF($L24,INDEX(BA39:BA1769,$AM$34,1),"") ->  | BB34: =IF($L24,INDEX(BB39:BB1769,$AM$34,1),"") ->  | BC34: =IF($L24,INDEX(BC39:BC1769,$AM$34,1),"") ->  | BD34: =IF($L23,INDEX(BD39:BD1769,$AM$34,1),"") -> 503 | BE34: =IF($L23,INDEX(BE39:BE1769,$AM$34,1),"") -> <min | BF34: =IF($L23,INDEX(BF39:BF1769,$AM$34,1),"") -> <min | BG34: =IF($L23,INDEX(BG39:BG1769,$AM$34,1),"") -> <min | BH34: =IF($L24,INDEX(BH39:BH1769,$AM$34,1),"") -> 
J35: Flexible | L35: Gear | N35: Flexible | P35: Gear | R35: Flexible | T35: Gear | V35: Flexible | X35: Gear | Z35: Flexible | AB35: Gear | AD35: Flexible | AF35: Gear | AH35: Flexible | AJ35: Gear | AN35: Rigid | AR35: Rigid | AV35: Rigid | AZ35: Rigid | BD35: Rigid | BH35: Rigid | BL35: Rigid
J36: S | K36: S | L36: S | M36: S | N36: D | O36: D | P36: D | Q36: D(3) | R36: 2D | S36: 2D | T36: 2D | U36: 2D | V36: 2D2D2 | W36: 2D2D2 | X36: 2D2D2 | Y36: 2D2D2 | Z36: 3D | AA36: 3D | AB36: 3D | AC36: 3D | AD36: 2D3D2W | AE36: 2D3D2W | AF36: 2D3D2W | AG36: 2D3D2W | AH36: 2D3D2B | AI36: 2D3D2B | AJ36: 2D3D2B | AK36: 2D3D2B | AN36: S | AO36: S | AP36: S | AQ36: S | AR36: D | AS36: D | AT36: D | AU36: D(3) | AV36: 2D | AW36: 2D | AX36: 2D | AY36: 2D | AZ36: 2D2 | BA36: 2D2 | BB36: 2D2 | BC36: 2D2 | BD36: 3D | BE36: 3D | BF36: 3D | BG36: 3D | BH36: 2D3D2W | BI36: 2D3D2W | BJ36: 2D3D2W | BK36: 2D3D2W | BL36: 2D3D2B | BM36: 2D3D2B | BN36: 2D3D2B | BO36: 2D3D2B
I37: PCN | J37: A(15) | K37: B(10) | L37: C(6) | M37: D(3) | N37: A(15) | O37: B(10) | P37: C(6) | Q37: D(3) | R37: A(15) | S37: B(10) | T37: C(6) | U37: D(3) | V37: A(15) | W37: B(10) | X37: C(6) | Y37: D(3) | Z37: A(15) | AA37: B(10) | AB37: C(6) | AC37: D(3) | AD37: A(15) | AE37: B(10) | AF37: C(6) | AG37: D(3) | AH37: A(15) | AI37: B(10) | AJ37: C(6) | AK37: D(3) | AM37: PCN | AN37: A(552) | AO37: B(295) | AP37: C(147) | AQ37: D(74) | AR37: A(552) | AS37: B(295) | AT37: C(147) | AU37: D(74) | AV37: A(552) | AW37: B(295) | AX37: C(147) | AY37: D(74) | AZ37: A(552) | BA37: B(295) | BB37: C(147) | BC37: D(74) | BD37: A(552) | BE37: B(295) | BF37: C(147) | BG37: D(74) | BH37: A(552) | BI37: B(295) | BJ37: C(147) | BK37: D(74) | BL37: A(552) | BM37: B(295) | BN37: C(147) | BO37: D(74)
I39: 2 | J39: <min | K39: <min | L39: <min | M39: <min | N39: <min | O39: <min | P39: <min | Q39: <min | R39: <min | S39: <min | T39: <min | U39: <min | V39: <min | W39: <min | X39: <min | Y39: <min | Z39: <min | AA39: <min | AB39: <min | AC39: <min | AD39: <min | AE39: <min | AF39: <min | AG39: <min | AH39: <min | AI39: <min | AJ39: <min | AK39: <min | AM39: 2 | AN39: <min | AO39: <min | AP39: <min | AQ39: <min | AR39: <min | AS39: <min | AT39: <min | AU39: <min | AV39: <min | AW39: <min | AX39: <min | AY39: <min | AZ39: <min | BA39: <min | BB39: <min | BC39: <min | BD39: <min | BE39: <min | BF39: <min | BG39: <min | BH39: <min | BI39: <min | BJ39: <min | BK39: <min | BL39: <min | BM39: <min | BN39: <min | BO39: <min
I40: 2.1 | J40: <min | K40: <min | L40: <min | M40: <min | N40: <min | O40: <min | P40: <min | Q40: <min | R40: <min | S40: <min | T40: <min | U40: <min | V40: <min | W40: <min | X40: <min | Y40: <min | Z40: <min | AA40: <min | AB40: <min | AC40: <min | AD40: <min | AE40: <min | AF40: <min | AG40: <min | AH40: <min | AI40: <min | AJ40: <min | AK40: <min | AM40: 2.1 | AN40: <min | AO40: <min | AP40: <min | AQ40: <min | AR40: <min | AS40: <min | AT40: <min | AU40: <min | AV40: <min | AW40: <min | AX40: <min | AY40: <min | AZ40: <min | BA40: <min | BB40: <min | BC40: <min | BD40: <min | BE40: <min | BF40: <min | BG40: <min | BH40: <min | BI40: <min | BJ40: <min | BK40: <min | BL40: <min | BM40: <min | BN40: <min | BO40: <min
I41: 2.2 | J41: <min | K41: <min | L41: <min | M41: <min | N41: <min | O41: <min | P41: <min | Q41: <min | R41: <min | S41: <min | T41: <min | U41: <min | V41: <min | W41: <min | X41: <min | Y41: <min | Z41: <min | AA41: <min | AB41: <min | AC41: <min | AD41: <min | AE41: <min | AF41: <min | AG41: <min | AH41: <min | AI41: <min | AJ41: <min | AK41: <min | AM41: 2.2 | AN41: <min | AO41: <min | AP41: <min | AQ41: <min | AR41: <min | AS41: <min | AT41: <min | AU41: <min | AV41: <min | AW41: <min | AX41: <min | AY41: <min | AZ41: <min | BA41: <min | BB41: <min | BC41: <min | BD41: <min | BE41: <min | BF41: <min | BG41: <min | BH41: <min | BI41: <min | BJ41: <min | BK41: <min | BL41: <min | BM41: <min | BN41: <min | BO41: <min
I42: 2.3 | J42: <min | K42: <min | L42: <min | M42: <min | N42: <min | O42: <min | P42: <min | Q42: <min | R42: <min | S42: <min | T42: <min | U42: <min | V42: <min | W42: <min | X42: <min | Y42: <min | Z42: <min | AA42: <min | AB42: <min | AC42: <min | AD42: <min | AE42: <min | AF42: <min | AG42: <min | AH42: <min | AI42: <min | AJ42: <min | AK42: <min | AM42: 2.3 | AN42: <min | AO42: <min | AP42: <min | AQ42: <min | AR42: <min | AS42: <min | AT42: <min | AU42: <min | AV42: <min | AW42: <min | AX42: <min | AY42: <min | AZ42: <min | BA42: <min | BB42: <min | BC42: <min | BD42: <min | BE42: <min | BF42: <min | BG42: <min | BH42: <min | BI42: <min | BJ42: <min | BK42: <min | BL42: <min | BM42: <min | BN42: <min | BO42: <min
I43: 2.4 | J43: 12.5 | K43: <min | L43: <min | M43: <min | N43: <min | O43: <min | P43: <min | Q43: <min | R43: <min | S43: <min | T43: <min | U43: <min | V43: <min | W43: <min | X43: <min | Y43: <min | Z43: <min | AA43: <min | AB43: <min | AC43: <min | AD43: <min | AE43: <min | AF43: <min | AG43: <min | AH43: <min | AI43: <min | AJ43: <min | AK43: <min | AM43: 2.4 | AN43: <min | AO43: <min | AP43: <min | AQ43: <min | AR43: <min | AS43: <min | AT43: <min | AU43: <min | AV43: <min | AW43: <min | AX43: <min | AY43: <min | AZ43: <min | BA43: <min | BB43: <min | BC43: <min | BD43: <min | BE43: <min | BF43: <min | BG43: <min | BH43: <min | BI43: <min | BJ43: <min | BK43: <min | BL43: <min | BM43: <min | BN43: <min | BO43: <min
I44: 2.5 | J44: 13 | K44: <min | L44: <min | M44: <min | N44: <min | O44: <min | P44: <min | Q44: <min | R44: <min | S44: <min | T44: <min | U44: <min | V44: <min | W44: <min | X44: <min | Y44: <min | Z44: <min | AA44: <min | AB44: <min | AC44: <min | AD44: <min | AE44: <min | AF44: <min | AG44: <min | AH44: <min | AI44: <min | AJ44: <min | AK44: <min | AM44: 2.5 | AN44: <min | AO44: <min | AP44: <min | AQ44: <min | AR44: <min | AS44: <min | AT44: <min | AU44: <min | AV44: <min | AW44: <min | AX44: <min | AY44: <min | AZ44: <min | BA44: <min | BB44: <min | BC44: <min | BD44: <min | BE44: <min | BF44: <min | BG44: <min | BH44: <min | BI44: <min | BJ44: <min | BK44: <min | BL44: <min | BM44: <min | BN44: <min | BO44: <min
I45: 2.6 | J45: 13.5 | K45: <min | L45: <min | M45: <min | N45: <min | O45: <min | P45: <min | Q45: <min | R45: <min | S45: <min | T45: <min | U45: <min | V45: <min | W45: <min | X45: <min | Y45: <min | Z45: <min | AA45: <min | AB45: <min | AC45: <min | AD45: <min | AE45: <min | AF45: <min | AG45: <min | AH45: <min | AI45: <min | AJ45: <min | AK45: <min | AM45: 2.6 | AN45: <min | AO45: <min | AP45: <min | AQ45: <min | AR45: <min | AS45: <min | AT45: <min | AU45: <min | AV45: <min | AW45: <min | AX45: <min | AY45: <min | AZ45: <min | BA45: <min | BB45: <min | BC45: <min | BD45: <min | BE45: <min | BF45: <min | BG45: <min | BH45: <min | BI45: <min | BJ45: <min | BK45: <min | BL45: <min | BM45: <min | BN45: <min | BO45: <min
I46: 2.7 | J46: 13.5 | K46: <min | L46: <min | M46: <min | N46: <min | O46: <min | P46: <min | Q46: <min | R46: <min | S46: <min | T46: <min | U46: <min | V46: <min | W46: <min | X46: <min | Y46: <min | Z46: <min | AA46: <min | AB46: <min | AC46: <min | AD46: <min | AE46: <min | AF46: <min | AG46: <min | AH46: <min | AI46: <min | AJ46: <min | AK46: <min | AM46: 2.7 | AN46: <min | AO46: <min | AP46: <min | AQ46: <min | AR46: <min | AS46: <min | AT46: <min | AU46: <min | AV46: <min | AW46: <min | AX46: <min | AY46: <min | AZ46: <min | BA46: <min | BB46: <min | BC46: <min | BD46: <min | BE46: <min | BF46: <min | BG46: <min | BH46: <min | BI46: <min | BJ46: <min | BK46: <min | BL46: <min | BM46: <min | BN46: <min | BO46: <min
I47: 2.8 | J47: 14 | K47: <min | L47: <min | M47: <min | N47: <min | O47: <min | P47: <min | Q47: <min | R47: <min | S47: <min | T47: <min | U47: <min | V47: <min | W47: <min | X47: <min | Y47: <min | Z47: <min | AA47: <min | AB47: <min | AC47: <min | AD47: <min | AE47: <min | AF47: <min | AG47: <min | AH47: <min | AI47: <min | AJ47: <min | AK47: <min | AM47: 2.8 | AN47: <min | AO47: <min | AP47: <min | AQ47: <min | AR47: <min | AS47: <min | AT47: <min | AU47: <min | AV47: <min | AW47: <min | AX47: <min | AY47: <min | AZ47: <min | BA47: <min | BB47: <min | BC47: <min | BD47: <min | BE47: <min | BF47: <min | BG47: <min | BH47: <min | BI47: <min | BJ47: <min | BK47: <min | BL47: <min | BM47: <min | BN47: <min | BO47: <min
I48: 2.9 | J48: 14.5 | K48: <min | L48: <min | M48: <min | N48: <min | O48: <min | P48: <min | Q48: <min | R48: <min | S48: <min | T48: <min | U48: <min | V48: <min | W48: <min | X48: <min | Y48: <min | Z48: <min | AA48: <min | AB48: <min | AC48: <min | AD48: <min | AE48: <min | AF48: <min | AG48: <min | AH48: <min | AI48: <min | AJ48: <min | AK48: <min | AM48: 2.9 | AN48: <min | AO48: <min | AP48: <min | AQ48: <min | AR48: <min | AS48: <min | AT48: <min | AU48: <min | AV48: <min | AW48: <min | AX48: <min | AY48: <min | AZ48: <min | BA48: <min | BB48: <min | BC48: <min | BD48: <min | BE48: <min | BF48: <min | BG48: <min | BH48: <min | BI48: <min | BJ48: <min | BK48: <min | BL48: <min | BM48: <min | BN48: <min | BO48: <min
I49: 3 | J49: 15 | K49: <min | L49: <min | M49: <min | N49: <min | O49: <min | P49: <min | Q49: <min | R49: <min | S49: <min | T49: <min | U49: <min | V49: <min | W49: <min | X49: <min | Y49: <min | Z49: <min | AA49: <min | AB49: <min | AC49: <min | AD49: <min | AE49: <min | AF49: <min | AG49: <min | AH49: <min | AI49: <min | AJ49: <min | AK49: <min | AM49: 3 | AN49: <min | AO49: <min | AP49: <min | AQ49: <min | AR49: <min | AS49: <min | AT49: <min | AU49: <min | AV49: <min | AW49: <min | AX49: <min | AY49: <min | AZ49: <min | BA49: <min | BB49: <min | BC49: <min | BD49: <min | BE49: <min | BF49: <min | BG49: <min | BH49: <min | BI49: <min | BJ49: <min | BK49: <min | BL49: <min | BM49: <min | BN49: <min | BO49: <min
I50: 3.1 | J50: 15.5 | K50: <min | L50: <min | M50: <min | N50: <min | O50: <min | P50: <min | Q50: <min | R50: <min | S50: <min | T50: <min | U50: <min | V50: <min | W50: <min | X50: <min | Y50: <min | Z50: <min | AA50: <min | AB50: <min | AC50: <min | AD50: <min | AE50: <min | AF50: <min | AG50: <min | AH50: <min | AI50: <min | AJ50: <min | AK50: <min | AM50: 3.1 | AN50: <min | AO50: <min | AP50: <min | AQ50: <min | AR50: <min | AS50: <min | AT50: <min | AU50: <min | AV50: <min | AW50: <min | AX50: <min | AY50: <min | AZ50: <min | BA50: <min | BB50: <min | BC50: <min | BD50: <min | BE50: <min | BF50: <min | BG50: <min | BH50: <min | BI50: <min | BJ50: <min | BK50: <min | BL50: <min | BM50: <min | BN50: <min | BO50: <min
I51: 3.2 | J51: 16 | K51: 12.5 | L51: <min | M51: <min | N51: <min | O51: <min | P51: <min | Q51: <min | R51: <min | S51: <min | T51: <min | U51: <min | V51: <min | W51: <min | X51: <min | Y51: <min | Z51: <min | AA51: <min | AB51: <min | AC51: <min | AD51: <min | AE51: <min | AF51: <min | AG51: <min | AH51: <min | AI51: <min | AJ51: <min | AK51: <min | AM51: 3.2 | AN51: <min | AO51: <min | AP51: <min | AQ51: <min | AR51: <min | AS51: <min | AT51: <min | AU51: <min | AV51: <min | AW51: <min | AX51: <min | AY51: <min | AZ51: <min | BA51: <min | BB51: <min | BC51: <min | BD51: <min | BE51: <min | BF51: <min | BG51: <min | BH51: <min | BI51: <min | BJ51: <min | BK51: <min | BL51: <min | BM51: <min | BN51: <min | BO51: <min
I52: 3.3 | J52: 16 | K52: 12.5 | L52: <min | M52: <min | N52: <min | O52: <min | P52: <min | Q52: <min | R52: <min | S52: <min | T52: <min | U52: <min | V52: <min | W52: <min | X52: <min | Y52: <min | Z52: <min | AA52: <min | AB52: <min | AC52: <min | AD52: <min | AE52: <min | AF52: <min | AG52: <min | AH52: <min | AI52: <min | AJ52: <min | AK52: <min | AM52: 3.3 | AN52: <min | AO52: <min | AP52: <min | AQ52: <min | AR52: <min | AS52: <min | AT52: <min | AU52: <min | AV52: <min | AW52: <min | AX52: <min | AY52: <min | AZ52: <min | BA52: <min | BB52: <min | BC52: <min | BD52: <min | BE52: <min | BF52: <min | BG52: <min | BH52: <min | BI52: <min | BJ52: <min | BK52: <min | BL52: <min | BM52: <min | BN52: <min | BO52: <min
I53: 3.4 | J53: 16.5 | K53: 13 | L53: <min | M53: <min | N53: <min | O53: <min | P53: <min | Q53: <min | R53: <min | S53: <min | T53: <min | U53: <min | V53: <min | W53: <min | X53: <min | Y53: <min | Z53: <min | AA53: <min | AB53: <min | AC53: <min | AD53: <min | AE53: <min | AF53: <min | AG53: <min | AH53: <min | AI53: <min | AJ53: <min | AK53: <min | AM53: 3.4 | AN53: 12.5 | AO53: <min | AP53: <min | AQ53: <min | AR53: <min | AS53: <min | AT53: <min | AU53: <min | AV53: <min | AW53: <min | AX53: <min | AY53: <min | AZ53: <min | BA53: <min | BB53: <min | BC53: <min | BD53: <min | BE53: <min | BF53: <min | BG53: <min | BH53: <min | BI53: <min | BJ53: <min | BK53: <min | BL53: <min | BM53: <min | BN53: <min | BO53: <min
I54: 3.5 | J54: 17 | K54: 13.5 | L54: <min | M54: <min | N54: <min | O54: <min | P54: <min | Q54: <min | R54: <min | S54: <min | T54: <min | U54: <min | V54: <min | W54: <min | X54: <min | Y54: <min | Z54: <min | AA54: <min | AB54: <min | AC54: <min | AD54: <min | AE54: <min | AF54: <min | AG54: <min | AH54: <min | AI54: <min | AJ54: <min | AK54: <min | AM54: 3.5 | AN54: 13 | AO54: 12.5 | AP54: <min | AQ54: <min | AR54: <min | AS54: <min | AT54: <min | AU54: <min | AV54: <min | AW54: <min | AX54: <min | AY54: <min | AZ54: <min | BA54: <min | BB54: <min | BC54: <min | BD54: <min | BE54: <min | BF54: <min | BG54: <min | BH54: <min | BI54: <min | BJ54: <min | BK54: <min | BL54: <min | BM54: <min | BN54: <min | BO54: <min
I55: 3.6 | J55: 17.5 | K55: 13.5 | L55: <min | M55: <min | N55: <min | O55: <min | P55: <min | Q55: <min | R55: <min | S55: <min | T55: <min | U55: <min | V55: <min | W55: <min | X55: <min | Y55: <min | Z55: <min | AA55: <min | AB55: <min | AC55: <min | AD55: <min | AE55: <min | AF55: <min | AG55: <min | AH55: <min | AI55: <min | AJ55: <min | AK55: <min | AM55: 3.6 | AN55: 13 | AO55: 12.5 | AP55: <min | AQ55: <min | AR55: <min | AS55: <min | AT55: <min | AU55: <min | AV55: <min | AW55: <min | AX55: <min | AY55: <min | AZ55: <min | BA55: <min | BB55: <min | BC55: <min | BD55: <min | BE55: <min | BF55: <min | BG55: <min | BH55: <min | BI55: <min | BJ55: <min | BK55: <min | BL55: <min | BM55: <min | BN55: <min | BO55: <min
I56: 3.7 | J56: 17.5 | K56: 14 | L56: <min | M56: <min | N56: <min | O56: <min | P56: <min | Q56: <min | R56: <min | S56: <min | T56: <min | U56: <min | V56: <min | W56: <min | X56: <min | Y56: <min | Z56: <min | AA56: <min | AB56: <min | AC56: <min | AD56: <min | AE56: <min | AF56: <min | AG56: <min | AH56: <min | AI56: <min | AJ56: <min | AK56: <min | AM56: 3.7 | AN56: 13.5 | AO56: 13 | AP56: 12.5 | AQ56: 12.5 | AR56: <min | AS56: <min | AT56: <min | AU56: <min | AV56: <min | AW56: <min | AX56: <min | AY56: <min | AZ56: <min | BA56: <min | BB56: <min | BC56: <min | BD56: <min | BE56: <min | BF56: <min | BG56: <min | BH56: <min | BI56: <min | BJ56: <min | BK56: <min | BL56: <min | BM56: <min | BN56: <min | BO56: <min
I57: 3.8 | J57: 18 | K57: 14.5 | L57: <min | M57: <min | N57: <min | O57: <min | P57: <min | Q57: <min | R57: <min | S57: <min | T57: <min | U57: <min | V57: <min | W57: <min | X57: <min | Y57: <min | Z57: <min | AA57: <min | AB57: <min | AC57: <min | AD57: <min | AE57: <min | AF57: <min | AG57: <min | AH57: <min | AI57: <min | AJ57: <min | AK57: <min | AM57: 3.8 | AN57: 14 | AO57: 13.5 | AP57: 12.5 | AQ57: 13 | AR57: <min | AS57: <min | AT57: <min | AU57: <min | AV57: <min | AW57: <min | AX57: <min | AY57: <min | AZ57: <min | BA57: <min | BB57: <min | BC57: <min | BD57: <min | BE57: <min | BF57: <min | BG57: <min | BH57: <min | BI57: <min | BJ57: <min | BK57: <min | BL57: <min | BM57: <min | BN57: <min | BO57: <min
I58: 3.9 | J58: 18.5 | K58: 14.5 | L58: <min | M58: <min | N58: <min | O58: <min | P58: <min | Q58: <min | R58: <min | S58: <min | T58: <min | U58: <min | V58: <min | W58: <min | X58: <min | Y58: <min | Z58: <min | AA58: <min | AB58: <min | AC58: <min | AD58: <min | AE58: <min | AF58: <min | AG58: <min | AH58: <min | AI58: <min | AJ58: <min | AK58: <min | AM58: 3.9 | AN58: 14.5 | AO58: 13.5 | AP58: 13 | AQ58: 13 | AR58: <min | AS58: <min | AT58: <min | AU58: <min | AV58: <min | AW58: <min | AX58: <min | AY58: <min | AZ58: <min | BA58: <min | BB58: <min | BC58: <min | BD58: <min | BE58: <min | BF58: <min | BG58: <min | BH58: <min | BI58: <min | BJ58: <min | BK58: <min | BL58: <min | BM58: <min | BN58: <min | BO58: <min
I59: 4 | J59: 19 | K59: 15 | L59: 12.5 | M59: <min | N59: <min | O59: <min | P59: <min | Q59: <min | R59: <min | S59: <min | T59: <min | U59: <min | V59: <min | W59: <min | X59: <min | Y59: <min | Z59: <min | AA59: <min | AB59: <min | AC59: <min | AD59: <min | AE59: <min | AF59: <min | AG59: <min | AH59: <min | AI59: <min | AJ59: <min | AK59: <min | AM59: 4 | AN59: 14.5 | AO59: 14 | AP59: 13.5 | AQ59: 13.5 | AR59: <min | AS59: <min | AT59: <min | AU59: <min | AV59: <min | AW59: <min | AX59: <min | AY59: <min | AZ59: <min | BA59: <min | BB59: <min | BC59: <min | BD59: <min | BE59: <min | BF59: <min | BG59: <min | BH59: <min | BI59: <min | BJ59: <min | BK59: <min | BL59: <min | BM59: <min | BN59: <min | BO59: <min
I60: 4.1 | J60: 19 | K60: 15.5 | L60: 12.5 | M60: <min | N60: <min | O60: <min | P60: <min | Q60: <min | R60: <min | S60: <min | T60: <min | U60: <min | V60: <min | W60: <min | X60: <min | Y60: <min | Z60: <min | AA60: <min | AB60: <min | AC60: <min | AD60: <min | AE60: <min | AF60: <min | AG60: <min | AH60: <min | AI60: <min | AJ60: <min | AK60: <min | AM60: 4.1 | AN60: 15 | AO60: 14.5 | AP60: 13.5 | AQ60: 14 | AR60: <min | AS60: <min | AT60: <min | AU60: <min | AV60: <min | AW60: <min | AX60: <min | AY60: <min | AZ60: <min | BA60: <min | BB60: <min | BC60: <min | BD60: <min | BE60: <min | BF60: <min | BG60: <min | BH60: <min | BI60: <min | BJ60: <min | BK60: <min | BL60: <min | BM60: <min | BN60: <min | BO60: <min
I61: 4.2 | J61: 19.5 | K61: 15.5 | L61: 13 | M61: <min | N61: <min | O61: <min | P61: <min | Q61: <min | R61: <min | S61: <min | T61: <min | U61: <min | V61: <min | W61: <min | X61: <min | Y61: <min | Z61: <min | AA61: <min | AB61: <min | AC61: <min | AD61: <min | AE61: <min | AF61: <min | AG61: <min | AH61: <min | AI61: <min | AJ61: <min | AK61: <min | AM61: 4.2 | AN61: 15.5 | AO61: 14.5 | AP61: 14 | AQ61: 14 | AR61: <min | AS61: <min | AT61: <min | AU61: <min | AV61: <min | AW61: <min | AX61: <min | AY61: <min | AZ61: <min | BA61: <min | BB61: <min | BC61: <min | BD61: <min | BE61: <min | BF61: <min | BG61: <min | BH61: <min | BI61: <min | BJ61: <min | BK61: <min | BL61: <min | BM61: <min | BN61: <min | BO61: <min
I62: 4.3 | J62: 20 | K62: 16 | L62: 13.5 | M62: <min | N62: <min | O62: <min | P62: <min | Q62: <min | R62: <min | S62: <min | T62: <min | U62: <min | V62: <min | W62: <min | X62: <min | Y62: <min | Z62: <min | AA62: <min | AB62: <min | AC62: <min | AD62: <min | AE62: <min | AF62: <min | AG62: <min | AH62: <min | AI62: <min | AJ62: <min | AK62: <min | AM62: 4.3 | AN62: 15.5 | AO62: 15 | AP62: 14.5 | AQ62: 14.5 | AR62: <min | AS62: <min | AT62: <min | AU62: <min | AV62: <min | AW62: <min | AX62: <min | AY62: <min | AZ62: <min | BA62: <min | BB62: <min | BC62: <min | BD62: <min | BE62: <min | BF62: <min | BG62: <min | BH62: <min | BI62: <min | BJ62: <min | BK62: <min | BL62: <min | BM62: <min | BN62: <min | BO62: <min
I63: 4.4 | J63: 20 | K63: 16.5 | L63: 13.5 | M63: <min | N63: <min | O63: <min | P63: <min | Q63: <min | R63: <min | S63: <min | T63: <min | U63: <min | V63: <min | W63: <min | X63: <min | Y63: <min | Z63: <min | AA63: <min | AB63: <min | AC63: <min | AD63: <min | AE63: <min | AF63: <min | AG63: <min | AH63: <min | AI63: <min | AJ63: <min | AK63: <min | AM63: 4.4 | AN63: 16 | AO63: 15.5 | AP63: 14.5 | AQ63: 14.5 | AR63: <min | AS63: <min | AT63: <min | AU63: <min | AV63: <min | AW63: <min | AX63: <min | AY63: <min | AZ63: <min | BA63: <min | BB63: <min | BC63: <min | BD63: <min | BE63: <min | BF63: <min | BG63: <min | BH63: <min | BI63: <min | BJ63: <min | BK63: <min | BL63: <min | BM63: <min | BN63: <min | BO63: <min
I64: 4.5 | J64: 20.5 | K64: 16.5 | L64: 14 | M64: 12.5 | N64: <min | O64: <min | P64: <min | Q64: <min | R64: <min | S64: <min | T64: <min | U64: <min | V64: <min | W64: <min | X64: <min | Y64: <min | Z64: <min | AA64: <min | AB64: <min | AC64: <min | AD64: <min | AE64: <min | AF64: <min | AG64: <min | AH64: <min | AI64: <min | AJ64: <min | AK64: <min | AM64: 4.5 | AN64: 16.5 | AO64: 15.5 | AP64: 15 | AQ64: 15 | AR64: <min | AS64: <min | AT64: <min | AU64: <min | AV64: <min | AW64: <min | AX64: <min | AY64: <min | AZ64: <min | BA64: <min | BB64: <min | BC64: <min | BD64: <min | BE64: <min | BF64: <min | BG64: <min | BH64: <min | BI64: <min | BJ64: <min | BK64: <min | BL64: <min | BM64: <min | BN64: <min | BO64: <min
I65: 4.6 | J65: 21 | K65: 17 | L65: 14 | M65: 12.5 | N65: <min | O65: <min | P65: <min | Q65: <min | R65: <min | S65: <min | T65: <min | U65: <min | V65: <min | W65: <min | X65: <min | Y65: <min | Z65: <min | AA65: <min | AB65: <min | AC65: <min | AD65: <min | AE65: <min | AF65: <min | AG65: <min | AH65: <min | AI65: <min | AJ65: <min | AK65: <min | AM65: 4.6 | AN65: 16.5 | AO65: 16 | AP65: 15.5 | AQ65: 15.5 | AR65: <min | AS65: <min | AT65: <min | AU65: <min | AV65: <min | AW65: <min | AX65: <min | AY65: <min | AZ65: <min | BA65: <min | BB65: <min | BC65: <min | BD65: <min | BE65: <min | BF65: <min | BG65: <min | BH65: <min | BI65: <min | BJ65: <min | BK65: <min | BL65: <min | BM65: <min | BN65: <min | BO65: <min
I66: 4.7 | J66: 21.5 | K66: 17.5 | L66: 14.5 | M66: 13 | N66: <min | O66: <min | P66: <min | Q66: <min | R66: <min | S66: <min | T66: <min | U66: <min | V66: <min | W66: <min | X66: <min | Y66: <min | Z66: <min | AA66: <min | AB66: <min | AC66: <min | AD66: <min | AE66: <min | AF66: <min | AG66: <min | AH66: <min | AI66: <min | AJ66: <min | AK66: <min | AM66: 4.7 | AN66: 17 | AO66: 16.5 | AP66: 15.5 | AQ66: 15.5 | AR66: <min | AS66: <min | AT66: <min | AU66: <min | AV66: <min | AW66: <min | AX66: <min | AY66: <min | AZ66: <min | BA66: <min | BB66: <min | BC66: <min | BD66: <min | BE66: <min | BF66: <min | BG66: <min | BH66: <min | BI66: <min | BJ66: <min | BK66: <min | BL66: <min | BM66: <min | BN66: <min | BO66: <min
I67: 4.8 | J67: 21.5 | K67: 17.5 | L67: 14.5 | M67: 13 | N67: <min | O67: <min | P67: <min | Q67: <min | R67: <min | S67: <min | T67: <min | U67: <min | V67: <min | W67: <min | X67: <min | Y67: <min | Z67: <min | AA67: <min | AB67: <min | AC67: <min | AD67: <min | AE67: <min | AF67: <min | AG67: <min | AH67: <min | AI67: <min | AJ67: <min | AK67: <min | AM67: 4.8 | AN67: 17.5 | AO67: 16.5 | AP67: 16 | AQ67: 16 | AR67: <min | AS67: <min | AT67: <min | AU67: <min | AV67: <min | AW67: <min | AX67: <min | AY67: <min | AZ67: <min | BA67: <min | BB67: <min | BC67: <min | BD67: <min | BE67: <min | BF67: <min | BG67: <min | BH67: <min | BI67: <min | BJ67: <min | BK67: <min | BL67: <min | BM67: <min | BN67: <min | BO67: <min
I68: 4.9 | J68: 22 | K68: 18 | L68: 15 | M68: 13.5 | N68: <min | O68: <min | P68: <min | Q68: <min | R68: <min | S68: <min | T68: <min | U68: <min | V68: <min | W68: <min | X68: <min | Y68: <min | Z68: <min | AA68: <min | AB68: <min | AC68: <min | AD68: <min | AE68: <min | AF68: <min | AG68: <min | AH68: <min | AI68: <min | AJ68: <min | AK68: <min | AM68: 4.9 | AN68: 17.5 | AO68: 17 | AP68: 16.5 | AQ68: 16 | AR68: <min | AS68: <min | AT68: <min | AU68: <min | AV68: <min | AW68: <min | AX68: <min | AY68: <min | AZ68: <min | BA68: <min | BB68: <min | BC68: <min | BD68: <min | BE68: <min | BF68: <min | BG68: <min | BH68: <min | BI68: <min | BJ68: <min | BK68: <min | BL68: <min | BM68: <min | BN68: <min | BO68: <min
I69: 5 | J69: 22 | K69: 18 | L69: 15.5 | M69: 13.5 | N69: <min | O69: <min | P69: <min | Q69: <min | R69: <min | S69: <min | T69: <min | U69: <min | V69: <min | W69: <min | X69: <min | Y69: <min | Z69: <min | AA69: <min | AB69: <min | AC69: <min | AD69: <min | AE69: <min | AF69: <min | AG69: <min | AH69: <min | AI69: <min | AJ69: <min | AK69: <min | AM69: 5 | AN69: 18 | AO69: 17.5 | AP69: 16.5 | AQ69: 16.5 | AR69: <min | AS69: <min | AT69: <min | AU69: <min | AV69: <min | AW69: <min | AX69: <min | AY69: <min | AZ69: <min | BA69: <min | BB69: <min | BC69: <min | BD69: <min | BE69: <min | BF69: <min | BG69: <min | BH69: <min | BI69: <min | BJ69: <min | BK69: <min | BL69: <min | BM69: <min | BN69: <min | BO69: <min
I70: 5.1 | J70: 22.5 | K70: 18.5 | L70: 15.5 | M70: 14 | N70: 37.5 | O70: <min | P70: <min | Q70: <min | R70: <min | S70: <min | T70: <min | U70: <min | V70: <min | W70: <min | X70: <min | Y70: <min | Z70: <min | AA70: <min | AB70: <min | AC70: <min | AD70: <min | AE70: <min | AF70: <min | AG70: <min | AH70: <min | AI70: <min | AJ70: <min | AK70: <min | AM70: 5.1 | AN70: 18.5 | AO70: 17.5 | AP70: 17 | AQ70: 17 | AR70: <min | AS70: <min | AT70: <min | AU70: <min | AV70: <min | AW70: <min | AX70: <min | AY70: <min | AZ70: <min | BA70: <min | BB70: <min | BC70: <min | BD70: <min | BE70: <min | BF70: <min | BG70: <min | BH70: <min | BI70: <min | BJ70: <min | BK70: <min | BL70: <min | BM70: <min | BN70: <min | BO70: <min
I71: 5.2 | J71: 23 | K71: 19 | L71: 16 | M71: 14 | N71: 38 | O71: <min | P71: <min | Q71: <min | R71: <min | S71: <min | T71: <min | U71: <min | V71: <min | W71: <min | X71: <min | Y71: <min | Z71: <min | AA71: <min | AB71: <min | AC71: <min | AD71: <min | AE71: <min | AF71: <min | AG71: <min | AH71: <min | AI71: <min | AJ71: <min | AK71: <min | AM71: 5.2 | AN71: 18.5 | AO71: 18 | AP71: 17 | AQ71: 17 | AR71: <min | AS71: <min | AT71: <min | AU71: <min | AV71: <min | AW71: <min | AX71: <min | AY71: <min | AZ71: <min | BA71: <min | BB71: <min | BC71: <min | BD71: <min | BE71: <min | BF71: <min | BG71: <min | BH71: <min | BI71: <min | BJ71: <min | BK71: <min | BL71: <min | BM71: <min | BN71: <min | BO71: <min
I72: 5.3 | J72: 23 | K72: 19 | L72: 16 | M72: 14.5 | N72: 38.5 | O72: <min | P72: <min | Q72: <min | R72: <min | S72: <min | T72: <min | U72: <min | V72: <min | W72: <min | X72: <min | Y72: <min | Z72: <min | AA72: <min | AB72: <min | AC72: <min | AD72: <min | AE72: <min | AF72: <min | AG72: <min | AH72: <min | AI72: <min | AJ72: <min | AK72: <min | AM72: 5.3 | AN72: 19 | AO72: 18 | AP72: 17.5 | AQ72: 17.5 | AR72: <min | AS72: <min | AT72: <min | AU72: <min | AV72: <min | AW72: <min | AX72: <min | AY72: <min | AZ72: <min | BA72: <min | BB72: <min | BC72: <min | BD72: <min | BE72: <min | BF72: <min | BG72: <min | BH72: <min | BI72: <min | BJ72: <min | BK72: <min | BL72: <min | BM72: <min | BN72: <min | BO72: <min
I73: 5.4 | J73: 23.5 | K73: 19.5 | L73: 16.5 | M73: 14.5 | N73: 38.5 | O73: <min | P73: <min | Q73: <min | R73: <min | S73: <min | T73: <min | U73: <min | V73: <min | W73: <min | X73: <min | Y73: <min | Z73: <min | AA73: <min | AB73: <min | AC73: <min | AD73: <min | AE73: <min | AF73: <min | AG73: <min | AH73: <min | AI73: <min | AJ73: <min | AK73: <min | AM73: 5.4 | AN73: 19.5 | AO73: 18.5 | AP73: 18 | AQ73: 17.5 | AR73: <min | AS73: <min | AT73: <min | AU73: <min | AV73: <min | AW73: <min | AX73: <min | AY73: <min | AZ73: <min | BA73: <min | BB73: <min | BC73: <min | BD73: <min | BE73: <min | BF73: <min | BG73: <min | BH73: <min | BI73: <min | BJ73: <min | BK73: <min | BL73: <min | BM73: <min | BN73: <min | BO73: <min
I74: 5.5 | J74: 24 | K74: 20 | L74: 16.5 | M74: 15 | N74: 39 | O74: <min | P74: <min | Q74: <min | R74: <min | S74: <min | T74: <min | U74: <min | V74: <min | W74: <min | X74: <min | Y74: <min | Z74: <min | AA74: <min | AB74: <min | AC74: <min | AD74: <min | AE74: <min | AF74: <min | AG74: <min | AH74: <min | AI74: <min | AJ74: <min | AK74: <min | AM74: 5.5 | AN74: 19.5 | AO74: 19 | AP74: 18 | AQ74: 18 | AR74: <min | AS74: <min | AT74: <min | AU74: <min | AV74: <min | AW74: <min | AX74: <min | AY74: <min | AZ74: <min | BA74: <min | BB74: <min | BC74: <min | BD74: <min | BE74: <min | BF74: <min | BG74: <min | BH74: <min | BI74: <min | BJ74: <min | BK74: <min | BL74: <min | BM74: <min | BN74: <min | BO74: <min
I75: 5.6 | J75: 24 | K75: 20 | L75: 17 | M75: 15.5 | N75: 39.5 | O75: <min | P75: <min | Q75: <min | R75: <min | S75: <min | T75: <min | U75: <min | V75: <min | W75: <min | X75: <min | Y75: <min | Z75: <min | AA75: <min | AB75: <min | AC75: <min | AD75: <min | AE75: <min | AF75: <min | AG75: <min | AH75: <min | AI75: <min | AJ75: <min | AK75: <min | AM75: 5.6 | AN75: 20 | AO75: 19 | AP75: 18.5 | AQ75: 18.5 | AR75: <min | AS75: <min | AT75: <min | AU75: <min | AV75: <min | AW75: <min | AX75: <min | AY75: <min | AZ75: <min | BA75: <min | BB75: <min | BC75: <min | BD75: <min | BE75: <min | BF75: <min | BG75: <min | BH75: <min | BI75: <min | BJ75: <min | BK75: <min | BL75: <min | BM75: <min | BN75: <min | BO75: <min
I76: 5.7 | J76: 24.5 | K76: 20.5 | L76: 17 | M76: 15.5 | N76: 40 | O76: <min | P76: <min | Q76: <min | R76: <min | S76: <min | T76: <min | U76: <min | V76: <min | W76: <min | X76: <min | Y76: <min | Z76: <min | AA76: <min | AB76: <min | AC76: <min | AD76: <min | AE76: <min | AF76: <min | AG76: <min | AH76: <min | AI76: <min | AJ76: <min | AK76: <min | AM76: 5.7 | AN76: 20.5 | AO76: 19.5 | AP76: 19 | AQ76: 18.5 | AR76: <min | AS76: <min | AT76: <min | AU76: <min | AV76: <min | AW76: <min | AX76: <min | AY76: <min | AZ76: <min | BA76: <min | BB76: <min | BC76: <min | BD76: <min | BE76: <min | BF76: <min | BG76: <min | BH76: <min | BI76: <min | BJ76: <min | BK76: <min | BL76: <min | BM76: <min | BN76: <min | BO76: <min
I77: 5.8 | J77: 24.5 | K77: 20.5 | L77: 17.5 | M77: 16 | N77: 40 | O77: <min | P77: <min | Q77: <min | R77: <min | S77: <min | T77: <min | U77: <min | V77: <min | W77: <min | X77: <min | Y77: <min | Z77: <min | AA77: <min | AB77: <min | AC77: <min | AD77: <min | AE77: <min | AF77: <min | AG77: <min | AH77: <min | AI77: <min | AJ77: <min | AK77: <min | AM77: 5.8 | AN77: 20.5 | AO77: 20 | AP77: 19 | AQ77: 19 | AR77: <min | AS77: <min | AT77: <min | AU77: <min | AV77: <min | AW77: <min | AX77: <min | AY77: <min | AZ77: <min | BA77: <min | BB77: <min | BC77: <min | BD77: <min | BE77: <min | BF77: <min | BG77: <min | BH77: <min | BI77: <min | BJ77: <min | BK77: <min | BL77: <min | BM77: <min | BN77: <min | BO77: <min
I78: 5.9 | J78: 25 | K78: 21 | L78: 17.5 | M78: 16 | N78: 40.5 | O78: <min | P78: <min | Q78: <min | R78: <min | S78: <min | T78: <min | U78: <min | V78: <min | W78: <min | X78: <min | Y78: <min | Z78: <min | AA78: <min | AB78: <min | AC78: <min | AD78: <min | AE78: <min | AF78: <min | AG78: <min | AH78: <min | AI78: <min | AJ78: <min | AK78: <min | AM78: 5.9 | AN78: 21 | AO78: 20 | AP78: 19.5 | AQ78: 19 | AR78: <min | AS78: <min | AT78: <min | AU78: <min | AV78: <min | AW78: <min | AX78: <min | AY78: <min | AZ78: <min | BA78: <min | BB78: <min | BC78: <min | BD78: <min | BE78: <min | BF78: <min | BG78: <min | BH78: <min | BI78: <min | BJ78: <min | BK78: <min | BL78: <min | BM78: <min | BN78: <min | BO78: <min
I79: 6 | J79: 25.5 | K79: 21.5 | L79: 18 | M79: 16.5 | N79: 41 | O79: <min | P79: <min | Q79: <min | R79: <min | S79: <min | T79: <min | U79: <min | V79: <min | W79: <min | X79: <min | Y79: <min | Z79: <min | AA79: <min | AB79: <min | AC79: <min | AD79: <min | AE79: <min | AF79: <min | AG79: <min | AH79: <min | AI79: <min | AJ79: <min | AK79: <min | AM79: 6 | AN79: 21.5 | AO79: 20.5 | AP79: 19.5 | AQ79: 19.5 | AR79: <min | AS79: <min | AT79: <min | AU79: <min | AV79: <min | AW79: <min | AX79: <min | AY79: <min | AZ79: <min | BA79: <min | BB79: <min | BC79: <min | BD79: <min | BE79: <min | BF79: <min | BG79: <min | BH79: <min | BI79: <min | BJ79: <min | BK79: <min | BL79: <min | BM79: <min | BN79: <min | BO79: <min
I80: 6.1 | J80: 25.5 | K80: 21.5 | L80: 18.5 | M80: 16.5 | N80: 41.5 | O80: <min | P80: <min | Q80: <min | R80: <min | S80: <min | T80: <min | U80: <min | V80: <min | W80: <min | X80: <min | Y80: <min | Z80: <min | AA80: <min | AB80: <min | AC80: <min | AD80: <min | AE80: <min | AF80: <min | AG80: <min | AH80: <min | AI80: <min | AJ80: <min | AK80: <min | AM80: 6.1 | AN80: 21.5 | AO80: 21 | AP80: 20 | AQ80: 20 | AR80: <min | AS80: <min | AT80: <min | AU80: <min | AV80: <min | AW80: <min | AX80: <min | AY80: <min | AZ80: <min | BA80: <min | BB80: <min | BC80: <min | BD80: <min | BE80: <min | BF80: <min | BG80: <min | BH80: <min | BI80: <min | BJ80: <min | BK80: <min | BL80: <min | BM80: <min | BN80: <min | BO80: <min
I81: 6.2 | J81: 26 | K81: 22 | L81: 18.5 | M81: 17 | N81: 41.5 | O81: <min | P81: <min | Q81: <min | R81: <min | S81: <min | T81: <min | U81: <min | V81: <min | W81: <min | X81: <min | Y81: <min | Z81: <min | AA81: <min | AB81: <min | AC81: <min | AD81: <min | AE81: <min | AF81: <min | AG81: <min | AH81: <min | AI81: <min | AJ81: <min | AK81: <min | AM81: 6.2 | AN81: 22 | AO81: 21 | AP81: 20.5 | AQ81: 20 | AR81: <min | AS81: <min | AT81: <min | AU81: <min | AV81: <min | AW81: <min | AX81: <min | AY81: <min | AZ81: <min | BA81: <min | BB81: <min | BC81: <min | BD81: <min | BE81: <min | BF81: <min | BG81: <min | BH81: <min | BI81: <min | BJ81: <min | BK81: <min | BL81: <min | BM81: <min | BN81: <min | BO81: <min
I82: 6.3 | J82: 26 | K82: 22 | L82: 19 | M82: 17 | N82: 42 | O82: <min | P82: <min | Q82: <min | R82: <min | S82: <min | T82: <min | U82: <min | V82: <min | W82: <min | X82: <min | Y82: <min | Z82: <min | AA82: <min | AB82: <min | AC82: <min | AD82: <min | AE82: <min | AF82: <min | AG82: <min | AH82: <min | AI82: <min | AJ82: <min | AK82: <min | AM82: 6.3 | AN82: 22.5 | AO82: 21.5 | AP82: 20.5 | AQ82: 20.5 | AR82: <min | AS82: <min | AT82: <min | AU82: <min | AV82: <min | AW82: <min | AX82: <min | AY82: <min | AZ82: <min | BA82: <min | BB82: <min | BC82: <min | BD82: <min | BE82: <min | BF82: <min | BG82: <min | BH82: <min | BI82: <min | BJ82: <min | BK82: <min | BL82: <min | BM82: <min | BN82: <min | BO82: <min
I83: 6.4 | J83: 26.5 | K83: 22.5 | L83: 19 | M83: 17.5 | N83: 42.5 | O83: <min | P83: <min | Q83: <min | R83: <min | S83: <min | T83: <min | U83: <min | V83: <min | W83: <min | X83: <min | Y83: <min | Z83: <min | AA83: <min | AB83: <min | AC83: <min | AD83: <min | AE83: <min | AF83: <min | AG83: <min | AH83: <min | AI83: <min | AJ83: <min | AK83: <min | AM83: 6.4 | AN83: 22.5 | AO83: 21.5 | AP83: 21 | AQ83: 20.5 | AR83: <min | AS83: <min | AT83: <min | AU83: <min | AV83: <min | AW83: <min | AX83: <min | AY83: <min | AZ83: <min | BA83: <min | BB83: <min | BC83: <min | BD83: <min | BE83: <min | BF83: <min | BG83: <min | BH83: <min | BI83: <min | BJ83: <min | BK83: <min | BL83: <min | BM83: <min | BN83: <min | BO83: <min
I84: 6.5 | J84: 27 | K84: 23 | L84: 19.5 | M84: 17.5 | N84: 43 | O84: <min | P84: <min | Q84: <min | R84: <min | S84: <min | T84: <min | U84: <min | V84: <min | W84: <min | X84: <min | Y84: <min | Z84: <min | AA84: <min | AB84: <min | AC84: <min | AD84: <min | AE84: <min | AF84: <min | AG84: <min | AH84: <min | AI84: <min | AJ84: <min | AK84: <min | AM84: 6.5 | AN84: 23 | AO84: 22 | AP84: 21 | AQ84: 21 | AR84: <min | AS84: <min | AT84: <min | AU84: <min | AV84: <min | AW84: <min | AX84: <min | AY84: <min | AZ84: <min | BA84: <min | BB84: <min | BC84: <min | BD84: <min | BE84: <min | BF84: <min | BG84: <min | BH84: <min | BI84: <min | BJ84: <min | BK84: <min | BL84: <min | BM84: <min | BN84: <min | BO84: <min
I85: 6.6 | J85: 27 | K85: 23 | L85: 19.5 | M85: 18 | N85: 43 | O85: 37.5 | P85: <min | Q85: <min | R85: <min | S85: <min | T85: <min | U85: <min | V85: <min | W85: <min | X85: <min | Y85: <min | Z85: <min | AA85: <min | AB85: <min | AC85: <min | AD85: <min | AE85: <min | AF85: <min | AG85: <min | AH85: <min | AI85: <min | AJ85: <min | AK85: <min | AM85: 6.6 | AN85: 23.5 | AO85: 22.5 | AP85: 21.5 | AQ85: 21.5 | AR85: <min | AS85: <min | AT85: <min | AU85: <min | AV85: <min | AW85: <min | AX85: <min | AY85: <min | AZ85: <min | BA85: <min | BB85: <min | BC85: <min | BD85: <min | BE85: <min | BF85: <min | BG85: <min | BH85: <min | BI85: <min | BJ85: <min | BK85: <min | BL85: <min | BM85: <min | BN85: <min | BO85: <min
I86: 6.7 | J86: 27.5 | K86: 23.5 | L86: 20 | M86: 18 | N86: 43.5 | O86: 38 | P86: <min | Q86: <min | R86: <min | S86: <min | T86: <min | U86: <min | V86: <min | W86: <min | X86: <min | Y86: <min | Z86: <min | AA86: <min | AB86: <min | AC86: <min | AD86: <min | AE86: <min | AF86: <min | AG86: <min | AH86: <min | AI86: <min | AJ86: <min | AK86: <min | AM86: 6.7 | AN86: 23.5 | AO86: 22.5 | AP86: 22 | AQ86: 21.5 | AR86: <min | AS86: <min | AT86: <min | AU86: <min | AV86: <min | AW86: <min | AX86: <min | AY86: <min | AZ86: <min | BA86: <min | BB86: <min | BC86: <min | BD86: <min | BE86: <min | BF86: <min | BG86: <min | BH86: <min | BI86: <min | BJ86: <min | BK86: <min | BL86: <min | BM86: <min | BN86: <min | BO86: <min
I87: 6.8 | J87: 27.5 | K87: 23.5 | L87: 20 | M87: 18.5 | N87: 44 | O87: 38 | P87: <min | Q87: <min | R87: <min | S87: <min | T87: <min | U87: <min | V87: <min | W87: <min | X87: <min | Y87: <min | Z87: <min | AA87: <min | AB87: <min | AC87: <min | AD87: <min | AE87: <min | AF87: <min | AG87: <min | AH87: <min | AI87: <min | AJ87: <min | AK87: <min | AM87: 6.8 | AN87: 24 | AO87: 23 | AP87: 22 | AQ87: 22 | AR87: 37.5 | AS87: <min | AT87: <min | AU87: <min | AV87: <min | AW87: <min | AX87: <min | AY87: <min | AZ87: <min | BA87: <min | BB87: <min | BC87: <min | BD87: <min | BE87: <min | BF87: <min | BG87: <min | BH87: <min | BI87: <min | BJ87: <min | BK87: <min | BL87: <min | BM87: <min | BN87: <min | BO87: <min
I88: 6.9 | J88: 28 | K88: 24 | L88: 20.5 | M88: 19 | N88: 44.5 | O88: 38.5 | P88: <min | Q88: <min | R88: <min | S88: <min | T88: <min | U88: <min | V88: <min | W88: <min | X88: <min | Y88: <min | Z88: <min | AA88: <min | AB88: <min | AC88: <min | AD88: <min | AE88: <min | AF88: <min | AG88: <min | AH88: <min | AI88: <min | AJ88: <min | AK88: <min | AM88: 6.9 | AN88: 24 | AO88: 23 | AP88: 22.5 | AQ88: 22 | AR88: 38 | AS88: <min | AT88: <min | AU88: <min | AV88: <min | AW88: <min | AX88: <min | AY88: <min | AZ88: <min | BA88: <min | BB88: <min | BC88: <min | BD88: <min | BE88: <min | BF88: <min | BG88: <min | BH88: <min | BI88: <min | BJ88: <min | BK88: <min | BL88: <min | BM88: <min | BN88: <min | BO88: <min
I89: 7 | J89: 28.5 | K89: 24 | L89: 20.5 | M89: 19 | N89: 45 | O89: 39 | P89: <min | Q89: <min | R89: <min | S89: <min | T89: <min | U89: <min | V89: <min | W89: <min | X89: <min | Y89: <min | Z89: <min | AA89: <min | AB89: <min | AC89: <min | AD89: <min | AE89: <min | AF89: <min | AG89: <min | AH89: <min | AI89: <min | AJ89: <min | AK89: <min | AM89: 7 | AN89: 24.5 | AO89: 23.5 | AP89: 22.5 | AQ89: 22.5 | AR89: 38 | AS89: <min | AT89: <min | AU89: <min | AV89: <min | AW89: <min | AX89: <min | AY89: <min | AZ89: <min | BA89: <min | BB89: <min | BC89: <min | BD89: <min | BE89: <min | BF89: <min | BG89: <min | BH89: <min | BI89: <min | BJ89: <min | BK89: <min | BL89: <min | BM89: <min | BN89: <min | BO89: <min
I90: 7.1 | J90: 28.5 | K90: 24.5 | L90: 21 | M90: 19.5 | N90: 45 | O90: 39 | P90: <min | Q90: <min | R90: <min | S90: <min | T90: <min | U90: <min | V90: <min | W90: <min | X90: <min | Y90: <min | Z90: <min | AA90: <min | AB90: <min | AC90: <min | AD90: <min | AE90: <min | AF90: <min | AG90: <min | AH90: <min | AI90: <min | AJ90: <min | AK90: <min | AM90: 7.1 | AN90: 25 | AO90: 24 | AP90: 23 | AQ90: 22.5 | AR90: 38.5 | AS90: <min | AT90: <min | AU90: <min | AV90: <min | AW90: <min | AX90: <min | AY90: <min | AZ90: <min | BA90: <min | BB90: <min | BC90: <min | BD90: <min | BE90: <min | BF90: <min | BG90: <min | BH90: <min | BI90: <min | BJ90: <min | BK90: <min | BL90: <min | BM90: <min | BN90: <min | BO90: <min
I91: 7.2 | J91: 29 | K91: 25 | L91: 21 | M91: 19.5 | N91: 45.5 | O91: 39.5 | P91: <min | Q91: <min | R91: <min | S91: <min | T91: <min | U91: <min | V91: <min | W91: <min | X91: <min | Y91: <min | Z91: <min | AA91: <min | AB91: <min | AC91: <min | AD91: <min | AE91: <min | AF91: <min | AG91: <min | AH91: <min | AI91: <min | AJ91: <min | AK91: <min | AM91: 7.2 | AN91: 25 | AO91: 24 | AP91: 23.5 | AQ91: 23 | AR91: 39 | AS91: <min | AT91: <min | AU91: <min | AV91: <min | AW91: <min | AX91: <min | AY91: <min | AZ91: <min | BA91: <min | BB91: <min | BC91: <min | BD91: <min | BE91: <min | BF91: <min | BG91: <min | BH91: <min | BI91: <min | BJ91: <min | BK91: <min | BL91: <min | BM91: <min | BN91: <min | BO91: <min
I92: 7.3 | J92: 29 | K92: 25 | L92: 21.5 | M92: 20 | N92: 46 | O92: 40 | P92: <min | Q92: <min | R92: <min | S92: <min | T92: <min | U92: <min | V92: <min | W92: <min | X92: <min | Y92: <min | Z92: <min | AA92: <min | AB92: <min | AC92: <min | AD92: <min | AE92: <min | AF92: <min | AG92: <min | AH92: <min | AI92: <min | AJ92: <min | AK92: <min | AM92: 7.3 | AN92: 25.5 | AO92: 24.5 | AP92: 23.5 | AQ92: 23.5 | AR92: 39.5 | AS92: <min | AT92: <min | AU92: <min | AV92: <min | AW92: <min | AX92: <min | AY92: <min | AZ92: <min | BA92: <min | BB92: <min | BC92: <min | BD92: <min | BE92: <min | BF92: <min | BG92: <min | BH92: <min | BI92: <min | BJ92: <min | BK92: <min | BL92: <min | BM92: <min | BN92: <min | BO92: <min
I93: 7.4 | J93: 29.5 | K93: 25.5 | L93: 21.5 | M93: 20 | N93: 46.5 | O93: 40 | P93: <min | Q93: <min | R93: <min | S93: <min | T93: <min | U93: <min | V93: <min | W93: <min | X93: <min | Y93: <min | Z93: <min | AA93: <min | AB93: <min | AC93: <min | AD93: <min | AE93: <min | AF93: <min | AG93: <min | AH93: <min | AI93: <min | AJ93: <min | AK93: <min | AM93: 7.4 | AN93: 26 | AO93: 24.5 | AP93: 24 | AQ93: 23.5 | AR93: 39.5 | AS93: <min | AT93: <min | AU93: <min | AV93: <min | AW93: <min | AX93: <min | AY93: <min | AZ93: <min | BA93: <min | BB93: <min | BC93: <min | BD93: <min | BE93: <min | BF93: <min | BG93: <min | BH93: <min | BI93: <min | BJ93: <min | BK93: <min | BL93: <min | BM93: <min | BN93: <min | BO93: <min
I94: 7.5 | J94: 29.5 | K94: 25.5 | L94: 22 | M94: 20.5 | N94: 46.5 | O94: 40.5 | P94: <min | Q94: <min | R94: <min | S94: <min | T94: <min | U94: <min | V94: <min | W94: <min | X94: <min | Y94: <min | Z94: <min | AA94: <min | AB94: <min | AC94: <min | AD94: <min | AE94: <min | AF94: <min | AG94: <min | AH94: <min | AI94: <min | AJ94: <min | AK94: <min | AM94: 7.5 | AN94: 26 | AO94: 25 | AP94: 24 | AQ94: 24 | AR94: 40 | AS94: <min | AT94: <min | AU94: <min | AV94: <min | AW94: <min | AX94: <min | AY94: <min | AZ94: <min | BA94: <min | BB94: <min | BC94: <min | BD94: <min | BE94: <min | BF94: <min | BG94: <min | BH94: <min | BI94: <min | BJ94: <min | BK94: <min | BL94: <min | BM94: <min | BN94: <min | BO94: <min
I95: 7.6 | J95: 30 | K95: 26 | L95: 22 | M95: 20.5 | N95: 47 | O95: 41 | P95: <min | Q95: <min | R95: <min | S95: <min | T95: <min | U95: <min | V95: <min | W95: <min | X95: <min | Y95: <min | Z95: <min | AA95: <min | AB95: <min | AC95: <min | AD95: <min | AE95: <min | AF95: <min | AG95: <min | AH95: <min | AI95: <min | AJ95: <min | AK95: <min | AM95: 7.6 | AN95: 26.5 | AO95: 25.5 | AP95: 24.5 | AQ95: 24 | AR95: 40.5 | AS95: 37.5 | AT95: <min | AU95: <min | AV95: <min | AW95: <min | AX95: <min | AY95: <min | AZ95: <min | BA95: <min | BB95: <min | BC95: <min | BD95: <min | BE95: <min | BF95: <min | BG95: <min | BH95: <min | BI95: <min | BJ95: <min | BK95: <min | BL95: <min | BM95: <min | BN95: <min | BO95: <min
I96: 7.7 | J96: 30.5 | K96: 26 | L96: 22.5 | M96: 21 | N96: 47.5 | O96: 41 | P96: <min | Q96: <min | R96: <min | S96: <min | T96: <min | U96: <min | V96: <min | W96: <min | X96: <min | Y96: <min | Z96: <min | AA96: <min | AB96: <min | AC96: <min | AD96: <min | AE96: <min | AF96: <min | AG96: <min | AH96: <min | AI96: <min | AJ96: <min | AK96: <min | AM96: 7.7 | AN96: 26.5 | AO96: 25.5 | AP96: 25 | AQ96: 24.5 | AR96: 40.5 | AS96: 38 | AT96: <min | AU96: <min | AV96: <min | AW96: <min | AX96: <min | AY96: <min | AZ96: <min | BA96: <min | BB96: <min | BC96: <min | BD96: <min | BE96: <min | BF96: <min | BG96: <min | BH96: <min | BI96: <min | BJ96: <min | BK96: <min | BL96: <min | BM96: <min | BN96: <min | BO96: <min
I97: 7.8 | J97: 30.5 | K97: 26.5 | L97: 22.5 | M97: 21 | N97: 48 | O97: 41.5 | P97: <min | Q97: <min | R97: <min | S97: <min | T97: <min | U97: <min | V97: <min | W97: <min | X97: <min | Y97: <min | Z97: <min | AA97: <min | AB97: <min | AC97: <min | AD97: <min | AE97: <min | AF97: <min | AG97: <min | AH97: <min | AI97: <min | AJ97: <min | AK97: <min | AM97: 7.8 | AN97: 27 | AO97: 26 | AP97: 25 | AQ97: 24.5 | AR97: 41 | AS97: 38 | AT97: <min | AU97: <min | AV97: <min | AW97: <min | AX97: <min | AY97: <min | AZ97: <min | BA97: <min | BB97: <min | BC97: <min | BD97: <min | BE97: <min | BF97: <min | BG97: <min | BH97: <min | BI97: <min | BJ97: <min | BK97: <min | BL97: <min | BM97: <min | BN97: <min | BO97: <min
I98: 7.9 | J98: 31 | K98: 27 | L98: 23 | M98: 21.5 | N98: 48 | O98: 42 | P98: <min | Q98: <min | R98: <min | S98: <min | T98: <min | U98: <min | V98: <min | W98: <min | X98: <min | Y98: <min | Z98: <min | AA98: <min | AB98: <min | AC98: <min | AD98: <min | AE98: <min | AF98: <min | AG98: <min | AH98: <min | AI98: <min | AJ98: <min | AK98: <min | AM98: 7.9 | AN98: 27.5 | AO98: 26 | AP98: 25.5 | AQ98: 25 | AR98: 41.5 | AS98: 38.5 | AT98: <min | AU98: <min | AV98: <min | AW98: <min | AX98: <min | AY98: <min | AZ98: <min | BA98: <min | BB98: <min | BC98: <min | BD98: <min | BE98: <min | BF98: <min | BG98: <min | BH98: <min | BI98: <min | BJ98: <min | BK98: <min | BL98: <min | BM98: <min | BN98: <min | BO98: <min
I99: 8 | J99: 31 | K99: 27 | L99: 23 | M99: 21.5 | N99: 48.5 | O99: 42 | P99: <min | Q99: <min | R99: <min | S99: <min | T99: <min | U99: <min | V99: <min | W99: <min | X99: <min | Y99: <min | Z99: <min | AA99: <min | AB99: <min | AC99: <min | AD99: <min | AE99: <min | AF99: <min | AG99: <min | AH99: <min | AI99: <min | AJ99: <min | AK99: <min | AM99: 8 | AN99: 27.5 | AO99: 26.5 | AP99: 25.5 | AQ99: 25.5 | AR99: 42 | AS99: 39 | AT99: <min | AU99: <min | AV99: <min | AW99: <min | AX99: <min | AY99: <min | AZ99: <min | BA99: <min | BB99: <min | BC99: <min | BD99: <min | BE99: <min | BF99: <min | BG99: <min | BH99: <min | BI99: <min | BJ99: <min | BK99: <min | BL99: <min | BM99: <min | BN99: <min | BO99: <min
I100: 8.1 | J100: 31.5 | K100: 27.5 | L100: 23.5 | M100: 22 | N100: 49 | O100: 42.5 | P100: <min | Q100: <min | R100: <min | S100: <min | T100: <min | U100: <min | V100: <min | W100: <min | X100: <min | Y100: <min | Z100: <min | AA100: <min | AB100: <min | AC100: <min | AD100: <min | AE100: <min | AF100: <min | AG100: <min | AH100: <min | AI100: <min | AJ100: <min | AK100: <min | AM100: 8.1 | AN100: 28 | AO100: 27 | AP100: 26 | AQ100: 25.5 | AR100: 42 | AS100: 39 | AT100: <min | AU100: <min | AV100: <min | AW100: <min | AX100: <min | AY100: <min | AZ100: <min | BA100: <min | BB100: <min | BC100: <min | BD100: <min | BE100: <min | BF100: <min | BG100: <min | BH100: <min | BI100: <min | BJ100: <min | BK100: <min | BL100: <min | BM100: <min | BN100: <min | BO100: <min
I101: 8.2 | J101: 31.5 | K101: 27.5 | L101: 23.5 | M101: 22 | N101: 49.5 | O101: 43 | P101: 37.5 | Q101: <min | R101: <min | S101: <min | T101: <min | U101: <min | V101: <min | W101: <min | X101: <min | Y101: <min | Z101: <min | AA101: <min | AB101: <min | AC101: <min | AD101: <min | AE101: <min | AF101: <min | AG101: <min | AH101: <min | AI101: <min | AJ101: <min | AK101: <min | AM101: 8.2 | AN101: 28 | AO101: 27 | AP101: 26.5 | AQ101: 26 | AR101: 42.5 | AS101: 39.5 | AT101: <min | AU101: <min | AV101: <min | AW101: <min | AX101: <min | AY101: <min | AZ101: <min | BA101: <min | BB101: <min | BC101: <min | BD101: <min | BE101: <min | BF101: <min | BG101: <min | BH101: <min | BI101: <min | BJ101: <min | BK101: <min | BL101: <min | BM101: <min | BN101: <min | BO101: <min
I102: 8.3 | J102: 32 | K102: 28 | L102: 24 | M102: 22.5 | N102: 49.5 | O102: 43 | P102: 38 | Q102: <min | R102: <min | S102: <min | T102: <min | U102: <min | V102: <min | W102: <min | X102: <min | Y102: <min | Z102: <min | AA102: <min | AB102: <min | AC102: <min | AD102: <min | AE102: <min | AF102: <min | AG102: <min | AH102: <min | AI102: <min | AJ102: <min | AK102: <min | AM102: 8.3 | AN102: 28.5 | AO102: 27.5 | AP102: 26.5 | AQ102: 26 | AR102: 43 | AS102: 40 | AT102: <min | AU102: <min | AV102: <min | AW102: <min | AX102: <min | AY102: <min | AZ102: <min | BA102: <min | BB102: <min | BC102: <min | BD102: <min | BE102: <min | BF102: <min | BG102: <min | BH102: <min | BI102: <min | BJ102: <min | BK102: <min | BL102: <min | BM102: <min | BN102: <min | BO102: <min
I103: 8.4 | J103: 32.5 | K103: 28 | L103: 24 | M103: 22.5 | N103: 50 | O103: 43.5 | P103: 38 | Q103: <min | R103: <min | S103: <min | T103: <min | U103: <min | V103: <min | W103: <min | X103: <min | Y103: <min | Z103: <min | AA103: <min | AB103: <min | AC103: <min | AD103: <min | AE103: <min | AF103: <min | AG103: <min | AH103: <min | AI103: <min | AJ103: <min | AK103: <min | AM103: 8.4 | AN103: 29 | AO103: 27.5 | AP103: 27 | AQ103: 26.5 | AR103: 43 | AS103: 40 | AT103: 37.5 | AU103: <min | AV103: <min | AW103: <min | AX103: <min | AY103: <min | AZ103: <min | BA103: <min | BB103: <min | BC103: <min | BD103: <min | BE103: <min | BF103: <min | BG103: <min | BH103: <min | BI103: <min | BJ103: <min | BK103: <min | BL103: <min | BM103: <min | BN103: <min | BO103: <min
I104: 8.5 | J104: 32.5 | K104: 28.5 | L104: 24.5 | M104: 23 | N104: 50.5 | O104: 44 | P104: 38.5 | Q104: <min | R104: <min | S104: <min | T104: <min | U104: <min | V104: <min | W104: <min | X104: <min | Y104: <min | Z104: <min | AA104: <min | AB104: <min | AC104: <min | AD104: <min | AE104: <min | AF104: <min | AG104: <min | AH104: <min | AI104: <min | AJ104: <min | AK104: <min | AM104: 8.5 | AN104: 29 | AO104: 28 | AP104: 27 | AQ104: 26.5 | AR104: 43.5 | AS104: 40.5 | AT104: 38 | AU104: <min | AV104: <min | AW104: <min | AX104: <min | AY104: <min | AZ104: <min | BA104: <min | BB104: <min | BC104: <min | BD104: <min | BE104: <min | BF104: <min | BG104: <min | BH104: <min | BI104: <min | BJ104: <min | BK104: <min | BL104: <min | BM104: <min | BN104: <min | BO104: <min
I105: 8.6 | J105: 33 | K105: 28.5 | L105: 24.5 | M105: 23.5 | N105: 50.5 | O105: 44 | P105: 39 | Q105: <min | R105: <min | S105: <min | T105: <min | U105: <min | V105: <min | W105: <min | X105: <min | Y105: <min | Z105: <min | AA105: <min | AB105: <min | AC105: <min | AD105: <min | AE105: <min | AF105: <min | AG105: <min | AH105: <min | AI105: <min | AJ105: <min | AK105: <min | AM105: 8.6 | AN105: 29.5 | AO105: 28.5 | AP105: 27.5 | AQ105: 27 | AR105: 44 | AS105: 41 | AT105: 38 | AU105: <min | AV105: <min | AW105: <min | AX105: <min | AY105: <min | AZ105: <min | BA105: <min | BB105: <min | BC105: <min | BD105: <min | BE105: <min | BF105: <min | BG105: <min | BH105: <min | BI105: <min | BJ105: <min | BK105: <min | BL105: <min | BM105: <min | BN105: <min | BO105: <min
I106: 8.7 | J106: 33 | K106: 29 | L106: 25 | M106: 23.5 | N106: 51 | O106: 44.5 | P106: 39 | Q106: <min | R106: <min | S106: <min | T106: <min | U106: <min | V106: <min | W106: <min | X106: <min | Y106: <min | Z106: <min | AA106: <min | AB106: <min | AC106: <min | AD106: <min | AE106: <min | AF106: <min | AG106: <min | AH106: <min | AI106: <min | AJ106: <min | AK106: <min | AM106: 8.7 | AN106: 29.5 | AO106: 28.5 | AP106: 27.5 | AQ106: 27 | AR106: 44.5 | AS106: 41 | AT106: 38.5 | AU106: <min | AV106: <min | AW106: <min | AX106: <min | AY106: <min | AZ106: <min | BA106: <min | BB106: <min | BC106: <min | BD106: <min | BE106: <min | BF106: <min | BG106: <min | BH106: <min | BI106: <min | BJ106: <min | BK106: <min | BL106: <min | BM106: <min | BN106: <min | BO106: <min
I107: 8.8 | J107: 33.5 | K107: 29 | L107: 25 | M107: 24 | N107: 51.5 | O107: 45 | P107: 39.5 | Q107: <min | R107: <min | S107: <min | T107: <min | U107: <min | V107: <min | W107: <min | X107: <min | Y107: <min | Z107: <min | AA107: <min | AB107: <min | AC107: <min | AD107: <min | AE107: <min | AF107: <min | AG107: <min | AH107: <min | AI107: <min | AJ107: <min | AK107: <min | AM107: 8.8 | AN107: 30 | AO107: 29 | AP107: 28 | AQ107: 27.5 | AR107: 44.5 | AS107: 41.5 | AT107: 39 | AU107: <min | AV107: <min | AW107: <min | AX107: <min | AY107: <min | AZ107: <min | BA107: <min | BB107: <min | BC107: <min | BD107: <min | BE107: <min | BF107: <min | BG107: <min | BH107: <min | BI107: <min | BJ107: <min | BK107: <min | BL107: <min | BM107: <min | BN107: <min | BO107: <min
I108: 8.9 | J108: 34 | K108: 29.5 | L108: 25.5 | M108: 24 | N108: 52 | O108: 45 | P108: 40 | Q108: <min | R108: <min | S108: <min | T108: <min | U108: <min | V108: <min | W108: <min | X108: <min | Y108: <min | Z108: <min | AA108: <min | AB108: <min | AC108: <min | AD108: <min | AE108: <min | AF108: <min | AG108: <min | AH108: <min | AI108: <min | AJ108: <min | AK108: <min | AM108: 8.9 | AN108: 30.5 | AO108: 29 | AP108: 28.5 | AQ108: 28 | AR108: 45 | AS108: 42 | AT108: 39 | AU108: <min | AV108: <min | AW108: <min | AX108: <min | AY108: <min | AZ108: <min | BA108: <min | BB108: <min | BC108: <min | BD108: <min | BE108: <min | BF108: <min | BG108: <min | BH108: <min | BI108: <min | BJ108: <min | BK108: <min | BL108: <min | BM108: <min | BN108: <min | BO108: <min
I109: 9 | J109: 34 | K109: 29.5 | L109: 25.5 | M109: 24.5 | N109: 52 | O109: 45.5 | P109: 40 | Q109: <min | R109: <min | S109: <min | T109: <min | U109: <min | V109: <min | W109: <min | X109: <min | Y109: <min | Z109: <min | AA109: <min | AB109: <min | AC109: <min | AD109: <min | AE109: <min | AF109: <min | AG109: <min | AH109: <min | AI109: <min | AJ109: <min | AK109: <min | AM109: 9 | AN109: 30.5 | AO109: 29.5 | AP109: 28.5 | AQ109: 28 | AR109: 45.5 | AS109: 42.5 | AT109: 39.5 | AU109: 37.5 | AV109: <min | AW109: <min | AX109: <min | AY109: <min | AZ109: <min | BA109: <min | BB109: <min | BC109: <min | BD109: <min | BE109: <min | BF109: <min | BG109: <min | BH109: <min | BI109: <min | BJ109: <min | BK109: <min | BL109: <min | BM109: <min | BN109: <min | BO109: <min
I110: 9.1 | J110: 34.5 | K110: 30 | L110: 26 | M110: 24.5 | N110: 52.5 | O110: 46 | P110: 40.5 | Q110: <min | R110: <min | S110: <min | T110: <min | U110: <min | V110: <min | W110: <min | X110: <min | Y110: <min | Z110: <min | AA110: <min | AB110: <min | AC110: <min | AD110: <min | AE110: <min | AF110: <min | AG110: <min | AH110: <min | AI110: <min | AJ110: <min | AK110: <min | AM110: 9.1 | AN110: 31 | AO110: 29.5 | AP110: 29 | AQ110: 28.5 | AR110: 46 | AS110: 42.5 | AT110: 40 | AU110: 38 | AV110: <min | AW110: <min | AX110: <min | AY110: <min | AZ110: <min | BA110: <min | BB110: <min | BC110: <min | BD110: <min | BE110: <min | BF110: <min | BG110: <min | BH110: <min | BI110: <min | BJ110: <min | BK110: <min | BL110: <min | BM110: <min | BN110: <min | BO110: <min
I111: 9.2 | J111: 34.5 | K111: 30.5 | L111: 26 | M111: 25 | N111: 53 | O111: 46 | P111: 41 | Q111: <min | R111: <min | S111: <min | T111: <min | U111: <min | V111: <min | W111: <min | X111: <min | Y111: <min | Z111: <min | AA111: <min | AB111: <min | AC111: <min | AD111: <min | AE111: <min | AF111: <min | AG111: <min | AH111: <min | AI111: <min | AJ111: <min | AK111: <min | AM111: 9.2 | AN111: 31 | AO111: 30 | AP111: 29 | AQ111: 28.5 | AR111: 46 | AS111: 43 | AT111: 40 | AU111: 38 | AV111: <min | AW111: <min | AX111: <min | AY111: <min | AZ111: <min | BA111: <min | BB111: <min | BC111: <min | BD111: <min | BE111: <min | BF111: <min | BG111: <min | BH111: <min | BI111: <min | BJ111: <min | BK111: <min | BL111: <min | BM111: <min | BN111: <min | BO111: <min
I112: 9.3 | J112: 35 | K112: 30.5 | L112: 26.5 | M112: 25 | N112: 53.5 | O112: 46.5 | P112: 41 | Q112: <min | R112: <min | S112: <min | T112: <min | U112: <min | V112: <min | W112: <min | X112: <min | Y112: <min | Z112: <min | AA112: <min | AB112: <min | AC112: <min | AD112: <min | AE112: <min | AF112: <min | AG112: <min | AH112: <min | AI112: <min | AJ112: <min | AK112: <min | AM112: 9.3 | AN112: 31.5 | AO112: 30.5 | AP112: 29.5 | AQ112: 29 | AR112: 46.5 | AS112: 43.5 | AT112: 40.5 | AU112: 38.5 | AV112: <min | AW112: <min | AX112: <min | AY112: <min | AZ112: <min | BA112: <min | BB112: <min | BC112: <min | BD112: <min | BE112: <min | BF112: <min | BG112: <min | BH112: <min | BI112: <min | BJ112: <min | BK112: <min | BL112: <min | BM112: <min | BN112: <min | BO112: <min
I113: 9.4 | J113: 35 | K113: 31 | L113: 26.5 | M113: 25.5 | N113: 53.5 | O113: 47 | P113: 41.5 | Q113: <min | R113: <min | S113: <min | T113: <min | U113: <min | V113: <min | W113: <min | X113: <min | Y113: <min | Z113: <min | AA113: <min | AB113: <min | AC113: <min | AD113: <min | AE113: <min | AF113: <min | AG113: <min | AH113: <min | AI113: <min | AJ113: <min | AK113: <min | AM113: 9.4 | AN113: 32 | AO113: 30.5 | AP113: 29.5 | AQ113: 29 | AR113: 47 | AS113: 43.5 | AT113: 41 | AU113: 39 | AV113: <min | AW113: <min | AX113: <min | AY113: <min | AZ113: <min | BA113: <min | BB113: <min | BC113: <min | BD113: <min | BE113: <min | BF113: <min | BG113: <min | BH113: <min | BI113: <min | BJ113: <min | BK113: <min | BL113: <min | BM113: <min | BN113: <min | BO113: <min
I114: 9.5 | J114: 35.5 | K114: 31 | L114: 27 | M114: 25.5 | N114: 54 | O114: 47.5 | P114: 42 | Q114: <min | R114: <min | S114: <min | T114: <min | U114: <min | V114: <min | W114: <min | X114: <min | Y114: <min | Z114: <min | AA114: <min | AB114: <min | AC114: <min | AD114: <min | AE114: <min | AF114: <min | AG114: <min | AH114: <min | AI114: <min | AJ114: <min | AK114: <min | AM114: 9.5 | AN114: 32 | AO114: 31 | AP114: 30 | AQ114: 29.5 | AR114: 47 | AS114: 44 | AT114: 41 | AU114: 39 | AV114: <min | AW114: <min | AX114: <min | AY114: <min | AZ114: <min | BA114: <min | BB114: <min | BC114: <min | BD114: <min | BE114: <min | BF114: <min | BG114: <min | BH114: <min | BI114: <min | BJ114: <min | BK114: <min | BL114: <min | BM114: <min | BN114: <min | BO114: <min
I115: 9.6 | J115: 36 | K115: 31.5 | L115: 27 | M115: 26 | N115: 54.5 | O115: 47.5 | P115: 42 | Q115: <min | R115: <min | S115: <min | T115: <min | U115: <min | V115: <min | W115: <min | X115: <min | Y115: <min | Z115: <min | AA115: <min | AB115: <min | AC115: <min | AD115: <min | AE115: <min | AF115: <min | AG115: <min | AH115: <min | AI115: <min | AJ115: <min | AK115: <min | AM115: 9.6 | AN115: 32.5 | AO115: 31 | AP115: 30.5 | AQ115: 29.5 | AR115: 47.5 | AS115: 44.5 | AT115: 41.5 | AU115: 39.5 | AV115: 100 | AW115: <min | AX115: <min | AY115: <min | AZ115: <min | BA115: <min | BB115: <min | BC115: <min | BD115: <min | BE115: <min | BF115: <min | BG115: <min | BH115: <min | BI115: <min | BJ115: <min | BK115: <min | BL115: <min | BM115: <min | BN115: <min | BO115: <min
I116: 9.7 | J116: 36 | K116: 31.5 | L116: 27.5 | M116: 26 | N116: 54.5 | O116: 48 | P116: 42.5 | Q116: <min | R116: <min | S116: <min | T116: <min | U116: <min | V116: <min | W116: <min | X116: <min | Y116: <min | Z116: <min | AA116: <min | AB116: <min | AC116: <min | AD116: <min | AE116: <min | AF116: <min | AG116: <min | AH116: <min | AI116: <min | AJ116: <min | AK116: <min | AM116: 9.7 | AN116: 32.5 | AO116: 31.5 | AP116: 30.5 | AQ116: 30 | AR116: 48 | AS116: 44.5 | AT116: 42 | AU116: 39.5 | AV116: 100.5 | AW116: <min | AX116: <min | AY116: <min | AZ116: <min | BA116: <min | BB116: <min | BC116: <min | BD116: <min | BE116: <min | BF116: <min | BG116: <min | BH116: <min | BI116: <min | BJ116: <min | BK116: <min | BL116: <min | BM116: <min | BN116: <min | BO116: <min
I117: 9.8 | J117: 36.5 | K117: 32 | L117: 27.5 | M117: 26.5 | N117: 55 | O117: 48.5 | P117: 43 | Q117: <min | R117: <min | S117: <min | T117: <min | U117: <min | V117: <min | W117: <min | X117: <min | Y117: <min | Z117: <min | AA117: <min | AB117: <min | AC117: <min | AD117: <min | AE117: <min | AF117: <min | AG117: <min | AH117: <min | AI117: <min | AJ117: <min | AK117: <min | AM117: 9.8 | AN117: 33 | AO117: 31.5 | AP117: 31 | AQ117: 30.5 | AR117: 48 | AS117: 45 | AT117: 42 | AU117: 40 | AV117: 101.5 | AW117: <min | AX117: <min | AY117: <min | AZ117: <min | BA117: <min | BB117: <min | BC117: <min | BD117: <min | BE117: <min | BF117: <min | BG117: <min | BH117: <min | BI117: <min | BJ117: <min | BK117: <min | BL117: <min | BM117: <min | BN117: <min | BO117: <min
I118: 9.9 | J118: 36.5 | K118: 32 | L118: 28 | M118: 26.5 | N118: 55.5 | O118: 48.5 | P118: 43 | Q118: <min | R118: 100 | S118: <min | T118: <min | U118: <min | V118: <min | W118: <min | X118: <min | Y118: <min | Z118: <min | AA118: <min | AB118: <min | AC118: <min | AD118: <min | AE118: <min | AF118: <min | AG118: <min | AH118: <min | AI118: <min | AJ118: <min | AK118: <min | AM118: 9.9 | AN118: 33 | AO118: 32 | AP118: 31 | AQ118: 30.5 | AR118: 48.5 | AS118: 45.5 | AT118: 42.5 | AU118: 40.5 | AV118: 102 | AW118: <min | AX118: <min | AY118: <min | AZ118: <min | BA118: <min | BB118: <min | BC118: <min | BD118: <min | BE118: <min | BF118: <min | BG118: <min | BH118: <min | BI118: <min | BJ118: <min | BK118: <min | BL118: <min | BM118: <min | BN118: <min | BO118: <min
I119: 10 | J119: 37 | K119: 32.5 | L119: 28 | M119: 27 | N119: 56 | O119: 49 | P119: 43.5 | Q119: <min | R119: 100.5 | S119: <min | T119: <min | U119: <min | V119: <min | W119: <min | X119: <min | Y119: <min | Z119: <min | AA119: <min | AB119: <min | AC119: <min | AD119: <min | AE119: <min | AF119: <min | AG119: <min | AH119: <min | AI119: <min | AJ119: <min | AK119: <min | AM119: 10 | AN119: 33.5 | AO119: 32.5 | AP119: 31.5 | AQ119: 31 | AR119: 49 | AS119: 45.5 | AT119: 43 | AU119: 40.5 | AV119: 103 | AW119: <min | AX119: <min | AY119: <min | AZ119: <min | BA119: <min | BB119: <min | BC119: <min | BD119: <min | BE119: <min | BF119: <min | BG119: <min | BH119: <min | BI119: <min | BJ119: <min | BK119: <min | BL119: <min | BM119: <min | BN119: <min | BO119: <min
I120: 10.1 | J120: 37 | K120: 32.5 | L120: 28.5 | M120: 27 | N120: 56 | O120: 49.5 | P120: 44 | Q120: <min | R120: 101.5 | S120: <min | T120: <min | U120: <min | V120: <min | W120: <min | X120: <min | Y120: <min | Z120: <min | AA120: <min | AB120: <min | AC120: <min | AD120: <min | AE120: <min | AF120: <min | AG120: <min | AH120: <min | AI120: <min | AJ120: <min | AK120: <min | AM120: 10.1 | AN120: 34 | AO120: 32.5 | AP120: 31.5 | AQ120: 31 | AR120: 49.5 | AS120: 46 | AT120: 43 | AU120: 41 | AV120: 103.5 | AW120: <min | AX120: <min | AY120: <min | AZ120: <min | BA120: <min | BB120: <min | BC120: <min | BD120: <min | BE120: <min | BF120: <min | BG120: <min | BH120: <min | BI120: <min | BJ120: <min | BK120: <min | BL120: <min | BM120: <min | BN120: <min | BO120: <min
I121: 10.2 | J121: 37.5 | K121: 33 | L121: 28.5 | M121: 27.5 | N121: 56.5 | O121: 49.5 | P121: 44 | Q121: 37.5 | R121: 102 | S121: <min | T121: <min | U121: <min | V121: <min | W121: <min | X121: <min | Y121: <min | Z121: <min | AA121: <min | AB121: <min | AC121: <min | AD121: <min | AE121: <min | AF121: <min | AG121: <min | AH121: <min | AI121: <min | AJ121: <min | AK121: <min | AM121: 10.2 | AN121: 34 | AO121: 33 | AP121: 32 | AQ121: 31.5 | AR121: 49.5 | AS121: 46.5 | AT121: 43.5 | AU121: 41.5 | AV121: 104 | AW121: <min | AX121: <min | AY121: <min | AZ121: <min | BA121: <min | BB121: <min | BC121: <min | BD121: <min | BE121: <min | BF121: <min | BG121: <min | BH121: <min | BI121: <min | BJ121: <min | BK121: <min | BL121: <min | BM121: <min | BN121: <min | BO121: <min
I122: 10.3 | J122: 38 | K122: 33 | L122: 29 | M122: 27.5 | N122: 57 | O122: 50 | P122: 44.5 | Q122: 38 | R122: 103 | S122: <min | T122: <min | U122: <min | V122: <min | W122: <min | X122: <min | Y122: <min | Z122: <min | AA122: <min | AB122: <min | AC122: <min | AD122: <min | AE122: <min | AF122: <min | AG122: <min | AH122: <min | AI122: <min | AJ122: <min | AK122: <min | AM122: 10.3 | AN122: 34.5 | AO122: 33 | AP122: 32.5 | AQ122: 31.5 | AR122: 50 | AS122: 46.5 | AT122: 44 | AU122: 41.5 | AV122: 105 | AW122: <min | AX122: <min | AY122: <min | AZ122: <min | BA122: <min | BB122: <min | BC122: <min | BD122: <min | BE122: <min | BF122: <min | BG122: <min | BH122: <min | BI122: <min | BJ122: <min | BK122: <min | BL122: <min | BM122: <min | BN122: <min | BO122: <min
I123: 10.4 | J123: 38 | K123: 33.5 | L123: 29 | M123: 28 | N123: 57 | O123: 50.5 | P123: 45 | Q123: 38 | R123: 103.5 | S123: <min | T123: <min | U123: <min | V123: <min | W123: <min | X123: <min | Y123: <min | Z123: <min | AA123: <min | AB123: <min | AC123: <min | AD123: <min | AE123: <min | AF123: <min | AG123: <min | AH123: <min | AI123: <min | AJ123: <min | AK123: <min | AM123: 10.4 | AN123: 34.5 | AO123: 33.5 | AP123: 32.5 | AQ123: 32 | AR123: 50.5 | AS123: 47 | AT123: 44 | AU123: 42 | AV123: 105.5 | AW123: <min | AX123: <min | AY123: <min | AZ123: <min | BA123: <min | BB123: <min | BC123: <min | BD123: <min | BE123: <min | BF123: <min | BG123: <min | BH123: <min | BI123: <min | BJ123: <min | BK123: <min | BL123: <min | BM123: <min | BN123: <min | BO123: <min
I124: 10.5 | J124: 38.5 | K124: 33.5 | L124: 29.5 | M124: 28 | N124: 57.5 | O124: 50.5 | P124: 45 | Q124: 38.5 | R124: 104.5 | S124: <min | T124: <min | U124: <min | V124: <min | W124: <min | X124: <min | Y124: <min | Z124: <min | AA124: <min | AB124: <min | AC124: <min | AD124: <min | AE124: <min | AF124: <min | AG124: <min | AH124: <min | AI124: <min | AJ124: <min | AK124: <min | AM124: 10.5 | AN124: 35 | AO124: 33.5 | AP124: 33 | AQ124: 32 | AR124: 50.5 | AS124: 47.5 | AT124: 44.5 | AU124: 42 | AV124: 106.5 | AW124: <min | AX124: <min | AY124: <min | AZ124: <min | BA124: <min | BB124: <min | BC124: <min | BD124: <min | BE124: <min | BF124: <min | BG124: <min | BH124: <min | BI124: <min | BJ124: <min | BK124: <min | BL124: <min | BM124: <min | BN124: <min | BO124: <min
I125: 10.6 | J125: 38.5 | K125: 34 | L125: 29.5 | M125: 28.5 | N125: 58 | O125: 51 | P125: 45.5 | Q125: 38.5 | R125: 105 | S125: <min | T125: <min | U125: <min | V125: <min | W125: <min | X125: <min | Y125: <min | Z125: <min | AA125: <min | AB125: <min | AC125: <min | AD125: <min | AE125: <min | AF125: <min | AG125: <min | AH125: <min | AI125: <min | AJ125: <min | AK125: <min | AM125: 10.6 | AN125: 35.5 | AO125: 34 | AP125: 33 | AQ125: 32.5 | AR125: 51 | AS125: 47.5 | AT125: 45 | AU125: 42.5 | AV125: 107 | AW125: <min | AX125: <min | AY125: <min | AZ125: <min | BA125: <min | BB125: <min | BC125: <min | BD125: <min | BE125: <min | BF125: <min | BG125: <min | BH125: <min | BI125: <min | BJ125: <min | BK125: <min | BL125: <min | BM125: <min | BN125: <min | BO125: <min
I126: 10.7 | J126: 39 | K126: 34 | L126: 30 | M126: 28.5 | N126: 58.5 | O126: 51.5 | P126: 46 | Q126: 39 | R126: 105.5 | S126: 100 | T126: <min | U126: <min | V126: <min | W126: <min | X126: <min | Y126: <min | Z126: <min | AA126: <min | AB126: <min | AC126: <min | AD126: <min | AE126: <min | AF126: <min | AG126: <min | AH126: <min | AI126: <min | AJ126: <min | AK126: <min | AM126: 10.7 | AN126: 35.5 | AO126: 34.5 | AP126: 33.5 | AQ126: 32.5 | AR126: 51.5 | AS126: 48 | AT126: 45 | AU126: 43 | AV126: 107.5 | AW126: <min | AX126: <min | AY126: <min | AZ126: <min | BA126: <min | BB126: <min | BC126: <min | BD126: <min | BE126: <min | BF126: <min | BG126: <min | BH126: <min | BI126: <min | BJ126: <min | BK126: <min | BL126: <min | BM126: <min | BN126: <min | BO126: <min
I127: 10.8 | J127: 39 | K127: 34.5 | L127: 30.5 | M127: 29 | N127: 58.5 | O127: 51.5 | P127: 46 | Q127: 39.5 | R127: 106.5 | S127: 100.5 | T127: <min | U127: <min | V127: <min | W127: <min | X127: <min | Y127: <min | Z127: <min | AA127: <min | AB127: <min | AC127: <min | AD127: <min | AE127: <min | AF127: <min | AG127: <min | AH127: <min | AI127: <min | AJ127: <min | AK127: <min | AM127: 10.8 | AN127: 36 | AO127: 34.5 | AP127: 33.5 | AQ127: 33 | AR127: 52 | AS127: 48.5 | AT127: 45.5 | AU127: 43 | AV127: 108.5 | AW127: <min | AX127: <min | AY127: <min | AZ127: <min | BA127: <min | BB127: <min | BC127: <min | BD127: <min | BE127: <min | BF127: <min | BG127: <min | BH127: <min | BI127: <min | BJ127: <min | BK127: <min | BL127: <min | BM127: <min | BN127: <min | BO127: <min
I128: 10.9 | J128: 39.5 | K128: 34.5 | L128: 30.5 | M128: 29 | N128: 59 | O128: 52 | P128: 46.5 | Q128: 39.5 | R128: 107 | S128: 101.5 | T128: <min | U128: <min | V128: <min | W128: <min | X128: <min | Y128: <min | Z128: <min | AA128: <min | AB128: <min | AC128: <min | AD128: <min | AE128: <min | AF128: <min | AG128: <min | AH128: <min | AI128: <min | AJ128: <min | AK128: <min | AM128: 10.9 | AN128: 36 | AO128: 35 | AP128: 34 | AQ128: 33.5 | AR128: 52 | AS128: 48.5 | AT128: 46 | AU128: 43.5 | AV128: 109 | AW128: <min | AX128: <min | AY128: <min | AZ128: <min | BA128: <min | BB128: <min | BC128: <min | BD128: <min | BE128: <min | BF128: <min | BG128: <min | BH128: <min | BI128: <min | BJ128: <min | BK128: <min | BL128: <min | BM128: <min | BN128: <min | BO128: <min
I129: 11 | J129: 40 | K129: 35 | L129: 31 | M129: 29.5 | N129: 59.5 | O129: 52.5 | P129: 47 | Q129: 40 | R129: 108 | S129: 102 | T129: <min | U129: <min | V129: <min | W129: <min | X129: <min | Y129: <min | Z129: <min | AA129: <min | AB129: <min | AC129: <min | AD129: <min | AE129: <min | AF129: <min | AG129: <min | AH129: <min | AI129: <min | AJ129: <min | AK129: <min | AM129: 11 | AN129: 36.5 | AO129: 35 | AP129: 34 | AQ129: 33.5 | AR129: 52.5 | AS129: 49 | AT129: 46 | AU129: 44 | AV129: 110 | AW129: <min | AX129: <min | AY129: <min | AZ129: <min | BA129: <min | BB129: <min | BC129: <min | BD129: <min | BE129: <min | BF129: <min | BG129: <min | BH129: <min | BI129: <min | BJ129: <min | BK129: <min | BL129: <min | BM129: <min | BN129: <min | BO129: <min
I130: 11.1 | J130: 40 | K130: 35 | L130: 31 | M130: 29.5 | N130: 59.5 | O130: 53 | P130: 47 | Q130: 40 | R130: 108.5 | S130: 102.5 | T130: <min | U130: <min | V130: <min | W130: <min | X130: <min | Y130: <min | Z130: <min | AA130: <min | AB130: <min | AC130: <min | AD130: <min | AE130: <min | AF130: <min | AG130: <min | AH130: <min | AI130: <min | AJ130: <min | AK130: <min | AM130: 11.1 | AN130: 36.5 | AO130: 35.5 | AP130: 34.5 | AQ130: 34 | AR130: 53 | AS130: 49.5 | AT130: 46.5 | AU130: 44 | AV130: 110.5 | AW130: <min | AX130: <min | AY130: <min | AZ130: <min | BA130: <min | BB130: <min | BC130: <min | BD130: <min | BE130: <min | BF130: <min | BG130: <min | BH130: <min | BI130: <min | BJ130: <min | BK130: <min | BL130: <min | BM130: <min | BN130: <min | BO130: <min
I131: 11.2 | J131: 40.5 | K131: 35.5 | L131: 31.5 | M131: 30 | N131: 60 | O131: 53 | P131: 47.5 | Q131: 40.5 | R131: 109.5 | S131: 103.5 | T131: <min | U131: <min | V131: <min | W131: <min | X131: <min | Y131: <min | Z131: <min | AA131: <min | AB131: <min | AC131: <min | AD131: <min | AE131: <min | AF131: <min | AG131: <min | AH131: <min | AI131: <min | AJ131: <min | AK131: <min | AM131: 11.2 | AN131: 37 | AO131: 35.5 | AP131: 35 | AQ131: 34 | AR131: 53 | AS131: 49.5 | AT131: 47 | AU131: 44.5 | AV131: 111 | AW131: <min | AX131: <min | AY131: <min | AZ131: <min | BA131: <min | BB131: <min | BC131: <min | BD131: <min | BE131: <min | BF131: <min | BG131: <min | BH131: <min | BI131: <min | BJ131: <min | BK131: <min | BL131: <min | BM131: <min | BN131: <min | BO131: <min
I132: 11.3 | J132: 40.5 | K132: 35.5 | L132: 31.5 | M132: 30.5 | N132: 60.5 | O132: 53.5 | P132: 47.5 | Q132: 41 | R132: 110 | S132: 104 | T132: <min | U132: <min | V132: <min | W132: <min | X132: <min | Y132: <min | Z132: <min | AA132: <min | AB132: <min | AC132: <min | AD132: <min | AE132: <min | AF132: <min | AG132: <min | AH132: <min | AI132: <min | AJ132: <min | AK132: <min | AM132: 11.3 | AN132: 37.5 | AO132: 36 | AP132: 35 | AQ132: 34.5 | AR132: 53.5 | AS132: 50 | AT132: 47 | AU132: 44.5 | AV132: 112 | AW132: 100 | AX132: <min | AY132: <min | AZ132: <min | BA132: <min | BB132: <min | BC132: <min | BD132: <min | BE132: <min | BF132: <min | BG132: <min | BH132: <min | BI132: <min | BJ132: <min | BK132: <min | BL132: <min | BM132: <min | BN132: <min | BO132: <min
I133: 11.4 | J133: 41 | K133: 36 | L133: 32 | M133: 30.5 | N133: 60.5 | O133: 54 | P133: 48 | Q133: 41 | R133: 110.5 | S133: 104.5 | T133: <min | U133: <min | V133: <min | W133: <min | X133: <min | Y133: <min | Z133: <min | AA133: <min | AB133: <min | AC133: <min | AD133: <min | AE133: <min | AF133: <min | AG133: <min | AH133: <min | AI133: <min | AJ133: <min | AK133: <min | AM133: 11.4 | AN133: 37.5 | AO133: 36.5 | AP133: 35.5 | AQ133: 34.5 | AR133: 54 | AS133: 50.5 | AT133: 47.5 | AU133: 45 | AV133: 112.5 | AW133: 100.5 | AX133: <min | AY133: <min | AZ133: <min | BA133: <min | BB133: <min | BC133: <min | BD133: <min | BE133: <min | BF133: <min | BG133: <min | BH133: <min | BI133: <min | BJ133: <min | BK133: <min | BL133: <min | BM133: <min | BN133: <min | BO133: <min
I134: 11.5 | J134: 41 | K134: 36 | L134: 32 | M134: 31 | N134: 61 | O134: 54 | P134: 48.5 | Q134: 41.5 | R134: 111.5 | S134: 105.5 | T134: <min | U134: <min | V134: <min | W134: <min | X134: <min | Y134: <min | Z134: <min | AA134: <min | AB134: <min | AC134: <min | AD134: <min | AE134: <min | AF134: <min | AG134: <min | AH134: <min | AI134: <min | AJ134: <min | AK134: <min | AM134: 11.5 | AN134: 38 | AO134: 36.5 | AP134: 35.5 | AQ134: 35 | AR134: 54 | AS134: 50.5 | AT134: 47.5 | AU134: 45.5 | AV134: 113.5 | AW134: 101 | AX134: <min | AY134: <min | AZ134: <min | BA134: <min | BB134: <min | BC134: <min | BD134: <min | BE134: <min | BF134: <min | BG134: <min | BH134: <min | BI134: <min | BJ134: <min | BK134: <min | BL134: <min | BM134: <min | BN134: <min | BO134: <min
I135: 11.6 | J135: 41.5 | K135: 36.5 | L135: 32.5 | M135: 31 | N135: 61.5 | O135: 54.5 | P135: 48.5 | Q135: 42 | R135: 112 | S135: 106 | T135: <min | U135: <min | V135: <min | W135: <min | X135: <min | Y135: <min | Z135: <min | AA135: <min | AB135: <min | AC135: <min | AD135: <min | AE135: <min | AF135: <min | AG135: <min | AH135: <min | AI135: <min | AJ135: <min | AK135: <min | AM135: 11.6 | AN135: 38 | AO135: 37 | AP135: 36 | AQ135: 35 | AR135: 54.5 | AS135: 51 | AT135: 48 | AU135: 45.5 | AV135: 114 | AW135: 101.5 | AX135: <min | AY135: <min | AZ135: <min | BA135: <min | BB135: <min | BC135: <min | BD135: <min | BE135: <min | BF135: <min | BG135: <min | BH135: <min | BI135: <min | BJ135: <min | BK135: <min | BL135: <min | BM135: <min | BN135: <min | BO135: <min
I136: 11.7 | J136: 42 | K136: 36.5 | L136: 32.5 | M136: 31.5 | N136: 62 | O136: 55 | P136: 49 | Q136: 42 | R136: 113 | S136: 106.5 | T136: <min | U136: <min | V136: <min | W136: <min | X136: <min | Y136: <min | Z136: <min | AA136: <min | AB136: <min | AC136: <min | AD136: <min | AE136: <min | AF136: <min | AG136: <min | AH136: <min | AI136: <min | AJ136: <min | AK136: <min | AM136: 11.7 | AN136: 38.5 | AO136: 37 | AP136: 36 | AQ136: 35.5 | AR136: 55 | AS136: 51.5 | AT136: 48.5 | AU136: 46 | AV136: 114.5 | AW136: 102.5 | AX136: <min | AY136: <min | AZ136: <min | BA136: <min | BB136: <min | BC136: <min | BD136: <min | BE136: <min | BF136: <min | BG136: <min | BH136: <min | BI136: <min | BJ136: <min | BK136: <min | BL136: <min | BM136: <min | BN136: <min | BO136: <min
I137: 11.8 | J137: 42 | K137: 37 | L137: 33 | M137: 31.5 | N137: 62 | O137: 55 | P137: 49.5 | Q137: 42.5 | R137: 113.5 | S137: 107.5 | T137: <min | U137: <min | V137: <min | W137: <min | X137: <min | Y137: <min | Z137: <min | AA137: <min | AB137: <min | AC137: <min | AD137: <min | AE137: <min | AF137: <min | AG137: <min | AH137: <min | AI137: <min | AJ137: <min | AK137: <min | AM137: 11.8 | AN137: 38.5 | AO137: 37.5 | AP137: 36.5 | AQ137: 35.5 | AR137: 55 | AS137: 51.5 | AT137: 48.5 | AU137: 46.5 | AV137: 115.5 | AW137: 103 | AX137: <min | AY137: <min | AZ137: <min | BA137: <min | BB137: <min | BC137: <min | BD137: <min | BE137: <min | BF137: <min | BG137: <min | BH137: <min | BI137: <min | BJ137: <min | BK137: <min | BL137: <min | BM137: <min | BN137: <min | BO137: <min
I138: 11.9 | J138: 42.5 | K138: 37 | L138: 33 | M138: 31.5 | N138: 62.5 | O138: 55.5 | P138: 49.5 | Q138: 42.5 | R138: 114.5 | S138: 108 | T138: <min | U138: <min | V138: <min | W138: <min | X138: <min | Y138: <min | Z138: <min | AA138: <min | AB138: <min | AC138: <min | AD138: <min | AE138: <min | AF138: <min | AG138: <min | AH138: <min | AI138: <min | AJ138: <min | AK138: <min | AM138: 11.9 | AN138: 39 | AO138: 37.5 | AP138: 36.5 | AQ138: 36 | AR138: 55.5 | AS138: 52 | AT138: 49 | AU138: 46.5 | AV138: 116 | AW138: 103.5 | AX138: <min | AY138: <min | AZ138: <min | BA138: <min | BB138: <min | BC138: <min | BD138: <min | BE138: <min | BF138: <min | BG138: <min | BH138: <min | BI138: <min | BJ138: <min | BK138: <min | BL138: <min | BM138: <min | BN138: <min | BO138: <min
I139: 12 | J139: 42.5 | K139: 37.5 | L139: 33.5 | M139: 32 | N139: 63 | O139: 56 | P139: 50 | Q139: 43 | R139: 115 | S139: 108.5 | T139: <min | U139: <min | V139: <min | W139: <min | X139: <min | Y139: <min | Z139: <min | AA139: <min | AB139: <min | AC139: <min | AD139: <min | AE139: <min | AF139: <min | AG139: <min | AH139: <min | AI139: <min | AJ139: <min | AK139: <min | AM139: 12 | AN139: 39.5 | AO139: 38 | AP139: 37 | AQ139: 36.5 | AR139: 56 | AS139: 52.5 | AT139: 49.5 | AU139: 47 | AV139: 116.5 | AW139: 104 | AX139: <min | AY139: <min | AZ139: <min | BA139: <min | BB139: <min | BC139: <min | BD139: <min | BE139: <min | BF139: <min | BG139: <min | BH139: <min | BI139: <min | BJ139: <min | BK139: <min | BL139: <min | BM139: <min | BN139: <min | BO139: <min
I140: 12.1 | J140: 43 | K140: 37.5 | L140: 33.5 | M140: 32 | N140: 63 | O140: 56 | P140: 50.5 | Q140: 43.5 | R140: 115.5 | S140: 109 | T140: <min | U140: <min | V140: <min | W140: <min | X140: <min | Y140: <min | Z140: <min | AA140: <min | AB140: <min | AC140: <min | AD140: <min | AE140: <min | AF140: <min | AG140: <min | AH140: <min | AI140: <min | AJ140: <min | AK140: <min | AM140: 12.1 | AN140: 39.5 | AO140: 38 | AP140: 37 | AQ140: 36.5 | AR140: 56 | AS140: 52.5 | AT140: 49.5 | AU140: 47 | AV140: 117.5 | AW140: 104.5 | AX140: <min | AY140: <min | AZ140: <min | BA140: <min | BB140: <min | BC140: <min | BD140: <min | BE140: <min | BF140: <min | BG140: <min | BH140: <min | BI140: <min | BJ140: <min | BK140: <min | BL140: <min | BM140: <min | BN140: <min | BO140: <min
I141: 12.2 | J141: 43 | K141: 38 | L141: 34 | M141: 32.5 | N141: 63.5 | O141: 56.5 | P141: 50.5 | Q141: 43.5 | R141: 116.5 | S141: 110 | T141: <min | U141: <min | V141: <min | W141: <min | X141: <min | Y141: <min | Z141: <min | AA141: <min | AB141: <min | AC141: <min | AD141: <min | AE141: <min | AF141: <min | AG141: <min | AH141: <min | AI141: <min | AJ141: <min | AK141: <min | AM141: 12.2 | AN141: 40 | AO141: 38.5 | AP141: 37.5 | AQ141: 37 | AR141: 56.5 | AS141: 53 | AT141: 50 | AU141: 47.5 | AV141: 118 | AW141: 105 | AX141: <min | AY141: <min | AZ141: <min | BA141: <min | BB141: <min | BC141: <min | BD141: <min | BE141: <min | BF141: <min | BG141: <min | BH141: <min | BI141: <min | BJ141: <min | BK141: <min | BL141: <min | BM141: <min | BN141: <min | BO141: <min
I142: 12.3 | J142: 43.5 | K142: 38 | L142: 34 | M142: 32.5 | N142: 64 | O142: 57 | P142: 51 | Q142: 44 | R142: 117 | S142: 110.5 | T142: <min | U142: <min | V142: <min | W142: <min | X142: <min | Y142: <min | Z142: <min | AA142: <min | AB142: <min | AC142: <min | AD142: <min | AE142: <min | AF142: <min | AG142: <min | AH142: <min | AI142: <min | AJ142: <min | AK142: <min | AM142: 12.3 | AN142: 40 | AO142: 39 | AP142: 38 | AQ142: 37 | AR142: 57 | AS142: 53.5 | AT142: 50.5 | AU142: 48 | AV142: 119 | AW142: 105.5 | AX142: <min | AY142: <min | AZ142: <min | BA142: <min | BB142: <min | BC142: <min | BD142: <min | BE142: <min | BF142: <min | BG142: <min | BH142: <min | BI142: <min | BJ142: <min | BK142: <min | BL142: <min | BM142: <min | BN142: <min | BO142: <min
I143: 12.4 | J143: 43.5 | K143: 38.5 | L143: 34.5 | M143: 33 | N143: 64 | O143: 57.5 | P143: 51.5 | Q143: 44 | R143: 118 | S143: 111 | T143: <min | U143: <min | V143: <min | W143: <min | X143: <min | Y143: <min | Z143: <min | AA143: <min | AB143: <min | AC143: <min | AD143: <min | AE143: <min | AF143: <min | AG143: <min | AH143: <min | AI143: <min | AJ143: <min | AK143: <min | AM143: 12.4 | AN143: 40.5 | AO143: 39 | AP143: 38 | AQ143: 37.5 | AR143: 57.5 | AS143: 53.5 | AT143: 50.5 | AU143: 48 | AV143: 119.5 | AW143: 106.5 | AX143: <min | AY143: <min | AZ143: <min | BA143: <min | BB143: <min | BC143: <min | BD143: <min | BE143: <min | BF143: <min | BG143: <min | BH143: <min | BI143: <min | BJ143: <min | BK143: <min | BL143: <min | BM143: <min | BN143: <min | BO143: <min
I144: 12.5 | J144: 44 | K144: 38.5 | L144: 34.5 | M144: 33 | N144: 64.5 | O144: 57.5 | P144: 51.5 | Q144: 44.5 | R144: 118.5 | S144: 112 | T144: <min | U144: <min | V144: <min | W144: <min | X144: <min | Y144: <min | Z144: <min | AA144: <min | AB144: <min | AC144: <min | AD144: <min | AE144: <min | AF144: <min | AG144: <min | AH144: <min | AI144: <min | AJ144: <min | AK144: <min | AM144: 12.5 | AN144: 40.5 | AO144: 39.5 | AP144: 38.5 | AQ144: 37.5 | AR144: 57.5 | AS144: 54 | AT144: 51 | AU144: 48.5 | AV144: 120 | AW144: 107 | AX144: <min | AY144: <min | AZ144: <min | BA144: <min | BB144: <min | BC144: <min | BD144: <min | BE144: <min | BF144: <min | BG144: <min | BH144: <min | BI144: <min | BJ144: <min | BK144: <min | BL144: <min | BM144: <min | BN144: <min | BO144: <min
I145: 12.6 | J145: 44 | K145: 39 | L145: 35 | M145: 33.5 | N145: 65 | O145: 58 | P145: 52 | Q145: 45 | R145: 119.5 | S145: 112.5 | T145: <min | U145: <min | V145: <min | W145: <min | X145: <min | Y145: <min | Z145: <min | AA145: <min | AB145: <min | AC145: <min | AD145: <min | AE145: <min | AF145: <min | AG145: <min | AH145: <min | AI145: <min | AJ145: <min | AK145: <min | AM145: 12.6 | AN145: 41 | AO145: 39.5 | AP145: 38.5 | AQ145: 38 | AR145: 58 | AS145: 54.5 | AT145: 51.5 | AU145: 49 | AV145: 121 | AW145: 107.5 | AX145: <min | AY145: <min | AZ145: <min | BA145: <min | BB145: <min | BC145: <min | BD145: <min | BE145: <min | BF145: <min | BG145: <min | BH145: <min | BI145: <min | BJ145: <min | BK145: <min | BL145: <min | BM145: <min | BN145: <min | BO145: <min
I146: 12.7 | J146: 44.5 | K146: 39 | L146: 35 | M146: 33.5 | N146: 65 | O146: 58.5 | P146: 52 | Q146: 45 | R146: 120 | S146: 113 | T146: <min | U146: <min | V146: <min | W146: <min | X146: <min | Y146: <min | Z146: <min | AA146: <min | AB146: <min | AC146: <min | AD146: <min | AE146: <min | AF146: <min | AG146: <min | AH146: <min | AI146: <min | AJ146: <min | AK146: <min | AM146: 12.7 | AN146: 41 | AO146: 40 | AP146: 39 | AQ146: 38 | AR146: 58.5 | AS146: 54.5 | AT146: 51.5 | AU146: 49 | AV146: 121.5 | AW146: 108 | AX146: <min | AY146: <min | AZ146: <min | BA146: <min | BB146: <min | BC146: <min | BD146: <min | BE146: <min | BF146: <min | BG146: <min | BH146: <min | BI146: <min | BJ146: <min | BK146: <min | BL146: <min | BM146: <min | BN146: <min | BO146: <min
I147: 12.8 | J147: 44.5 | K147: 39 | L147: 35.5 | M147: 34 | N147: 65.5 | O147: 58.5 | P147: 52.5 | Q147: 45.5 | R147: 120.5 | S147: 114 | T147: 100 | U147: <min | V147: <min | W147: <min | X147: <min | Y147: <min | Z147: <min | AA147: <min | AB147: <min | AC147: <min | AD147: <min | AE147: <min | AF147: <min | AG147: <min | AH147: <min | AI147: <min | AJ147: <min | AK147: <min | AM147: 12.8 | AN147: 41.5 | AO147: 40 | AP147: 39 | AQ147: 38.5 | AR147: 58.5 | AS147: 55 | AT147: 52 | AU147: 49.5 | AV147: 122 | AW147: 108.5 | AX147: <min | AY147: <min | AZ147: <min | BA147: <min | BB147: <min | BC147: <min | BD147: <min | BE147: <min | BF147: <min | BG147: <min | BH147: <min | BI147: <min | BJ147: <min | BK147: <min | BL147: <min | BM147: <min | BN147: <min | BO147: <min
I148: 12.9 | J148: 45 | K148: 39.5 | L148: 35.5 | M148: 34 | N148: 66 | O148: 59 | P148: 53 | Q148: 45.5 | R148: 121.5 | S148: 114.5 | T148: 100.5 | U148: <min | V148: <min | W148: <min | X148: <min | Y148: <min | Z148: <min | AA148: <min | AB148: <min | AC148: <min | AD148: <min | AE148: <min | AF148: <min | AG148: <min | AH148: <min | AI148: <min | AJ148: <min | AK148: <min | AM148: 12.9 | AN148: 41.5 | AO148: 40.5 | AP148: 39.5 | AQ148: 38.5 | AR148: 59 | AS148: 55 | AT148: 52 | AU148: 49.5 | AV148: 123 | AW148: 109 | AX148: <min | AY148: <min | AZ148: <min | BA148: <min | BB148: <min | BC148: <min | BD148: <min | BE148: <min | BF148: <min | BG148: <min | BH148: <min | BI148: <min | BJ148: <min | BK148: <min | BL148: <min | BM148: <min | BN148: <min | BO148: <min
I149: 13 | J149: 45.5 | K149: 39.5 | L149: 36 | M149: 34.5 | N149: 66 | O149: 59.5 | P149: 53 | Q149: 46 | R149: 122 | S149: 115 | T149: 101 | U149: <min | V149: <min | W149: <min | X149: <min | Y149: <min | Z149: <min | AA149: <min | AB149: <min | AC149: <min | AD149: <min | AE149: <min | AF149: <min | AG149: <min | AH149: <min | AI149: <min | AJ149: <min | AK149: <min | AM149: 13 | AN149: 42 | AO149: 40.5 | AP149: 39.5 | AQ149: 39 | AR149: 59.5 | AS149: 55.5 | AT149: 52.5 | AU149: 50 | AV149: 123.5 | AW149: 109.5 | AX149: <min | AY149: <min | AZ149: <min | BA149: <min | BB149: <min | BC149: <min | BD149: <min | BE149: <min | BF149: <min | BG149: <min | BH149: <min | BI149: <min | BJ149: <min | BK149: <min | BL149: <min | BM149: <min | BN149: <min | BO149: <min
I150: 13.1 | J150: 45.5 | K150: 40 | L150: 36 | M150: 34.5 | N150: 66.5 | O150: 59.5 | P150: 53.5 | Q150: 46.5 | R150: 123 | S150: 116 | T150: 101.5 | U150: <min | V150: <min | W150: <min | X150: <min | Y150: <min | Z150: <min | AA150: <min | AB150: <min | AC150: <min | AD150: <min | AE150: <min | AF150: <min | AG150: <min | AH150: <min | AI150: <min | AJ150: <min | AK150: <min | AM150: 13.1 | AN150: 42.5 | AO150: 41 | AP150: 40 | AQ150: 39 | AR150: 59.5 | AS150: 56 | AT150: 53 | AU150: 50.5 | AV150: 124.5 | AW150: 110.5 | AX150: <min | AY150: <min | AZ150: <min | BA150: <min | BB150: <min | BC150: <min | BD150: <min | BE150: <min | BF150: <min | BG150: <min | BH150: <min | BI150: <min | BJ150: <min | BK150: <min | BL150: <min | BM150: <min | BN150: <min | BO150: <min
I151: 13.2 | J151: 46 | K151: 40 | L151: 36.5 | M151: 35 | N151: 67 | O151: 60 | P151: 54 | Q151: 46.5 | R151: 123.5 | S151: 116.5 | T151: 102 | U151: <min | V151: <min | W151: <min | X151: <min | Y151: <min | Z151: <min | AA151: <min | AB151: <min | AC151: <min | AD151: <min | AE151: <min | AF151: <min | AG151: <min | AH151: <min | AI151: <min | AJ151: <min | AK151: <min | AM151: 13.2 | AN151: 42.5 | AO151: 41 | AP151: 40 | AQ151: 39.5 | AR151: 60 | AS151: 56 | AT151: 53 | AU151: 50.5 | AV151: 125 | AW151: 111 | AX151: <min | AY151: <min | AZ151: <min | BA151: <min | BB151: <min | BC151: <min | BD151: <min | BE151: <min | BF151: <min | BG151: <min | BH151: <min | BI151: <min | BJ151: <min | BK151: <min | BL151: <min | BM151: <min | BN151: <min | BO151: <min
I152: 13.3 | J152: 46 | K152: 40.5 | L152: 36.5 | M152: 35 | N152: 67 | O152: 60.5 | P152: 54 | Q152: 47 | R152: 124.5 | S152: 117 | T152: 102.5 | U152: <min | V152: <min | W152: <min | X152: <min | Y152: <min | Z152: <min | AA152: <min | AB152: <min | AC152: <min | AD152: <min | AE152: <min | AF152: <min | AG152: <min | AH152: <min | AI152: <min | AJ152: <min | AK152: <min | AM152: 13.3 | AN152: 43 | AO152: 41.5 | AP152: 40.5 | AQ152: 39.5 | AR152: 60.5 | AS152: 56.5 | AT152: 53.5 | AU152: 51 | AV152: 125.5 | AW152: 111.5 | AX152: <min | AY152: <min | AZ152: <min | BA152: <min | BB152: <min | BC152: <min | BD152: <min | BE152: <min | BF152: <min | BG152: <min | BH152: <min | BI152: <min | BJ152: <min | BK152: <min | BL152: <min | BM152: <min | BN152: <min | BO152: <min
I153: 13.4 | J153: 46.5 | K153: 40.5 | L153: 37 | M153: 35.5 | N153: 67.5 | O153: 61 | P153: 54.5 | Q153: 47.5 | R153: 125 | S153: 118 | T153: 103 | U153: <min | V153: <min | W153: <min | X153: <min | Y153: <min | Z153: <min | AA153: <min | AB153: <min | AC153: <min | AD153: <min | AE153: <min | AF153: <min | AG153: <min | AH153: <min | AI153: <min | AJ153: <min | AK153: <min | AM153: 13.4 | AN153: 43 | AO153: 42 | AP153: 41 | AQ153: 40 | AR153: 60.5 | AS153: 57 | AT153: 54 | AU153: 51 | AV153: 126.5 | AW153: 112 | AX153: <min | AY153: <min | AZ153: <min | BA153: <min | BB153: <min | BC153: <min | BD153: <min | BE153: <min | BF153: <min | BG153: <min | BH153: <min | BI153: <min | BJ153: <min | BK153: <min | BL153: <min | BM153: <min | BN153: <min | BO153: <min
I154: 13.5 | J154: 46.5 | K154: 41 | L154: 37 | M154: 35.5 | N154: 68 | O154: 61 | P154: 54.5 | Q154: 47.5 | R154: 125.5 | S154: 118.5 | T154: 103.5 | U154: <min | V154: <min | W154: <min | X154: <min | Y154: <min | Z154: <min | AA154: <min | AB154: <min | AC154: <min | AD154: <min | AE154: <min | AF154: <min | AG154: <min | AH154: <min | AI154: <min | AJ154: <min | AK154: <min | AM154: 13.5 | AN154: 43.5 | AO154: 42 | AP154: 41 | AQ154: 40.5 | AR154: 61 | AS154: 57 | AT154: 54 | AU154: 51.5 | AV154: 127 | AW154: 112.5 | AX154: 100 | AY154: <min | AZ154: <min | BA154: <min | BB154: <min | BC154: <min | BD154: <min | BE154: <min | BF154: <min | BG154: <min | BH154: <min | BI154: <min | BJ154: <min | BK154: <min | BL154: <min | BM154: <min | BN154: <min | BO154: <min
I155: 13.6 | J155: 47 | K155: 41 | L155: 37.5 | M155: 36 | N155: 68 | O155: 61.5 | P155: 55 | Q155: 48 | R155: 126.5 | S155: 119 | T155: 104 | U155: <min | V155: <min | W155: <min | X155: <min | Y155: <min | Z155: <min | AA155: <min | AB155: <min | AC155: <min | AD155: <min | AE155: <min | AF155: <min | AG155: <min | AH155: <min | AI155: <min | AJ155: <min | AK155: <min | AM155: 13.6 | AN155: 43.5 | AO155: 42.5 | AP155: 41.5 | AQ155: 40.5 | AR155: 61.5 | AS155: 57.5 | AT155: 54.5 | AU155: 52 | AV155: 127.5 | AW155: 113 | AX155: 100.5 | AY155: <min | AZ155: <min | BA155: <min | BB155: <min | BC155: <min | BD155: <min | BE155: <min | BF155: <min | BG155: <min | BH155: <min | BI155: <min | BJ155: <min | BK155: <min | BL155: <min | BM155: <min | BN155: <min | BO155: <min
I156: 13.7 | J156: 47 | K156: 41.5 | L156: 37.5 | M156: 36 | N156: 68.5 | O156: 62 | P156: 55.5 | Q156: 48 | R156: 127 | S156: 119.5 | T156: 104.5 | U156: <min | V156: <min | W156: <min | X156: <min | Y156: <min | Z156: <min | AA156: <min | AB156: <min | AC156: <min | AD156: <min | AE156: <min | AF156: <min | AG156: <min | AH156: <min | AI156: <min | AJ156: <min | AK156: <min | AM156: 13.7 | AN156: 44 | AO156: 42.5 | AP156: 41.5 | AQ156: 41 | AR156: 61.5 | AS156: 58 | AT156: 55 | AU156: 52 | AV156: 128.5 | AW156: 113.5 | AX156: 101 | AY156: <min | AZ156: <min | BA156: <min | BB156: <min | BC156: <min | BD156: <min | BE156: <min | BF156: <min | BG156: <min | BH156: <min | BI156: <min | BJ156: <min | BK156: <min | BL156: <min | BM156: <min | BN156: <min | BO156: <min
I157: 13.8 | J157: 47.5 | K157: 41.5 | L157: 38 | M157: 36.5 | N157: 68.5 | O157: 62 | P157: 55.5 | Q157: 48.5 | R157: 128 | S157: 120.5 | T157: 105 | U157: <min | V157: <min | W157: <min | X157: <min | Y157: <min | Z157: <min | AA157: <min | AB157: <min | AC157: <min | AD157: <min | AE157: <min | AF157: <min | AG157: <min | AH157: <min | AI157: <min | AJ157: <min | AK157: <min | AM157: 13.8 | AN157: 44 | AO157: 43 | AP157: 42 | AQ157: 41 | AR157: 62 | AS157: 58 | AT157: 55 | AU157: 52.5 | AV157: 129 | AW157: 114.5 | AX157: 101.5 | AY157: <min | AZ157: <min | BA157: <min | BB157: <min | BC157: <min | BD157: <min | BE157: <min | BF157: <min | BG157: <min | BH157: <min | BI157: <min | BJ157: <min | BK157: <min | BL157: <min | BM157: <min | BN157: <min | BO157: <min
I158: 13.9 | J158: 47.5 | K158: 42 | L158: 38 | M158: 36.5 | N158: 69 | O158: 62.5 | P158: 56 | Q158: 49 | R158: 128.5 | S158: 121 | T158: 105.5 | U158: <min | V158: <min | W158: <min | X158: <min | Y158: <min | Z158: <min | AA158: <min | AB158: <min | AC158: <min | AD158: <min | AE158: <min | AF158: <min | AG158: <min | AH158: <min | AI158: <min | AJ158: <min | AK158: <min | AM158: 13.9 | AN158: 44.5 | AO158: 43 | AP158: 42 | AQ158: 41.5 | AR158: 62 | AS158: 58.5 | AT158: 55.5 | AU158: 53 | AV158: 129.5 | AW158: 115 | AX158: 102 | AY158: <min | AZ158: <min | BA158: <min | BB158: <min | BC158: <min | BD158: <min | BE158: <min | BF158: <min | BG158: <min | BH158: <min | BI158: <min | BJ158: <min | BK158: <min | BL158: <min | BM158: <min | BN158: <min | BO158: <min
I159: 14 | J159: 48 | K159: 42 | L159: 38.5 | M159: 37 | N159: 69.5 | O159: 63 | P159: 56.5 | Q159: 49 | R159: 129 | S159: 121.5 | T159: 106 | U159: <min | V159: <min | W159: <min | X159: <min | Y159: <min | Z159: <min | AA159: <min | AB159: <min | AC159: <min | AD159: <min | AE159: <min | AF159: <min | AG159: <min | AH159: <min | AI159: <min | AJ159: <min | AK159: <min | AM159: 14 | AN159: 44.5 | AO159: 43.5 | AP159: 42.5 | AQ159: 41.5 | AR159: 62.5 | AS159: 58.5 | AT159: 55.5 | AU159: 53 | AV159: 130.5 | AW159: 115.5 | AX159: 102.5 | AY159: <min | AZ159: <min | BA159: <min | BB159: <min | BC159: <min | BD159: <min | BE159: <min | BF159: <min | BG159: <min | BH159: <min | BI159: <min | BJ159: <min | BK159: <min | BL159: <min | BM159: <min | BN159: <min | BO159: <min
I160: 14.1 | J160: 48 | K160: 42.5 | L160: 38.5 | M160: 37 | N160: 69.5 | O160: 63 | P160: 56.5 | Q160: 49.5 | R160: 130 | S160: 122.5 | T160: 107 | U160: <min | V160: <min | W160: <min | X160: <min | Y160: <min | Z160: <min | AA160: <min | AB160: <min | AC160: <min | AD160: <min | AE160: <min | AF160: <min | AG160: <min | AH160: <min | AI160: <min | AJ160: <min | AK160: <min | AM160: 14.1 | AN160: 45 | AO160: 43.5 | AP160: 42.5 | AQ160: 42 | AR160: 63 | AS160: 59 | AT160: 56 | AU160: 53.5 | AV160: 131 | AW160: 116 | AX160: 103 | AY160: <min | AZ160: <min | BA160: <min | BB160: <min | BC160: <min | BD160: <min | BE160: <min | BF160: <min | BG160: <min | BH160: <min | BI160: <min | BJ160: <min | BK160: <min | BL160: <min | BM160: <min | BN160: <min | BO160: <min
I161: 14.2 | J161: 48.5 | K161: 42.5 | L161: 39 | M161: 37.5 | N161: 70 | O161: 63.5 | P161: 57 | Q161: 49.5 | R161: 130.5 | S161: 123 | T161: 107.5 | U161: <min | V161: <min | W161: <min | X161: <min | Y161: <min | Z161: <min | AA161: <min | AB161: <min | AC161: <min | AD161: <min | AE161: <min | AF161: <min | AG161: <min | AH161: <min | AI161: <min | AJ161: <min | AK161: <min | AM161: 14.2 | AN161: 45.5 | AO161: 44 | AP161: 43 | AQ161: 42 | AR161: 63 | AS161: 59.5 | AT161: 56.5 | AU161: 53.5 | AV161: 131.5 | AW161: 116.5 | AX161: 103.5 | AY161: <min | AZ161: <min | BA161: <min | BB161: <min | BC161: <min | BD161: <min | BE161: <min | BF161: <min | BG161: <min | BH161: <min | BI161: <min | BJ161: <min | BK161: <min | BL161: <min | BM161: <min | BN161: <min | BO161: <min
I162: 14.3 | J162: 48.5 | K162: 43 | L162: 39 | M162: 37.5 | N162: 70.5 | O162: 64 | P162: 57 | Q162: 50 | R162: 131.5 | S162: 123.5 | T162: 108 | U162: <min | V162: <min | W162: <min | X162: <min | Y162: <min | Z162: <min | AA162: <min | AB162: <min | AC162: <min | AD162: <min | AE162: <min | AF162: <min | AG162: <min | AH162: <min | AI162: <min | AJ162: <min | AK162: <min | AM162: 14.3 | AN162: 45.5 | AO162: 44 | AP162: 43 | AQ162: 42.5 | AR162: 63.5 | AS162: 59.5 | AT162: 56.5 | AU162: 54 | AV162: 132.5 | AW162: 117 | AX162: 104 | AY162: <min | AZ162: <min | BA162: <min | BB162: <min | BC162: <min | BD162: <min | BE162: <min | BF162: <min | BG162: <min | BH162: <min | BI162: <min | BJ162: <min | BK162: <min | BL162: <min | BM162: <min | BN162: <min | BO162: <min
I163: 14.4 | J163: 49 | K163: 43 | L163: 39.5 | M163: 38 | N163: 70.5 | O163: 64 | P163: 57.5 | Q163: 50.5 | R163: 132 | S163: 124 | T163: 108.5 | U163: <min | V163: <min | W163: <min | X163: <min | Y163: <min | Z163: <min | AA163: <min | AB163: <min | AC163: <min | AD163: <min | AE163: <min | AF163: <min | AG163: <min | AH163: <min | AI163: <min | AJ163: <min | AK163: <min | AM163: 14.4 | AN163: 46 | AO163: 44.5 | AP163: 43.5 | AQ163: 42.5 | AR163: 64 | AS163: 60 | AT163: 57 | AU163: 54.5 | AV163: 133 | AW163: 117.5 | AX163: 104.5 | AY163: <min | AZ163: <min | BA163: <min | BB163: <min | BC163: <min | BD163: <min | BE163: <min | BF163: <min | BG163: <min | BH163: <min | BI163: <min | BJ163: <min | BK163: <min | BL163: <min | BM163: <min | BN163: <min | BO163: <min
I164: 14.5 | J164: 49 | K164: 43.5 | L164: 39.5 | M164: 38 | N164: 71 | O164: 64.5 | P164: 58 | Q164: 50.5 | R164: 132.5 | S164: 125 | T164: 109 | U164: <min | V164: <min | W164: <min | X164: <min | Y164: <min | Z164: <min | AA164: <min | AB164: <min | AC164: <min | AD164: <min | AE164: <min | AF164: <min | AG164: <min | AH164: <min | AI164: <min | AJ164: <min | AK164: <min | AM164: 14.5 | AN164: 46 | AO164: 44.5 | AP164: 43.5 | AQ164: 43 | AR164: 64 | AS164: 60.5 | AT164: 57.5 | AU164: 54.5 | AV164: 133.5 | AW164: 118 | AX164: 105 | AY164: <min | AZ164: <min | BA164: <min | BB164: <min | BC164: <min | BD164: <min | BE164: <min | BF164: <min | BG164: <min | BH164: <min | BI164: <min | BJ164: <min | BK164: <min | BL164: <min | BM164: <min | BN164: <min | BO164: <min
I165: 14.6 | J165: 49.5 | K165: 43.5 | L165: 40 | M165: 38.5 | N165: 71.5 | O165: 65 | P165: 58 | Q165: 51 | R165: 133.5 | S165: 125.5 | T165: 109.5 | U165: <min | V165: <min | W165: <min | X165: <min | Y165: <min | Z165: <min | AA165: <min | AB165: <min | AC165: <min | AD165: <min | AE165: <min | AF165: <min | AG165: <min | AH165: <min | AI165: <min | AJ165: <min | AK165: <min | AM165: 14.6 | AN165: 46.5 | AO165: 45 | AP165: 44 | AQ165: 43 | AR165: 64.5 | AS165: 60.5 | AT165: 57.5 | AU165: 55 | AV165: 134.5 | AW165: 119 | AX165: 105.5 | AY165: <min | AZ165: <min | BA165: <min | BB165: <min | BC165: <min | BD165: <min | BE165: <min | BF165: <min | BG165: <min | BH165: <min | BI165: <min | BJ165: <min | BK165: <min | BL165: <min | BM165: <min | BN165: <min | BO165: <min
I166: 14.7 | J166: 49.5 | K166: 44 | L166: 40 | M166: 38.5 | N166: 71.5 | O166: 65 | P166: 58.5 | Q166: 51 | R166: 134 | S166: 126 | T166: 110 | U166: <min | V166: <min | W166: <min | X166: <min | Y166: <min | Z166: <min | AA166: <min | AB166: <min | AC166: <min | AD166: <min | AE166: <min | AF166: <min | AG166: <min | AH166: <min | AI166: <min | AJ166: <min | AK166: <min | AM166: 14.7 | AN166: 46.5 | AO166: 45.5 | AP166: 44 | AQ166: 43.5 | AR166: 65 | AS166: 61 | AT166: 58 | AU166: 55 | AV166: 135 | AW166: 119.5 | AX166: 106 | AY166: <min | AZ166: <min | BA166: <min | BB166: <min | BC166: <min | BD166: <min | BE166: <min | BF166: <min | BG166: <min | BH166: <min | BI166: <min | BJ166: <min | BK166: <min | BL166: <min | BM166: <min | BN166: <min | BO166: <min
I167: 14.8 | J167: 50 | K167: 44 | L167: 40.5 | M167: 39 | N167: 72 | O167: 65.5 | P167: 58.5 | Q167: 51.5 | R167: 135 | S167: 127 | T167: 110.5 | U167: <min | V167: <min | W167: <min | X167: <min | Y167: <min | Z167: <min | AA167: <min | AB167: <min | AC167: <min | AD167: <min | AE167: <min | AF167: <min | AG167: <min | AH167: <min | AI167: <min | AJ167: <min | AK167: <min | AM167: 14.8 | AN167: 47 | AO167: 45.5 | AP167: 44.5 | AQ167: 43.5 | AR167: 65 | AS167: 61.5 | AT167: 58 | AU167: 55.5 | AV167: 135.5 | AW167: 120 | AX167: 106.5 | AY167: <min | AZ167: <min | BA167: <min | BB167: <min | BC167: <min | BD167: <min | BE167: <min | BF167: <min | BG167: <min | BH167: <min | BI167: <min | BJ167: <min | BK167: <min | BL167: <min | BM167: <min | BN167: <min | BO167: <min
I168: 14.9 | J168: 50 | K168: 44.5 | L168: 40.5 | M168: 39 | N168: 72 | O168: 66 | P168: 59 | Q168: 52 | R168: 135.5 | S168: 127.5 | T168: 111 | U168: <min | V168: <min | W168: <min | X168: <min | Y168: <min | Z168: <min | AA168: <min | AB168: <min | AC168: <min | AD168: <min | AE168: <min | AF168: <min | AG168: <min | AH168: <min | AI168: <min | AJ168: <min | AK168: <min | AM168: 14.9 | AN168: 47 | AO168: 46 | AP168: 44.5 | AQ168: 44 | AR168: 65.5 | AS168: 61.5 | AT168: 58.5 | AU168: 56 | AV168: 136 | AW168: 120.5 | AX168: 107 | AY168: <min | AZ168: <min | BA168: <min | BB168: <min | BC168: <min | BD168: <min | BE168: <min | BF168: <min | BG168: <min | BH168: <min | BI168: <min | BJ168: <min | BK168: <min | BL168: <min | BM168: <min | BN168: <min | BO168: <min
I169: 15 | J169: 50.5 | K169: 44.5 | L169: 41 | M169: 39.5 | N169: 72.5 | O169: 66 | P169: 59.5 | Q169: 52 | R169: 136 | S169: 128 | T169: 111.5 | U169: <min | V169: <min | W169: <min | X169: <min | Y169: <min | Z169: <min | AA169: <min | AB169: <min | AC169: <min | AD169: <min | AE169: <min | AF169: <min | AG169: <min | AH169: <min | AI169: <min | AJ169: <min | AK169: <min | AM169: 15 | AN169: 47.5 | AO169: 46 | AP169: 45 | AQ169: 44 | AR169: 66 | AS169: 62 | AT169: 59 | AU169: 56 | AV169: 137 | AW169: 121 | AX169: 107.5 | AY169: <min | AZ169: <min | BA169: <min | BB169: <min | BC169: <min | BD169: <min | BE169: <min | BF169: <min | BG169: <min | BH169: <min | BI169: <min | BJ169: <min | BK169: <min | BL169: <min | BM169: <min | BN169: <min | BO169: <min
I170: 15.1 | J170: 50.5 | K170: 45 | L170: 41 | M170: 39.5 | N170: 73 | O170: 66.5 | P170: 59.5 | Q170: 52.5 | R170: 137 | S170: 128.5 | T170: 112 | U170: <min | V170: <min | W170: <min | X170: <min | Y170: <min | Z170: <min | AA170: <min | AB170: <min | AC170: <min | AD170: <min | AE170: <min | AF170: <min | AG170: <min | AH170: <min | AI170: <min | AJ170: <min | AK170: <min | AM170: 15.1 | AN170: 47.5 | AO170: 46.5 | AP170: 45.5 | AQ170: 44.5 | AR170: 66 | AS170: 62 | AT170: 59 | AU170: 56.5 | AV170: 137.5 | AW170: 121.5 | AX170: 108 | AY170: <min | AZ170: <min | BA170: <min | BB170: <min | BC170: <min | BD170: <min | BE170: <min | BF170: <min | BG170: <min | BH170: <min | BI170: <min | BJ170: <min | BK170: <min | BL170: <min | BM170: <min | BN170: <min | BO170: <min
I171: 15.2 | J171: 51 | K171: 45 | L171: 41.5 | M171: 39.5 | N171: 73 | O171: 67 | P171: 60 | Q171: 52.5 | R171: 137.5 | S171: 129.5 | T171: 112.5 | U171: <min | V171: <min | W171: <min | X171: <min | Y171: <min | Z171: <min | AA171: <min | AB171: <min | AC171: <min | AD171: <min | AE171: <min | AF171: <min | AG171: <min | AH171: <min | AI171: <min | AJ171: <min | AK171: <min | AM171: 15.2 | AN171: 48 | AO171: 46.5 | AP171: 45.5 | AQ171: 44.5 | AR171: 66.5 | AS171: 62.5 | AT171: 59.5 | AU171: 56.5 | AV171: 138 | AW171: 122 | AX171: 108.5 | AY171: <min | AZ171: <min | BA171: <min | BB171: <min | BC171: <min | BD171: <min | BE171: <min | BF171: <min | BG171: <min | BH171: <min | BI171: <min | BJ171: <min | BK171: <min | BL171: <min | BM171: <min | BN171: <min | BO171: <min
I172: 15.3 | J172: 51 | K172: 45 | L172: 41.5 | M172: 40 | N172: 73.5 | O172: 67.5 | P172: 60 | Q172: 53 | R172: 138.5 | S172: 130 | T172: 113 | U172: <min | V172: <min | W172: <min | X172: <min | Y172: <min | Z172: <min | AA172: <min | AB172: <min | AC172: <min | AD172: <min | AE172: <min | AF172: <min | AG172: <min | AH172: <min | AI172: <min | AJ172: <min | AK172: <min | AM172: 15.3 | AN172: 48 | AO172: 47 | AP172: 46 | AQ172: 45 | AR172: 66.5 | AS172: 63 | AT172: 59.5 | AU172: 57 | AV172: 139 | AW172: 122.5 | AX172: 108.5 | AY172: <min | AZ172: <min | BA172: <min | BB172: <min | BC172: <min | BD172: <min | BE172: <min | BF172: <min | BG172: <min | BH172: <min | BI172: <min | BJ172: <min | BK172: <min | BL172: <min | BM172: <min | BN172: <min | BO172: <min
I173: 15.4 | J173: 51 | K173: 45.5 | L173: 42 | M173: 40 | N173: 74 | O173: 67.5 | P173: 60.5 | Q173: 53.5 | R173: 139 | S173: 130.5 | T173: 113.5 | U173: <min | V173: <min | W173: <min | X173: <min | Y173: <min | Z173: <min | AA173: <min | AB173: <min | AC173: <min | AD173: <min | AE173: <min | AF173: <min | AG173: <min | AH173: <min | AI173: <min | AJ173: <min | AK173: <min | AM173: 15.4 | AN173: 48.5 | AO173: 47 | AP173: 46 | AQ173: 45.5 | AR173: 67 | AS173: 63 | AT173: 60 | AU173: 57.5 | AV173: 139.5 | AW173: 123.5 | AX173: 109 | AY173: <min | AZ173: <min | BA173: <min | BB173: <min | BC173: <min | BD173: <min | BE173: <min | BF173: <min | BG173: <min | BH173: <min | BI173: <min | BJ173: <min | BK173: <min | BL173: <min | BM173: <min | BN173: <min | BO173: <min
I174: 15.5 | J174: 51.5 | K174: 45.5 | L174: 42 | M174: 40.5 | N174: 74 | O174: 68 | P174: 61 | Q174: 53.5 | R174: 139.5 | S174: 131 | T174: 114 | U174: <min | V174: <min | W174: <min | X174: <min | Y174: <min | Z174: <min | AA174: <min | AB174: <min | AC174: <min | AD174: <min | AE174: <min | AF174: <min | AG174: <min | AH174: <min | AI174: <min | AJ174: <min | AK174: <min | AM174: 15.5 | AN174: 48.5 | AO174: 47.5 | AP174: 46.5 | AQ174: 45.5 | AR174: 67.5 | AS174: 63.5 | AT174: 60.5 | AU174: 57.5 | AV174: 140 | AW174: 124 | AX174: 109.5 | AY174: <min | AZ174: <min | BA174: <min | BB174: <min | BC174: <min | BD174: <min | BE174: <min | BF174: <min | BG174: <min | BH174: <min | BI174: <min | BJ174: <min | BK174: <min | BL174: <min | BM174: <min | BN174: <min | BO174: <min
I175: 15.6 | J175: 51.5 | K175: 46 | L175: 42.5 | M175: 40.5 | N175: 74.5 | O175: 68.5 | P175: 61 | Q175: 54 | R175: 140.5 | S175: 132 | T175: 114.5 | U175: <min | V175: <min | W175: <min | X175: <min | Y175: <min | Z175: <min | AA175: <min | AB175: <min | AC175: <min | AD175: <min | AE175: <min | AF175: <min | AG175: <min | AH175: <min | AI175: <min | AJ175: <min | AK175: <min | AM175: 15.6 | AN175: 49 | AO175: 47.5 | AP175: 46.5 | AQ175: 46 | AR175: 67.5 | AS175: 63.5 | AT175: 60.5 | AU175: 58 | AV175: 140.5 | AW175: 124.5 | AX175: 110 | AY175: <min | AZ175: <min | BA175: <min | BB175: <min | BC175: <min | BD175: <min | BE175: <min | BF175: <min | BG175: <min | BH175: <min | BI175: <min | BJ175: <min | BK175: <min | BL175: <min | BM175: <min | BN175: <min | BO175: <min
I176: 15.7 | J176: 52 | K176: 46 | L176: 42.5 | M176: 41 | N176: 74.5 | O176: 68.5 | P176: 61.5 | Q176: 54.5 | R176: 141 | S176: 132.5 | T176: 115 | U176: <min | V176: <min | W176: <min | X176: <min | Y176: <min | Z176: <min | AA176: <min | AB176: <min | AC176: <min | AD176: <min | AE176: <min | AF176: <min | AG176: <min | AH176: <min | AI176: <min | AJ176: <min | AK176: <min | AM176: 15.7 | AN176: 49 | AO176: 48 | AP176: 47 | AQ176: 46 | AR176: 68 | AS176: 64 | AT176: 61 | AU176: 58 | AV176: 141.5 | AW176: 125 | AX176: 110.5 | AY176: 100 | AZ176: <min | BA176: <min | BB176: <min | BC176: <min | BD176: <min | BE176: <min | BF176: <min | BG176: <min | BH176: <min | BI176: <min | BJ176: <min | BK176: <min | BL176: <min | BM176: <min | BN176: <min | BO176: <min
I177: 15.8 | J177: 52 | K177: 46.5 | L177: 43 | M177: 41 | N177: 75 | O177: 69 | P177: 61.5 | Q177: 54.5 | R177: 142 | S177: 133 | T177: 115.5 | U177: <min | V177: <min | W177: <min | X177: <min | Y177: <min | Z177: <min | AA177: <min | AB177: <min | AC177: <min | AD177: <min | AE177: <min | AF177: <min | AG177: <min | AH177: <min | AI177: <min | AJ177: <min | AK177: <min | AM177: 15.8 | AN177: 49.5 | AO177: 48 | AP177: 47 | AQ177: 46.5 | AR177: 68.5 | AS177: 64.5 | AT177: 61.5 | AU177: 58.5 | AV177: 142 | AW177: 125.5 | AX177: 111 | AY177: 100.5 | AZ177: <min | BA177: <min | BB177: <min | BC177: <min | BD177: <min | BE177: <min | BF177: <min | BG177: <min | BH177: <min | BI177: <min | BJ177: <min | BK177: <min | BL177: <min | BM177: <min | BN177: <min | BO177: <min
I178: 15.9 | J178: 52.5 | K178: 46.5 | L178: 43 | M178: 41.5 | N178: 75.5 | O178: 69.5 | P178: 62 | Q178: 55 | R178: 142.5 | S178: 133.5 | T178: 116 | U178: <min | V178: <min | W178: <min | X178: <min | Y178: <min | Z178: <min | AA178: <min | AB178: <min | AC178: <min | AD178: <min | AE178: <min | AF178: <min | AG178: <min | AH178: <min | AI178: <min | AJ178: <min | AK178: <min | AM178: 15.9 | AN178: 49.5 | AO178: 48.5 | AP178: 47.5 | AQ178: 46.5 | AR178: 68.5 | AS178: 64.5 | AT178: 61.5 | AU178: 59 | AV178: 142.5 | AW178: 126 | AX178: 111.5 | AY178: 101 | AZ178: <min | BA178: <min | BB178: <min | BC178: <min | BD178: <min | BE178: <min | BF178: <min | BG178: <min | BH178: <min | BI178: <min | BJ178: <min | BK178: <min | BL178: <min | BM178: <min | BN178: <min | BO178: <min
I179: 16 | J179: 52.5 | K179: 47 | L179: 43.5 | M179: 41.5 | N179: 75.5 | O179: 69.5 | P179: 62.5 | Q179: 55 | R179: 143 | S179: 134.5 | T179: 116.5 | U179: <min | V179: <min | W179: <min | X179: <min | Y179: <min | Z179: <min | AA179: <min | AB179: <min | AC179: <min | AD179: <min | AE179: <min | AF179: <min | AG179: <min | AH179: <min | AI179: <min | AJ179: <min | AK179: <min | AM179: 16 | AN179: 50 | AO179: 48.5 | AP179: 47.5 | AQ179: 47 | AR179: 69 | AS179: 65 | AT179: 62 | AU179: 59 | AV179: 143 | AW179: 126.5 | AX179: 112 | AY179: 101.5 | AZ179: <min | BA179: <min | BB179: <min | BC179: <min | BD179: <min | BE179: <min | BF179: <min | BG179: <min | BH179: <min | BI179: <min | BJ179: <min | BK179: <min | BL179: <min | BM179: <min | BN179: <min | BO179: <min
I180: 16.1 | J180: 53 | K180: 47 | L180: 43.5 | M180: 42 | N180: 76 | O180: 70 | P180: 62.5 | Q180: 55.5 | R180: 144 | S180: 135 | T180: 117 | U180: <min | V180: <min | W180: <min | X180: <min | Y180: <min | Z180: <min | AA180: <min | AB180: <min | AC180: <min | AD180: <min | AE180: <min | AF180: <min | AG180: <min | AH180: <min | AI180: <min | AJ180: <min | AK180: <min | AM180: 16.1 | AN180: 50 | AO180: 49 | AP180: 48 | AQ180: 47 | AR180: 69 | AS180: 65 | AT180: 62 | AU180: 59.5 | AV180: 144 | AW180: 127 | AX180: 112.5 | AY180: 101.5 | AZ180: <min | BA180: <min | BB180: <min | BC180: <min | BD180: <min | BE180: <min | BF180: <min | BG180: <min | BH180: <min | BI180: <min | BJ180: <min | BK180: <min | BL180: <min | BM180: <min | BN180: <min | BO180: <min
I181: 16.2 | J181: 53 | K181: 47.5 | L181: 44 | M181: 42 | N181: 76 | O181: 70 | P181: 63 | Q181: 56 | R181: 144.5 | S181: 135.5 | T181: 117.5 | U181: 100 | V181: <min | W181: <min | X181: <min | Y181: <min | Z181: <min | AA181: <min | AB181: <min | AC181: <min | AD181: <min | AE181: <min | AF181: <min | AG181: <min | AH181: <min | AI181: <min | AJ181: <min | AK181: <min | AM181: 16.2 | AN181: 50.5 | AO181: 49 | AP181: 48 | AQ181: 47.5 | AR181: 69.5 | AS181: 65.5 | AT181: 62.5 | AU181: 59.5 | AV181: 144.5 | AW181: 127.5 | AX181: 113 | AY181: 102 | AZ181: <min | BA181: <min | BB181: <min | BC181: <min | BD181: <min | BE181: <min | BF181: <min | BG181: <min | BH181: <min | BI181: <min | BJ181: <min | BK181: <min | BL181: <min | BM181: <min | BN181: <min | BO181: <min
I182: 16.3 | J182: 53.5 | K182: 47.5 | L182: 44 | M182: 42.5 | N182: 76.5 | O182: 70.5 | P182: 63 | Q182: 56 | R182: 145 | S182: 136 | T182: 118 | U182: 100.5 | V182: <min | W182: <min | X182: <min | Y182: <min | Z182: <min | AA182: <min | AB182: <min | AC182: <min | AD182: <min | AE182: <min | AF182: <min | AG182: <min | AH182: <min | AI182: <min | AJ182: <min | AK182: <min | AM182: 16.3 | AN182: 51 | AO182: 49.5 | AP182: 48.5 | AQ182: 47.5 | AR182: 70 | AS182: 66 | AT182: 63 | AU182: 60 | AV182: 145 | AW182: 128.5 | AX182: 113.5 | AY182: 102.5 | AZ182: <min | BA182: <min | BB182: <min | BC182: <min | BD182: <min | BE182: <min | BF182: <min | BG182: <min | BH182: <min | BI182: <min | BJ182: <min | BK182: <min | BL182: <min | BM182: <min | BN182: <min | BO182: <min
I183: 16.4 | J183: 53.5 | K183: 48 | L183: 44.5 | M183: 42.5 | N183: 77 | O183: 71 | P183: 63.5 | Q183: 56.5 | R183: 146 | S183: 137 | T183: 118.5 | U183: 101 | V183: <min | W183: <min | X183: <min | Y183: <min | Z183: <min | AA183: <min | AB183: <min | AC183: <min | AD183: <min | AE183: <min | AF183: <min | AG183: <min | AH183: <min | AI183: <min | AJ183: <min | AK183: <min | AM183: 16.4 | AN183: 51 | AO183: 49.5 | AP183: 48.5 | AQ183: 48 | AR183: 70 | AS183: 66 | AT183: 63 | AU183: 60.5 | AV183: 145.5 | AW183: 129 | AX183: 114 | AY183: 103 | AZ183: <min | BA183: <min | BB183: <min | BC183: <min | BD183: <min | BE183: <min | BF183: <min | BG183: <min | BH183: <min | BI183: <min | BJ183: <min | BK183: <min | BL183: <min | BM183: <min | BN183: <min | BO183: <min
I184: 16.5 | J184: 54 | K184: 48 | L184: 44.5 | M184: 43 | N184: 77 | O184: 71 | P184: 64 | Q184: 56.5 | R184: 146.5 | S184: 137.5 | T184: 119 | U184: 101.5 | V184: <min | W184: <min | X184: <min | Y184: <min | Z184: <min | AA184: <min | AB184: <min | AC184: <min | AD184: <min | AE184: <min | AF184: <min | AG184: <min | AH184: <min | AI184: <min | AJ184: <min | AK184: <min | AM184: 16.5 | AN184: 51.5 | AO184: 50 | AP184: 49 | AQ184: 48 | AR184: 70.5 | AS184: 66.5 | AT184: 63.5 | AU184: 60.5 | AV184: 146.5 | AW184: 129.5 | AX184: 114.5 | AY184: 103.5 | AZ184: <min | BA184: <min | BB184: <min | BC184: <min | BD184: <min | BE184: <min | BF184: <min | BG184: <min | BH184: <min | BI184: <min | BJ184: <min | BK184: <min | BL184: <min | BM184: <min | BN184: <min | BO184: <min
I185: 16.6 | J185: 54 | K185: 48.5 | L185: 45 | M185: 43 | N185: 77.5 | O185: 71.5 | P185: 64 | Q185: 57 | R185: 147.5 | S185: 138 | T185: 120 | U185: 102 | V185: <min | W185: <min | X185: <min | Y185: <min | Z185: <min | AA185: <min | AB185: <min | AC185: <min | AD185: <min | AE185: <min | AF185: <min | AG185: <min | AH185: <min | AI185: <min | AJ185: <min | AK185: <min | AM185: 16.6 | AN185: 51.5 | AO185: 50 | AP185: 49 | AQ185: 48.5 | AR185: 70.5 | AS185: 66.5 | AT185: 63.5 | AU185: 61 | AV185: 147 | AW185: 130 | AX185: 115 | AY185: 104 | AZ185: <min | BA185: <min | BB185: <min | BC185: <min | BD185: <min | BE185: <min | BF185: <min | BG185: <min | BH185: <min | BI185: <min | BJ185: <min | BK185: <min | BL185: <min | BM185: <min | BN185: <min | BO185: <min
I186: 16.7 | J186: 54.5 | K186: 48.5 | L186: 45.5 | M186: 43.5 | N186: 77.5 | O186: 72 | P186: 64.5 | Q186: 57.5 | R186: 148 | S186: 138.5 | T186: 120.5 | U186: 102 | V186: <min | W186: <min | X186: <min | Y186: <min | Z186: <min | AA186: <min | AB186: <min | AC186: <min | AD186: <min | AE186: <min | AF186: <min | AG186: <min | AH186: <min | AI186: <min | AJ186: <min | AK186: <min | AM186: 16.7 | AN186: 52 | AO186: 50.5 | AP186: 49.5 | AQ186: 48.5 | AR186: 71 | AS186: 67 | AT186: 64 | AU186: 61 | AV186: 147.5 | AW186: 130.5 | AX186: 115.5 | AY186: 104.5 | AZ186: <min | BA186: <min | BB186: <min | BC186: <min | BD186: <min | BE186: <min | BF186: <min | BG186: <min | BH186: <min | BI186: <min | BJ186: <min | BK186: <min | BL186: <min | BM186: <min | BN186: <min | BO186: <min
I187: 16.8 | J187: 54.5 | K187: 49 | L187: 45.5 | M187: 43.5 | N187: 78 | O187: 72 | P187: 64.5 | Q187: 57.5 | R187: 148.5 | S187: 139.5 | T187: 121 | U187: 102.5 | V187: <min | W187: <min | X187: <min | Y187: <min | Z187: <min | AA187: <min | AB187: <min | AC187: <min | AD187: <min | AE187: <min | AF187: <min | AG187: <min | AH187: <min | AI187: <min | AJ187: <min | AK187: <min | AM187: 16.8 | AN187: 52 | AO187: 50.5 | AP187: 49.5 | AQ187: 49 | AR187: 71.5 | AS187: 67.5 | AT187: 64 | AU187: 61.5 | AV187: 148 | AW187: 131 | AX187: 116 | AY187: 105 | AZ187: <min | BA187: <min | BB187: <min | BC187: <min | BD187: <min | BE187: <min | BF187: <min | BG187: <min | BH187: <min | BI187: <min | BJ187: <min | BK187: <min | BL187: <min | BM187: <min | BN187: <min | BO187: <min
I188: 16.9 | J188: 55 | K188: 49 | L188: 46 | M188: 44 | N188: 78.5 | O188: 72.5 | P188: 65 | Q188: 58 | R188: 149.5 | S188: 140 | T188: 121.5 | U188: 103 | V188: <min | W188: <min | X188: <min | Y188: <min | Z188: <min | AA188: <min | AB188: <min | AC188: <min | AD188: <min | AE188: <min | AF188: <min | AG188: <min | AH188: <min | AI188: <min | AJ188: <min | AK188: <min | AM188: 16.9 | AN188: 52.5 | AO188: 51 | AP188: 50 | AQ188: 49 | AR188: 71.5 | AS188: 67.5 | AT188: 64.5 | AU188: 62 | AV188: 149 | AW188: 131.5 | AX188: 116.5 | AY188: 105 | AZ188: <min | BA188: <min | BB188: <min | BC188: <min | BD188: <min | BE188: <min | BF188: <min | BG188: <min | BH188: <min | BI188: <min | BJ188: <min | BK188: <min | BL188: <min | BM188: <min | BN188: <min | BO188: <min
I189: 17 | J189: 55 | K189: 49.5 | L189: 46 | M189: 44 | N189: 78.5 | O189: 73 | P189: 65.5 | Q189: 58 | R189: 150 | S189: 140.5 | T189: 122 | U189: 103.5 | V189: <min | W189: <min | X189: <min | Y189: <min | Z189: <min | AA189: <min | AB189: <min | AC189: <min | AD189: <min | AE189: <min | AF189: <min | AG189: <min | AH189: <min | AI189: <min | AJ189: <min | AK189: <min | AM189: 17 | AN189: 52.5 | AO189: 51.5 | AP189: 50 | AQ189: 49.5 | AR189: 72 | AS189: 68 | AT189: 65 | AU189: 62 | AV189: 149.5 | AW189: 132 | AX189: 117 | AY189: 105.5 | AZ189: <min | BA189: <min | BB189: <min | BC189: <min | BD189: <min | BE189: <min | BF189: <min | BG189: <min | BH189: <min | BI189: <min | BJ189: <min | BK189: <min | BL189: <min | BM189: <min | BN189: <min | BO189: <min
I190: 17.1 | J190: 55 | K190: 49.5 | L190: 46.5 | M190: 44.5 | N190: 79 | O190: 73 | P190: 65.5 | Q190: 58.5 | R190: 150.5 | S190: 141 | T190: 122.5 | U190: 104 | V190: <min | W190: <min | X190: <min | Y190: <min | Z190: <min | AA190: <min | AB190: <min | AC190: <min | AD190: <min | AE190: <min | AF190: <min | AG190: <min | AH190: <min | AI190: <min | AJ190: <min | AK190: <min | AM190: 17.1 | AN190: 53 | AO190: 51.5 | AP190: 50.5 | AQ190: 49.5 | AR190: 72 | AS190: 68 | AT190: 65 | AU190: 62.5 | AV190: 150 | AW190: 132.5 | AX190: 117.5 | AY190: 106 | AZ190: <min | BA190: <min | BB190: <min | BC190: <min | BD190: <min | BE190: <min | BF190: <min | BG190: <min | BH190: <min | BI190: <min | BJ190: <min | BK190: <min | BL190: <min | BM190: <min | BN190: <min | BO190: <min
I191: 17.2 | J191: 55.5 | K191: 50 | L191: 46.5 | M191: 44.5 | N191: 79 | O191: 73.5 | P191: 66 | Q191: 59 | R191: 151.5 | S191: 141.5 | T191: 123 | U191: 104.5 | V191: <min | W191: <min | X191: <min | Y191: <min | Z191: <min | AA191: <min | AB191: <min | AC191: <min | AD191: <min | AE191: <min | AF191: <min | AG191: <min | AH191: <min | AI191: <min | AJ191: <min | AK191: <min | AM191: 17.2 | AN191: 53 | AO191: 52 | AP191: 50.5 | AQ191: 50 | AR191: 72.5 | AS191: 68.5 | AT191: 65.5 | AU191: 62.5 | AV191: 150.5 | AW191: 133 | AX191: 118 | AY191: 106.5 | AZ191: <min | BA191: <min | BB191: <min | BC191: <min | BD191: <min | BE191: <min | BF191: <min | BG191: <min | BH191: <min | BI191: <min | BJ191: <min | BK191: <min | BL191: <min | BM191: <min | BN191: <min | BO191: <min
I192: 17.3 | J192: 55.5 | K192: 50 | L192: 47 | M192: 45 | N192: 79.5 | O192: 74 | P192: 66 | Q192: 59 | R192: 152 | S192: 142.5 | T192: 123.5 | U192: 105 | V192: <min | W192: <min | X192: <min | Y192: <min | Z192: <min | AA192: <min | AB192: <min | AC192: <min | AD192: <min | AE192: <min | AF192: <min | AG192: <min | AH192: <min | AI192: <min | AJ192: <min | AK192: <min | AM192: 17.3 | AN192: 53.5 | AO192: 52 | AP192: 51 | AQ192: 50 | AR192: 72.5 | AS192: 69 | AT192: 65.5 | AU192: 63 | AV192: 151 | AW192: 133.5 | AX192: 118.5 | AY192: 107 | AZ192: <min | BA192: <min | BB192: <min | BC192: <min | BD192: <min | BE192: <min | BF192: <min | BG192: <min | BH192: <min | BI192: <min | BJ192: <min | BK192: <min | BL192: <min | BM192: <min | BN192: <min | BO192: <min
I193: 17.4 | J193: 56 | K193: 50.5 | L193: 47 | M193: 45 | N193: 79.5 | O193: 74 | P193: 66.5 | Q193: 59.5 | R193: 152.5 | S193: 143 | T193: 124 | U193: 105.5 | V193: <min | W193: <min | X193: <min | Y193: <min | Z193: <min | AA193: <min | AB193: <min | AC193: <min | AD193: <min | AE193: <min | AF193: <min | AG193: <min | AH193: <min | AI193: <min | AJ193: <min | AK193: <min | AM193: 17.4 | AN193: 53.5 | AO193: 52.5 | AP193: 51 | AQ193: 50.5 | AR193: 73 | AS193: 69 | AT193: 66 | AU193: 63 | AV193: 152 | AW193: 134.5 | AX193: 119 | AY193: 107.5 | AZ193: <min | BA193: <min | BB193: <min | BC193: <min | BD193: <min | BE193: <min | BF193: <min | BG193: <min | BH193: <min | BI193: <min | BJ193: <min | BK193: <min | BL193: <min | BM193: <min | BN193: <min | BO193: <min
I194: 17.5 | J194: 56 | K194: 50.5 | L194: 47.5 | M194: 45 | N194: 80 | O194: 74.5 | P194: 66.5 | Q194: 59.5 | R194: 153.5 | S194: 143.5 | T194: 124.5 | U194: 106 | V194: <min | W194: <min | X194: <min | Y194: <min | Z194: <min | AA194: <min | AB194: <min | AC194: <min | AD194: <min | AE194: <min | AF194: <min | AG194: <min | AH194: <min | AI194: <min | AJ194: <min | AK194: <min | AM194: 17.5 | AN194: 54 | AO194: 52.5 | AP194: 51.5 | AQ194: 50.5 | AR194: 73.5 | AS194: 69.5 | AT194: 66.5 | AU194: 63.5 | AV194: 152.5 | AW194: 135 | AX194: 119.5 | AY194: 108 | AZ194: <min | BA194: <min | BB194: <min | BC194: <min | BD194: <min | BE194: <min | BF194: <min | BG194: <min | BH194: <min | BI194: <min | BJ194: <min | BK194: <min | BL194: <min | BM194: <min | BN194: <min | BO194: <min
I195: 17.6 | J195: 56.5 | K195: 51 | L195: 47.5 | M195: 45.5 | N195: 80.5 | O195: 74.5 | P195: 67 | Q195: 60 | R195: 154 | S195: 144 | T195: 125 | U195: 106.5 | V195: <min | W195: <min | X195: <min | Y195: <min | Z195: <min | AA195: <min | AB195: <min | AC195: <min | AD195: <min | AE195: <min | AF195: <min | AG195: <min | AH195: <min | AI195: <min | AJ195: <min | AK195: <min | AM195: 17.6 | AN195: 54 | AO195: 53 | AP195: 51.5 | AQ195: 51 | AR195: 73.5 | AS195: 69.5 | AT195: 66.5 | AU195: 64 | AV195: 153 | AW195: 135.5 | AX195: 120 | AY195: 108 | AZ195: <min | BA195: <min | BB195: <min | BC195: <min | BD195: <min | BE195: <min | BF195: <min | BG195: <min | BH195: <min | BI195: <min | BJ195: <min | BK195: <min | BL195: <min | BM195: <min | BN195: <min | BO195: <min
I196: 17.7 | J196: 56.5 | K196: 51 | L196: 48 | M196: 45.5 | N196: 80.5 | O196: 75 | P196: 67.5 | Q196: 60.5 | R196: 154.5 | S196: 144.5 | T196: 125.5 | U196: 106.5 | V196: <min | W196: <min | X196: <min | Y196: <min | Z196: <min | AA196: <min | AB196: <min | AC196: <min | AD196: <min | AE196: <min | AF196: <min | AG196: <min | AH196: <min | AI196: <min | AJ196: <min | AK196: <min | AM196: 17.7 | AN196: 54.5 | AO196: 53 | AP196: 52 | AQ196: 51 | AR196: 74 | AS196: 70 | AT196: 67 | AU196: 64 | AV196: 153.5 | AW196: 136 | AX196: 120.5 | AY196: 108.5 | AZ196: <min | BA196: <min | BB196: <min | BC196: <min | BD196: <min | BE196: <min | BF196: <min | BG196: <min | BH196: <min | BI196: <min | BJ196: <min | BK196: <min | BL196: <min | BM196: <min | BN196: <min | BO196: <min
I197: 17.8 | J197: 57 | K197: 51.5 | L197: 48 | M197: 46 | N197: 81 | O197: 75.5 | P197: 67.5 | Q197: 60.5 | R197: 155.5 | S197: 145.5 | T197: 126 | U197: 107 | V197: <min | W197: <min | X197: <min | Y197: <min | Z197: <min | AA197: <min | AB197: <min | AC197: <min | AD197: <min | AE197: <min | AF197: <min | AG197: <min | AH197: <min | AI197: <min | AJ197: <min | AK197: <min | AM197: 17.8 | AN197: 54.5 | AO197: 53.5 | AP197: 52 | AQ197: 51.5 | AR197: 74 | AS197: 70 | AT197: 67 | AU197: 64.5 | AV197: 154 | AW197: 136.5 | AX197: 121 | AY197: 109 | AZ197: <min | BA197: <min | BB197: <min | BC197: <min | BD197: <min | BE197: <min | BF197: <min | BG197: <min | BH197: <min | BI197: <min | BJ197: <min | BK197: <min | BL197: <min | BM197: <min | BN197: <min | BO197: <min
I198: 17.9 | J198: 57 | K198: 51.5 | L198: 48.5 | M198: 46 | N198: 81 | O198: 75.5 | P198: 68 | Q198: 61 | R198: 156 | S198: 146 | T198: 126.5 | U198: 107.5 | V198: <min | W198: <min | X198: <min | Y198: <min | Z198: <min | AA198: <min | AB198: <min | AC198: <min | AD198: <min | AE198: <min | AF198: <min | AG198: <min | AH198: <min | AI198: <min | AJ198: <min | AK198: <min | AM198: 17.9 | AN198: 55 | AO198: 53.5 | AP198: 52.5 | AQ198: 51.5 | AR198: 74.5 | AS198: 70.5 | AT198: 67.5 | AU198: 64.5 | AV198: 154.5 | AW198: 137 | AX198: 121.5 | AY198: 109.5 | AZ198: <min | BA198: <min | BB198: <min | BC198: <min | BD198: <min | BE198: <min | BF198: <min | BG198: <min | BH198: <min | BI198: <min | BJ198: <min | BK198: <min | BL198: <min | BM198: <min | BN198: <min | BO198: <min
I199: 18 | J199: 57.5 | K199: 52 | L199: 48.5 | M199: 46.5 | N199: 81.5 | O199: 76 | P199: 68 | Q199: 61 | R199: 156.5 | S199: 146.5 | T199: 127 | U199: 108 | V199: <min | W199: <min | X199: <min | Y199: <min | Z199: <min | AA199: <min | AB199: <min | AC199: <min | AD199: <min | AE199: <min | AF199: <min | AG199: <min | AH199: <min | AI199: <min | AJ199: <min | AK199: <min | AM199: 18 | AN199: 55 | AO199: 54 | AP199: 53 | AQ199: 52 | AR199: 74.5 | AS199: 71 | AT199: 67.5 | AU199: 65 | AV199: 155.5 | AW199: 137.5 | AX199: 122 | AY199: 110 | AZ199: <min | BA199: <min | BB199: <min | BC199: <min | BD199: <min | BE199: <min | BF199: <min | BG199: <min | BH199: <min | BI199: <min | BJ199: <min | BK199: <min | BL199: <min | BM199: <min | BN199: <min | BO199: <min
I200: 18.1 | J200: 57.5 | K200: 52 | L200: 49 | M200: 46.5 | N200: 82 | O200: 76 | P200: 68.5 | Q200: 61.5 | R200: 157.5 | S200: 147 | T200: 127.5 | U200: 108.5 | V200: <min | W200: <min | X200: <min | Y200: <min | Z200: <min | AA200: <min | AB200: <min | AC200: <min | AD200: <min | AE200: <min | AF200: <min | AG200: <min | AH200: <min | AI200: <min | AJ200: <min | AK200: <min | AM200: 18.1 | AN200: 55.5 | AO200: 54 | AP200: 53 | AQ200: 52 | AR200: 75 | AS200: 71 | AT200: 68 | AU200: 65.5 | AV200: 156 | AW200: 138 | AX200: 122 | AY200: 110.5 | AZ200: <min | BA200: <min | BB200: <min | BC200: <min | BD200: <min | BE200: <min | BF200: <min | BG200: <min | BH200: <min | BI200: <min | BJ200: <min | BK200: <min | BL200: <min | BM200: <min | BN200: <min | BO200: <min
I201: 18.2 | J201: 57.5 | K201: 52.5 | L201: 49 | M201: 47 | N201: 82 | O201: 76.5 | P201: 68.5 | Q201: 62 | R201: 158 | S201: 147.5 | T201: 128 | U201: 109 | V201: <min | W201: <min | X201: <min | Y201: <min | Z201: <min | AA201: <min | AB201: <min | AC201: <min | AD201: <min | AE201: <min | AF201: <min | AG201: <min | AH201: <min | AI201: <min | AJ201: <min | AK201: <min | AM201: 18.2 | AN201: 55.5 | AO201: 54.5 | AP201: 53.5 | AQ201: 52.5 | AR201: 75.5 | AS201: 71.5 | AT201: 68.5 | AU201: 65.5 | AV201: 156.5 | AW201: 138.5 | AX201: 122.5 | AY201: 111 | AZ201: <min | BA201: <min | BB201: <min | BC201: <min | BD201: <min | BE201: <min | BF201: <min | BG201: <min | BH201: <min | BI201: <min | BJ201: <min | BK201: <min | BL201: <min | BM201: <min | BN201: <min | BO201: <min
I202: 18.3 | J202: 58 | K202: 52.5 | L202: 49.5 | M202: 47 | N202: 82.5 | O202: 77 | P202: 69 | Q202: 62 | R202: 159 | S202: 148.5 | T202: 128.5 | U202: 109.5 | V202: <min | W202: <min | X202: <min | Y202: <min | Z202: <min | AA202: <min | AB202: <min | AC202: <min | AD202: <min | AE202: <min | AF202: <min | AG202: <min | AH202: <min | AI202: <min | AJ202: <min | AK202: <min | AM202: 18.3 | AN202: 56 | AO202: 54.5 | AP202: 53.5 | AQ202: 52.5 | AR202: 75.5 | AS202: 71.5 | AT202: 68.5 | AU202: 66 | AV202: 157 | AW202: 139 | AX202: 123 | AY202: 111.5 | AZ202: <min | BA202: <min | BB202: <min | BC202: <min | BD202: <min | BE202: <min | BF202: <min | BG202: <min | BH202: <min | BI202: <min | BJ202: <min | BK202: <min | BL202: <min | BM202: <min | BN202: <min | BO202: <min
I203: 18.4 | J203: 58 | K203: 53 | L203: 49.5 | M203: 47.5 | N203: 82.5 | O203: 77 | P203: 69.5 | Q203: 62.5 | R203: 159.5 | S203: 149 | T203: 129 | U203: 110 | V203: <min | W203: <min | X203: <min | Y203: <min | Z203: <min | AA203: <min | AB203: <min | AC203: <min | AD203: <min | AE203: <min | AF203: <min | AG203: <min | AH203: <min | AI203: <min | AJ203: <min | AK203: <min | AM203: 18.4 | AN203: 56 | AO203: 55 | AP203: 54 | AQ203: 53 | AR203: 76 | AS203: 72 | AT203: 69 | AU203: 66 | AV203: 157.5 | AW203: 139.5 | AX203: 123.5 | AY203: 111.5 | AZ203: <min | BA203: <min | BB203: <min | BC203: <min | BD203: <min | BE203: <min | BF203: <min | BG203: <min | BH203: <min | BI203: <min | BJ203: <min | BK203: <min | BL203: <min | BM203: <min | BN203: <min | BO203: <min
I204: 18.5 | J204: 58.5 | K204: 53 | L204: 50 | M204: 47.5 | N204: 83 | O204: 77.5 | P204: 69.5 | Q204: 62.5 | R204: 160 | S204: 149.5 | T204: 129.5 | U204: 110.5 | V204: <min | W204: <min | X204: <min | Y204: <min | Z204: <min | AA204: <min | AB204: <min | AC204: <min | AD204: <min | AE204: <min | AF204: <min | AG204: <min | AH204: <min | AI204: <min | AJ204: <min | AK204: <min | AM204: 18.5 | AN204: 56.5 | AO204: 55 | AP204: 54 | AQ204: 53 | AR204: 76 | AS204: 72 | AT204: 69 | AU204: 66.5 | AV204: 158 | AW204: 140 | AX204: 124 | AY204: 112 | AZ204: <min | BA204: <min | BB204: <min | BC204: <min | BD204: <min | BE204: <min | BF204: <min | BG204: <min | BH204: <min | BI204: <min | BJ204: <min | BK204: <min | BL204: <min | BM204: <min | BN204: <min | BO204: <min
I205: 18.6 | J205: 58.5 | K205: 53.5 | L205: 50 | M205: 48 | N205: 83 | O205: 77.5 | P205: 70 | Q205: 63 | R205: 161 | S205: 150 | T205: 130 | U205: 110.5 | V205: <min | W205: <min | X205: <min | Y205: <min | Z205: <min | AA205: <min | AB205: <min | AC205: <min | AD205: <min | AE205: <min | AF205: <min | AG205: <min | AH205: <min | AI205: <min | AJ205: <min | AK205: <min | AM205: 18.6 | AN205: 56.5 | AO205: 55.5 | AP205: 54.5 | AQ205: 53.5 | AR205: 76.5 | AS205: 72.5 | AT205: 69.5 | AU205: 66.5 | AV205: 158.5 | AW205: 140.5 | AX205: 124.5 | AY205: 112.5 | AZ205: <min | BA205: <min | BB205: <min | BC205: <min | BD205: <min | BE205: <min | BF205: <min | BG205: <min | BH205: <min | BI205: <min | BJ205: <min | BK205: <min | BL205: <min | BM205: <min | BN205: <min | BO205: <min
I206: 18.7 | J206: 59 | K206: 53.5 | L206: 50.5 | M206: 48 | N206: 83.5 | O206: 78 | P206: 70 | Q206: 63.5 | R206: 161.5 | S206: 150.5 | T206: 130.5 | U206: 111 | V206: <min | W206: <min | X206: <min | Y206: <min | Z206: <min | AA206: <min | AB206: <min | AC206: <min | AD206: <min | AE206: <min | AF206: <min | AG206: <min | AH206: <min | AI206: <min | AJ206: <min | AK206: <min | AM206: 18.7 | AN206: 57 | AO206: 55.5 | AP206: 54.5 | AQ206: 54 | AR206: 76.5 | AS206: 73 | AT206: 69.5 | AU206: 67 | AV206: 159.5 | AW206: 141 | AX206: 125 | AY206: 113 | AZ206: <min | BA206: <min | BB206: <min | BC206: <min | BD206: <min | BE206: <min | BF206: <min | BG206: <min | BH206: <min | BI206: <min | BJ206: <min | BK206: <min | BL206: <min | BM206: <min | BN206: <min | BO206: <min
I207: 18.8 | J207: 59 | K207: 54 | L207: 50.5 | M207: 48.5 | N207: 84 | O207: 78.5 | P207: 70.5 | Q207: 63.5 | R207: 162 | S207: 151 | T207: 131 | U207: 111.5 | V207: <min | W207: <min | X207: <min | Y207: <min | Z207: <min | AA207: <min | AB207: <min | AC207: <min | AD207: <min | AE207: <min | AF207: <min | AG207: <min | AH207: <min | AI207: <min | AJ207: <min | AK207: <min | AM207: 18.8 | AN207: 57 | AO207: 56 | AP207: 55 | AQ207: 54 | AR207: 77 | AS207: 73 | AT207: 70 | AU207: 67.5 | AV207: 160 | AW207: 142 | AX207: 125.5 | AY207: 113.5 | AZ207: <min | BA207: <min | BB207: <min | BC207: <min | BD207: <min | BE207: <min | BF207: <min | BG207: <min | BH207: <min | BI207: <min | BJ207: <min | BK207: <min | BL207: <min | BM207: <min | BN207: <min | BO207: <min
I208: 18.9 | J208: 59.5 | K208: 54 | L208: 51 | M208: 48.5 | N208: 84 | O208: 78.5 | P208: 70.5 | Q208: 64 | R208: 162.5 | S208: 151.5 | T208: 131.5 | U208: 112 | V208: <min | W208: <min | X208: <min | Y208: <min | Z208: <min | AA208: <min | AB208: <min | AC208: <min | AD208: <min | AE208: <min | AF208: <min | AG208: <min | AH208: <min | AI208: <min | AJ208: <min | AK208: <min | AM208: 18.9 | AN208: 57.5 | AO208: 56 | AP208: 55 | AQ208: 54.5 | AR208: 77 | AS208: 73.5 | AT208: 70.5 | AU208: 67.5 | AV208: 160.5 | AW208: 142.5 | AX208: 126 | AY208: 114 | AZ208: <min | BA208: <min | BB208: <min | BC208: <min | BD208: <min | BE208: <min | BF208: <min | BG208: <min | BH208: <min | BI208: <min | BJ208: <min | BK208: <min | BL208: <min | BM208: <min | BN208: <min | BO208: <min
I209: 19 | J209: 59.5 | K209: 54 | L209: 51 | M209: 49 | N209: 84.5 | O209: 79 | P209: 71 | Q209: 64 | R209: 163.5 | S209: 152.5 | T209: 132 | U209: 112.5 | V209: <min | W209: <min | X209: <min | Y209: <min | Z209: <min | AA209: <min | AB209: <min | AC209: <min | AD209: <min | AE209: <min | AF209: <min | AG209: <min | AH209: <min | AI209: <min | AJ209: <min | AK209: <min | AM209: 19 | AN209: 57.5 | AO209: 56.5 | AP209: 55.5 | AQ209: 54.5 | AR209: 77.5 | AS209: 73.5 | AT209: 70.5 | AU209: 68 | AV209: 161 | AW209: 143 | AX209: 126.5 | AY209: 114.5 | AZ209: <min | BA209: <min | BB209: <min | BC209: <min | BD209: <min | BE209: <min | BF209: <min | BG209: <min | BH209: <min | BI209: <min | BJ209: <min | BK209: <min | BL209: <min | BM209: <min | BN209: <min | BO209: <min
I210: 19.1 | J210: 60 | K210: 54.5 | L210: 51.5 | M210: 49 | N210: 84.5 | O210: 79 | P210: 71.5 | Q210: 64.5 | R210: 164 | S210: 153 | T210: 132.5 | U210: 113 | V210: <min | W210: <min | X210: <min | Y210: <min | Z210: <min | AA210: <min | AB210: <min | AC210: <min | AD210: <min | AE210: <min | AF210: <min | AG210: <min | AH210: <min | AI210: <min | AJ210: <min | AK210: <min | AM210: 19.1 | AN210: 58 | AO210: 56.5 | AP210: 55.5 | AQ210: 55 | AR210: 77.5 | AS210: 74 | AT210: 71 | AU210: 68 | AV210: 161.5 | AW210: 143.5 | AX210: 127 | AY210: 114.5 | AZ210: <min | BA210: <min | BB210: <min | BC210: <min | BD210: <min | BE210: <min | BF210: <min | BG210: <min | BH210: <min | BI210: <min | BJ210: <min | BK210: <min | BL210: <min | BM210: <min | BN210: <min | BO210: <min
I211: 19.2 | J211: 60 | K211: 54.5 | L211: 51.5 | M211: 49.5 | N211: 85 | O211: 79.5 | P211: 71.5 | Q211: 65 | R211: 164.5 | S211: 153.5 | T211: 133 | U211: 113.5 | V211: <min | W211: <min | X211: <min | Y211: <min | Z211: <min | AA211: <min | AB211: <min | AC211: <min | AD211: <min | AE211: <min | AF211: <min | AG211: <min | AH211: <min | AI211: <min | AJ211: <min | AK211: <min | AM211: 19.2 | AN211: 58 | AO211: 57 | AP211: 56 | AQ211: 55 | AR211: 78 | AS211: 74 | AT211: 71 | AU211: 68.5 | AV211: 162 | AW211: 144 | AX211: 127.5 | AY211: 115 | AZ211: <min | BA211: <min | BB211: <min | BC211: <min | BD211: <min | BE211: <min | BF211: <min | BG211: <min | BH211: <min | BI211: <min | BJ211: <min | BK211: <min | BL211: <min | BM211: <min | BN211: <min | BO211: <min
I212: 19.3 | J212: 60 | K212: 55 | L212: 52 | M212: 49.5 | N212: 85.5 | O212: 80 | P212: 72 | Q212: 65 | R212: 165.5 | S212: 154 | T212: 133.5 | U212: 114 | V212: <min | W212: <min | X212: <min | Y212: <min | Z212: <min | AA212: <min | AB212: <min | AC212: <min | AD212: <min | AE212: <min | AF212: <min | AG212: <min | AH212: <min | AI212: <min | AJ212: <min | AK212: <min | AM212: 19.3 | AN212: 58.5 | AO212: 57 | AP212: 56 | AQ212: 55.5 | AR212: 78 | AS212: 74.5 | AT212: 71.5 | AU212: 68.5 | AV212: 162.5 | AW212: 144.5 | AX212: 128 | AY212: 115.5 | AZ212: <min | BA212: <min | BB212: <min | BC212: <min | BD212: <min | BE212: <min | BF212: <min | BG212: <min | BH212: <min | BI212: <min | BJ212: <min | BK212: <min | BL212: <min | BM212: <min | BN212: <min | BO212: <min
I213: 19.4 | J213: 60.5 | K213: 55 | L213: 52 | M213: 50 | N213: 85.5 | O213: 80 | P213: 72 | Q213: 65.5 | R213: 166 | S213: 154.5 | T213: 134 | U213: 114.5 | V213: <min | W213: <min | X213: <min | Y213: <min | Z213: <min | AA213: <min | AB213: <min | AC213: <min | AD213: <min | AE213: <min | AF213: <min | AG213: <min | AH213: <min | AI213: <min | AJ213: <min | AK213: <min | AM213: 19.4 | AN213: 58.5 | AO213: 57.5 | AP213: 56.5 | AQ213: 55.5 | AR213: 78.5 | AS213: 74.5 | AT213: 71.5 | AU213: 69 | AV213: 163 | AW213: 145 | AX213: 128.5 | AY213: 116 | AZ213: <min | BA213: <min | BB213: <min | BC213: <min | BD213: <min | BE213: <min | BF213: <min | BG213: <min | BH213: <min | BI213: <min | BJ213: <min | BK213: <min | BL213: <min | BM213: <min | BN213: <min | BO213: <min
I214: 19.5 | J214: 60.5 | K214: 55.5 | L214: 52.5 | M214: 50 | N214: 86 | O214: 80.5 | P214: 72.5 | Q214: 65.5 | R214: 166.5 | S214: 155 | T214: 134.5 | U214: 115 | V214: <min | W214: <min | X214: <min | Y214: <min | Z214: <min | AA214: <min | AB214: <min | AC214: <min | AD214: <min | AE214: <min | AF214: <min | AG214: <min | AH214: <min | AI214: <min | AJ214: <min | AK214: <min | AM214: 19.5 | AN214: 59 | AO214: 57.5 | AP214: 56.5 | AQ214: 56 | AR214: 79 | AS214: 75 | AT214: 72 | AU214: 69 | AV214: 164 | AW214: 145.5 | AX214: 129 | AY214: 116.5 | AZ214: <min | BA214: <min | BB214: <min | BC214: <min | BD214: <min | BE214: <min | BF214: <min | BG214: <min | BH214: <min | BI214: <min | BJ214: <min | BK214: <min | BL214: <min | BM214: <min | BN214: <min | BO214: <min
I215: 19.6 | J215: 61 | K215: 55.5 | L215: 52.5 | M215: 50.5 | N215: 86 | O215: 80.5 | P215: 72.5 | Q215: 66 | R215: 167.5 | S215: 155.5 | T215: 135 | U215: 115 | V215: <min | W215: <min | X215: <min | Y215: <min | Z215: <min | AA215: <min | AB215: <min | AC215: <min | AD215: <min | AE215: <min | AF215: <min | AG215: <min | AH215: <min | AI215: <min | AJ215: <min | AK215: <min | AM215: 19.6 | AN215: 59 | AO215: 58 | AP215: 57 | AQ215: 56 | AR215: 79 | AS215: 75.5 | AT215: 72.5 | AU215: 69.5 | AV215: 164.5 | AW215: 146 | AX215: 129.5 | AY215: 117 | AZ215: <min | BA215: <min | BB215: <min | BC215: <min | BD215: <min | BE215: <min | BF215: <min | BG215: <min | BH215: <min | BI215: <min | BJ215: <min | BK215: <min | BL215: <min | BM215: <min | BN215: <min | BO215: <min
I216: 19.7 | J216: 61 | K216: 56 | L216: 53 | M216: 50.5 | N216: 86.5 | O216: 81 | P216: 73 | Q216: 66.5 | R216: 168 | S216: 156 | T216: 136 | U216: 115.5 | V216: <min | W216: <min | X216: <min | Y216: <min | Z216: <min | AA216: <min | AB216: <min | AC216: <min | AD216: <min | AE216: <min | AF216: <min | AG216: <min | AH216: <min | AI216: <min | AJ216: <min | AK216: <min | AM216: 19.7 | AN216: 59.5 | AO216: 58 | AP216: 57 | AQ216: 56.5 | AR216: 79.5 | AS216: 75.5 | AT216: 72.5 | AU216: 70 | AV216: 165 | AW216: 146.5 | AX216: 130 | AY216: 117.5 | AZ216: <min | BA216: <min | BB216: <min | BC216: <min | BD216: <min | BE216: <min | BF216: <min | BG216: <min | BH216: <min | BI216: <min | BJ216: <min | BK216: <min | BL216: <min | BM216: <min | BN216: <min | BO216: <min
... 909 more rows

Sheet DataParse
A1: Use this when you have the ComFAA results copied to the clipboard, otherwise macro error.
A4: Project info Cell B4-OR--> | B4: GA RW
A5: IMPORTANT Copy Entire Contents of Summary Table (comma separated data) into Cell B5---> | B5: Num | C5: Plane | D5: GWin | E5: ACNin | F5: ADout | G5: 6Dt | H5: COV20yr | I5: COVtoF | J5: CDFt | K5: GWcdf | L5: PCNcdf | M5: EVALt | N5: SUBcode | O5: KorCBR | P5: PtoTC | Q5: FlexOrRig
B6: 5 | C6: Falcon-50 | D6: 38800 | E6: 13.6 | F6: 100 | G6: 7.05 | H6: 302.738 | I6: 3.61619 | J6: 7.07 | K6: 28248.913 | L6: 9.5 | M6: 6 | N6: D | O6: 84.5 | P6: 1 | Q6: R
B7: 4 | C7: Citation-X | D7: 36000 | E7: 12.8 | F7: 25 | G7: 6.52 | H7: 76.9511 | I7: 7.82964 | J7: 7.04 | K7: 26613.574 | L7: 9.1 | M7: 6 | N7: D | O7: 84.5 | P7: 1 | Q7: R
B8: 1 | C8: Single Wheel 10 | D8: 10000 | E8: 6.3 | F8: 1000 | G8: 5.05 | H8: 3283.8 | I8: 64696.9 | J8: 7.57 | K8: 5925.638 | L8: 3.7 | M8: 6 | N8: D | O8: 84.5 | P8: 1 | Q8: R
B9: 3 | C9: Citation-525 | D9: 10500 | E9: 3.8 | F9: 50 | G9: 3.69 | H9: 83.2664 | I9: 2565420 | J9: 7.3 | K9: 6869.377 | L9: 2.4 | M9: 6 | N9: D | O9: 84.5 | P9: 1 | Q9: R
B10: 6 | C10: KingAir-B-100 | D10: 11500 | E10: 2.8 | F10: 100 | G10: 3.26 | H10: 332.281 | I10: 131148000 | J10: 7.09 | K10: 8312.925 | L10: 1.8 | M10: 6 | N10: D | O10: 84.5 | P10: 1 | Q10: R
B11: 2 | C11: Baron-E-55 | D11: 5424 | E11: 1.5 | F11: 1200 | G11: 2.75 | H11: 1900.38 | I11: 68407500000 | J11: 6.87 | K11: 4024.618 | L11: 1.1 | M11: 6 | N11: D | O11: 84.5 | P11: 1 | Q11: R

Sheet FlexChart
A1: GA RW
A2: Num | B2: Plane | C2: GWin | D2: ACNin | E2: ADout | F2: 6Dt | G2: COV20yr | H2: COVtoF | I2: CDFt | J2: GWcdf | K2: PCNcdf | L2: EVALt | M2: SUBcode | N2: KorCBR | O2: PtoTC | P2: FlexOrRig | S2: % of 10k Coverages
A3: 2 | B3: Baron-E-55 | C3: 5424 | D3: 2.1 | E3: 1200 | F3: 7.09 | G3: 1900.38 | H3: 1.01423e+304 | I3: 16.17 | J3: 6140.426 | K3: 2.3 | L3: 17.2 | M3: D | N3: 4 | O3: 1 | P3: F | S3: =G3/10000 -> 0.190038
A4: 6 | B4: KingAir-B-100 | C4: 11500 | D4: 3.2 | E4: 100 | F4: 7.01 | G4: 332.281 | H4: 1.01423e+304 | I4: 15.72 | J4: 13495.928 | K4: 3.9 | L4: 17.2 | M4: D | N4: 4 | O4: 1 | P4: F | S4: =G4/10000 -> 0.0332281
A5: 3 | B5: Citation-525 | C5: 10500 | D5: 4.3 | E5: 50 | F5: 7.02 | G5: 83.2664 | H5: 122117000 | I5: 16.75 | J5: 11074.674 | K5: 4.6 | L5: 17.2 | M5: D | N5: 4 | O5: 1 | P5: F | S5: =G5/10000 -> 0.00832664
A6: 1 | B6: Single Wheel 10 | C6: 10000 | D6: 7.9 | E6: 1000 | F6: 14.44 | G6: 3283.8 | H6: 42416.1 | I6: 16.13 | J6: 11365.735 | K6: 9 | L6: 17.2 | M6: D | N6: 4 | O6: 1 | P6: F | S6: =G6/10000 -> 0.32838
A7: 4 | B7: Citation-X | C7: 36000 | D7: 12 | E7: 25 | F7: 11.75 | G7: 76.9511 | H7: 1751.31 | I7: 15.61 | J7: 42774.788 | K7: 14.5 | L7: 17.2 | M7: D | N7: 4 | O7: 1 | P7: F | S7: =G7/10000 -> 0.00769511
A8: 5 | B8: Falcon-50 | C8: 38800 | D8: 12.8 | E8: 100 | F8: 14.7 | G8: 302.738 | H8: 1301.54 | I8: 15.46 | J8: 46582.432 | K8: 15.6 | L8: 17.2 | M8: D | N8: 4 | O8: 1 | P8: F | S8: =G8/10000 -> 0.0302738
C17: =IF(N3>=30," at k-value= ", " at CBR= ") -> at CBR=
B18: =IF(L3>125,125,5) -> 5 | C18: =MAX(L3,CDFt)+IF(L3>125,125,8) -> 25.2 | D18: =ROUNDUP(MAX(PCNcdf,ACNin)/10,0)*10+15 -> 35
B19: =IF(L3>125,25,1) -> 1 | C19: ="Subgrade code= "&M3&C17&FIXED(N3,1)&", t= "&FIXED(L3,1) -> Subgrade code= D at CBR= 4.0, t= 17.2
B25: ="Flexible Pavement Thickness"&B26 -> Flexible Pavement Thickness, in.
B26: =IF(L3>125,", mm",", in.") -> , in.
B27: ="Airplane Gross Weight, (thousands), "&B28 -> Airplane Gross Weight, (thousands), lbs,
B28: =IF(L3>125,"kg, ","lbs, ") -> lbs,

Sheet RigidChart
A1: GA RW
A2: Num | B2: Plane | C2: GWin | D2: ACNin | E2: ADout | F2: 6Dt | G2: COV20yr | H2: COVtoF | I2: CDFt | J2: GWcdf | K2: PCNcdf | L2: EVALt | M2: SUBcode | N2: KorCBR | O2: PtoTC | P2: FlexOrRig | S2: % of 10k Coverages
A3: 2 | B3: Baron-E-55 | C3: 5424 | D3: 1.5 | E3: 1200 | F3: 2.75 | G3: 1900.38 | H3: 68407500000 | I3: 6.87 | J3: 4024.618 | K3: 1.1 | L3: 6 | M3: D | N3: 84.5 | O3: 1 | P3: R | S3: =G3/10000 -> 0.190038
A4: 6 | B4: KingAir-B-100 | C4: 11500 | D4: 2.8 | E4: 100 | F4: 3.26 | G4: 332.281 | H4: 131148000 | I4: 7.09 | J4: 8312.925 | K4: 1.8 | L4: 6 | M4: D | N4: 84.5 | O4: 1 | P4: R | S4: 0.0332281
A5: 3 | B5: Citation-525 | C5: 10500 | D5: 3.8 | E5: 50 | F5: 3.69 | G5: 83.2664 | H5: 2565420 | I5: 7.3 | J5: 6869.377 | K5: 2.4 | L5: 6 | M5: D | N5: 84.5 | O5: 1 | P5: R | S5: 0.00832664
A6: 1 | B6: Single Wheel 10 | C6: 10000 | D6: 6.3 | E6: 1000 | F6: 5.05 | G6: 3283.8 | H6: 64696.9 | I6: 7.57 | J6: 5925.638 | K6: 3.7 | L6: 6 | M6: D | N6: 84.5 | O6: 1 | P6: R | S6: 0.32838
A7: 4 | B7: Citation-X | C7: 36000 | D7: 12.8 | E7: 25 | F7: 6.52 | G7: 76.9511 | H7: 7.82964 | I7: 7.04 | J7: 26613.574 | K7: 9.1 | L7: 6 | M7: D | N7: 84.5 | O7: 1 | P7: R | S7: 0.00769511
A8: 5 | B8: Falcon-50 | C8: 38800 | D8: 13.6 | E8: 100 | F8: 7.05 | G8: 302.738 | H8: 3.61619 | I8: 7.07 | J8: 28248.913 | K8: 9.5 | L8: 6 | M8: D | N8: 84.5 | O8: 1 | P8: R | S8: 0.0302738
C17: =IF(N3>=30," at k-value= ", " at CBR= ") -> at k-value=
B18: =IF(L3>125,125,5) -> 5 | C18: =MAX(L3,CDFtr)+IF(L3>125,75,2.5) -> 10.07 | D18: =ROUNDUP(MAX(ACNinr,PCNcdfr)/10,0)*10+15 -> 35
B19: =IF(L3>125,25,1) -> 1 | C19: ="Subgrade code= "&M3&C17&FIXED(N3,0)&", t= "&FIXED(L3,1) -> Subgrade code= D at k-value= 85, t= 6.0
B25: ="Rigid Pavement Thickness"&B26 -> Rigid Pavement Thickness, in.
B26: =IF(L3>125,", mm",", in.") -> , in.
B27: ="Airplane Gross Weight, (thousands), "&B28 -> Airplane Gross Weight, (thousands), lbs,
B28: =IF(L3>125,"kg, ","lbs, ") -> lbs,

Sheet FlexRigidEqns
B2: Table 1 | C2: Instructions:>>>>>>>>>>>>>>>>>>>>>>>>>>>>>>>>>>>>>>>>>>>>>>>>>>>>>> | J2: Instructions:
B3: Rigid ACN-ACN equations--Known Thickness and/or ACN at interior stress 399psi | J3: Enter the ACN value at interior stress 399psi, The Thickness will be displayed.
J4: Enter the Thickness at interior stress 399psi, ACN value will be displayed
B5: ACN =552 | C5: Thickness | D5: y = 0.4652x2 - 1.7939x + 5.8825 | E5: Thickness | F5: ACN k=552 | G5: y = 1.9656x0.4593
B6: =0.4652*C6^2 - 1.7939*C6 + 5.8825 ->  | C6: ? | D6: R² = 1 | E6: =1.9656*F6^0.4593 ->  | F6: ? | G6: R² = 1 | H6: RA
B8: ACN k=295 | C8: Thickness | D8: y = 0.4161x2 - 1.6544x + 6.0457 | E8: Thickness | F8: ACN k=295 | G8: y = 2.036x0.4628
B9: =0.4161*C9^2 - 1.6544*C9 + 6.0457 ->  | C9: ? | D9: R² = 1 | E9: =ROUND( 2.036*F9^0.4628,2) ->  | F9: ? | G9: R² = 1 | H9: RB
B11: ACN k-147 | C11: Thickness | D11: y = 0.3733x2 - 1.5478x + 6.3908 | E11: Thickness | F11: ACN k=147 | G11: y = 2.1069x0.4665
B12: =0.3733*C12^2 - 1.5478*C12 + 6.3908 ->  | C12: ? | D12: R² = 1 | E12: =2.1069*F12^0.4665 ->  | F12: ? | G12: R² = 1 | H12: RC
B14: ACN k=74 | C14: Thickness | D14: y = 0.3373x2 - 1.4188x + 6.417 | E14: Thickness | F14: ACN k=74 | G14: y = 2.1748x0.4695
B15: =0.3373*C15^2 - 1.4188*C15 + 6.417 ->  | C15: ? | D15: R² = 1 | E15: =2.1748*F15^0.4695 ->  | F15: ? | G15: R² = 1 | H15: RD
B19: Table 2 | C19: Instructions:>>>>>>>>>>>>>>>>>>>>>>>>>>>>>>>>>>>>>>>>>>>>>>>>>>>>>> | J19: Instructions:
B20: OVERLOAD | C20: OVERLOAD | D20: OVERLOAD | E20: OVERLOAD | F20: OVERLOAD | G20: OVERLOAD | J20: Enter the ACN value at interior stress 399psi, i.e. the PCN value.
B21: 1.05xRigid | C21: 1.05xRigid | D21: Rigid at interior stress 399psi | E21: Rigid | F21: Rigid | G21: Rigid at 650psi | J21: The Overload Thickness will be displayed. Then,
F22: ENTER | J22: Use the thickness and corresponding k-value in COMFAA's
B23: PCN =552 | C23: Thickness | D23: y = 0.4652x2 - 1.7939x + 5.8825 | E23: Thickness | F23: PCN k=552 | G23: y = 1.9656x0.4593 | J23: computational mode MGW to get tolerable Overload gross weight
A24: 1 | B24: =0.4652*C24^2 - 1.7939*C24 + 5.8825 ->  | C24: =E25 ->  | D24: R² = 1 | E24: =1.9656*F24^0.4593 ->  | F24: ? | G24: R² = 1 | H24: RA | J24: of the aircraft under question
E25: =1.9656*F25^0.4593 ->  | F25: =ROUND(F24*1.05,2) -> 
B26: PCN k=295 | C26: Thickness | D26: y = 0.4161x2 - 1.6544x + 6.0457 | E26: Thickness | F26: PCN k=295 | G26: y = 2.036x0.4628
A27: 2 | B27: =0.4161*C27^2 - 1.6544*C27 + 6.0457 ->  | C27: =E28 ->  | D27: R² = 1 | E27: =ROUND( 2.036*F27^0.4628,2) ->  | F27: ? | G27: R² = 1 | H27: RB
E28: =ROUND( 2.036*F28^0.4628,2) ->  | F28: =ROUND(F27*1.05,2) -> 
B29: PCN k-147 | C29: Thickness | D29: y = 0.3733x2 - 1.5478x + 6.3908 | E29: Thickness | F29: PCN k=147 | G29: y = 2.1069x0.4665
A30: 3 | B30: =0.3733*C30^2 - 1.5478*C30 + 6.3908 ->  | C30: =E31 ->  | D30: R² = 1 | E30: =2.1069*F30^0.4665 ->  | F30: ? | G30: R² = 1 | H30: RC
E31: =2.1069*F31^0.4665 ->  | F31: =ROUND(F30*1.05,2) -> 
B32: PCN k=74 | C32: Thickness | D32: y = 0.3373x2 - 1.4188x + 6.417 | E32: Thickness | F32: PCN k=74 | G32: y = 2.1748x0.4695
A33: 4 | B33: =0.3373*C33^2 - 1.4188*C33 + 6.417 ->  | C33: =E34 ->  | D33: R² = 1 | E33: =2.1748*F33^0.4695 ->  | F33: ? | G33: R² = 1 | H33: RD
E34: =2.1748*F34^0.4695 ->  | F34: =ROUND(F33*1.05,2) -> 
B37: Table 3 | C37: Instructions:>>>>>>>>>>>>>>>>>>>>>>>>>>>>>>>>>>>>>>>>>>>>>>>>>>>>>> | J37: Instructions:
B38: Flexible ACN-PCN equations--Known Thickness and/or ACN | J38: Enter the ACN value, Thickness will be displayed
J39: Enter the Thickness, ACN value will be displayed
B40: ACN CBR=15 | C40: Thickness | D40: ACN=0.1401x2+0.0011x-0.0063 | E40: Thickness | F40: ACN CBR 15 | G40: Thick. = 2.6711x0.5
B41: =0.1401*C41^2+0.0011*C41-0.0063 ->  | C41: ? | D41: R² = 1 | E41: =2.6711*F41^0.5 ->  | F41: ? | G41: R² = 1 | H41: FA
J42: of the aircraft under question
B43: ACN CBR=10 | C43: Thickness | D43: ACN=0.0859x2 -0.0059x+0.0403 | E43: Thickness | F43: ACN CBR 10 | G43: Thick. = 3.4198x0.4997
B44: =0.0859*C44^2 - 0.0059*C44 + 0.0403 ->  | C44: ? | D44: R² = 1 | E44: =3.4198*F44^0.4997 ->  | F44: ? | G44: R² = 1 | H44: FB
B46: ACN CBR=6 | C46: Thickness | D46: ACN=0.0483x2-0.0046x+0.0375 | E46: Thickness | F46: ACN CBR 6 | G46: Thick. = 4.5597x0.4997
B47: =0.0483*C47^2 - 0.0046*C47 + 0.0375 ->  | C47: ? | D47: R² = 1 | E47: =4.5597*F47^0.4997 ->  | F47: ? | G47: R² = 1 | H47: FC
B49: ACN CBR=3 | C49: Thickness | D49: ACN=0.0231x2-0.0015x+0.0154 | E49: Thickness | F49: ACN CBR 3 | G49: Thick. = 6.5938x0.4998
B50: =0.0231*C50^2 - 0.0015*C50 + 0.0154 ->  | C50: ? | D50: R² = 1 | E50: =6.5938*F50^0.4998 ->  | F50: ? | G50: R² = 1 | H50: FD
B54: Table 4 | C54: Instructions:>>>>>>>>>>>>>>>>>>>>>>>>>>>>>>>>>>>>>>>>>>>>>>>>>>>>>> | J54: Instructions:
B55: OVERLOAD | C55: OVERLOAD | D55: OVERLOAD | E55: OVERLOAD | F55: OVERLOAD | G55: OVERLOAD | J55: Enter the PCN value and the Overload Thickness will be displayed
B56: 1.1xFlexible | C56: 1.1xFlexible | D56: Flexible | E56: Flexible | F56: Flexible | G56: Flexible | J56: then
B57: PCN CBR=15 | C57: Thickness | D57: PCN = 0.1401x2 + 0.0011x - 0.0063 | E57: Thickness | F57: PCN CBR 15 | G57: Thick. = 2.6711x0.5 | J57: Use the thickness and corresponding CBR in COMFAA's
A58: 5 | B58: =0.1401*C58^2+0.0011*C58-0.0063 ->  | C58: =E59 ->  | D58: R² = 1 | E58: =2.6711*F58^0.5 ->  | F58: ? | G58: R² = 1 | H58: FA | J58: computational mode MGW to get tolerable Overload gross weight
E59: =2.6711*F59^0.5 ->  | F59: =ROUND(F58*1.1,2) ->  | J59: of the aircraft under question
B60: PCN CBR=10 | C60: Thickness | D60: PCN = 0.0859x2 - 0.0059x + 0.0403 | E60: Thickness | F60: PCN CBR 10 | G60: Thick. = 3.4198x0.4997 | J60: of the aircraft under question
A61: 6 | B61: =0.0859*C61^2 - 0.0059*C61 + 0.0403 ->  | C61: =E62 ->  | D61: R² = 1 | E61: =3.4198*F61^0.4997 ->  | F61: ? | G61: R² = 1 | H61: FB
E62: =3.4198*F62^0.4997 ->  | F62: =ROUND(F61*1.1,2) -> 
B63: PCN CBR=6 | C63: Thickness | D63: PCN = 0.0483x2 - 0.0046x + 0.0375 | E63: Thickness | F63: PCN CBR 6 | G63: Thick. = 4.5597x0.4997
A64: 7 | B64: =0.0483*C64^2 - 0.0046*C64 + 0.0375 ->  | C64: =E65 ->  | D64: R² = 1 | E64: =4.5597*F64^0.4997 ->  | F64: ? | G64: R² = 1 | H64: FC
E65: =4.5597*F65^0.4997 ->  | F65: =ROUND(F64*1.1,2) -> 
B66: PCN CBR=3 | C66: Thickness | D66: PCN = 0.0231x2 - 0.0015x + 0.0154 | E66: Thickness | F66: PCN CBR 3 | G66: Thick. = 6.5938x0.4998
A67: 8 | B67: =0.0231*C67^2 - 0.0015*C67 + 0.0154 ->  | C67: =E68 ->  | D67: R² = 1 | E67: =6.5938*F67^0.4998 ->  | F67: ? | G67: R² = 1 | H67: FD
E68: =6.5938*F68^0.4998 ->  | F68: =ROUND(F67*1.1,2) -> 

Sheet Guidance
A1: 1--> | B1: ColumnA labels in Flex PCN are changeable Cols-F & Z adopt Col-A contents | I1: 7--> Insert Layer Factors for FAA and Alt Std. inserted factors used in Flex PCN Check Box
A2: 2--> | B2: ColumnD labels in Rigid PCN are changeable, Col-AB adopts Col-D contents
K3: FAA Std | L3: Alt Std
A4: 3--> | B4: If you Unhide all Columns in the Flex PCN tab, Ctrl+H Hides the colunns properly | H4: Pavement Layer | K4: 2base | L4: 2base
E5: 5--> | F5: These layers are | H5: Surface HMA | J5: P-401/3 P 403 | K5: 1.6 | L5: 1.5
F6: Coverted to equiv | H6: Stabilized Base 1 | J6: P-306 ECONOCRTE | K6: 1.2 | L6: 1.1
F7: Thickness of CA | H7: Stabilized Base 2 | J7: P-304 CEM. TRTD | K7: 1.2 | L7: 1.1
A8: 4--> | B8: If you Unhide all Columns in the Rigid PCN tab, Ctrl+Shft+H Hides the colunns properly | H8: Crushed Agg. (CA) | J8: P-209 Cr AGG | K8: 1 | L8: 1
J9: P-208 Agg, P-211 | K9: 1 | L9: 1
K10: base2subbase | L10: base2subbase
J11: P-209 Cr AGG | K11: 1.4 | L11: 1.3
E12: 6--> | F12: These layers are | H12: Uncrushed Agg Base | J12: P-208 Agg, P-211 | K12: 1.2 | L12: 1.1
F13: Coverted to equiv | H13: Stabilized Subbase | J13: P-301 SOIL-CEM. | K13: 1.2 | L13: 1.1
F14: Subbase Thickness | H14: Uncrush Agg Subbase | J14: P-154 Subbase | K14: 1 | L14: 1
B16: AC 150/5335-5, FAA Flexible Pavement Layer Equivalency Factors (See Note) | J16: 8---> | K16: Hot Mix to PCC
K19: ENTER data in Cells with white backgroun only
B36: Note. Engineering judgment may be used to adjust recommended factors for all Structural Items within the ranges shown in the table. Incdlude justification for higher or lower conversion factors when reporting PCN values.
K41: ENTER data in Cells with white backgroun only
B47: h-over | C47: h-exist | D47: C-crack
B48: 5.61 | C48: 5.75 | D48: 1
B50: h-design
B51: =(B48^2+C48^2*D48)^0.5 -> 8.033343015
B71: h-over | C71: h-exist | D71: C-crack
B72: 5.61 | C72: 5.75 | D72: 1
B74: h-design
B75: =(B72^1.4+D72*C72^1.4)^(1/1.4) -> 9.319292719
